Organisation Code,BodyName,ServiceLabel,ServiceDivisionLabel,ExpenditureCategory,DetailedExpenditureType,DetailedExpenditureCode,DatePaid,TransactionNumber,NetAmount,CapitalOrRevenue,SupplierName,Procurement Card
Http://opendatacommunities.org/id/metropolitan-district-council/leeds,Leeds City Council,Environment & Housing,Environmental Health,Capital,Construction,3,25-Sep-2014,1409-00001,1009.71,C,A & P Crontractors Ltd,No
Http://opendatacommunities.org/id/metropolitan-district-council/leeds,Leeds City Council,Childrens Services,Learning Skills & Universal,Supplies and Services,Operational Materials,205,03-Sep-2014,1409-00002,22.80,R,A A Smith Ltd,No
Http://opendatacommunities.org/id/metropolitan-district-council/leeds,Leeds City Council,Childrens Services,Safeguarding Targeted & Specialist,Third Party Payments,Section 17,551,01-Sep-2014,1409-00003,550.00,R,REDACTED PERSONAL DATA,No
Http://opendatacommunities.org/id/metropolitan-district-council/leeds,Leeds City Council,Environment & Housing,Statutory Housing,Supplies and Services,Other Hired And Contracted Services,265,02-Sep-2014,1409-00004,500.00,R,A Ahmadi,No
Http://opendatacommunities.org/id/metropolitan-district-council/leeds,Leeds City Council,Central & Corporate,Commercial Services Trading Services,Supplies and Services,Operational Materials,205,08-Sep-2014,1409-00005,21.94,R,A Andrews & Sons (Marbles & Tiles),No
Http://opendatacommunities.org/id/metropolitan-district-council/leeds,Leeds City Council,Central & Corporate,Commercial Services Trading Services,Supplies and Services,Operational Materials,205,05-Sep-2014,1409-00006,166.36,R,A Andrews & Sons (Marbles & Tiles),No
Http://opendatacommunities.org/id/metropolitan-district-council/leeds,Leeds City Council,Central & Corporate,Commercial Services Trading Services,Supplies and Services,Operational Materials,205,05-Sep-2014,1409-00007,8.80,R,A Andrews & Sons (Marbles & Tiles),No
Http://opendatacommunities.org/id/metropolitan-district-council/leeds,Leeds City Council,City Development,Libraries  Arts & Heritage,Supplies and Services,Other Hired And Contracted Services,265,24-Sep-2014,1409-00008,110.00,R,A B Jones,No
Http://opendatacommunities.org/id/metropolitan-district-council/leeds,Leeds City Council,Childrens Services,Learning Skills & Universal,Third Party Payments,Services Rendered By Other Organisations,511,16-Sep-2014,1409-00009,1746.00,R,A Clarkson,No
Http://opendatacommunities.org/id/metropolitan-district-council/leeds,Leeds City Council,Central & Corporate,Support And Facilities General Fund,Supplies and Services,Operational Materials,205,05-Sep-2014,1409-00010,1231.50,R,A D Smith,No
Http://opendatacommunities.org/id/metropolitan-district-council/leeds,Leeds City Council,Central & Corporate,Support And Facilities General Fund,Supplies and Services,Office Furniture & Equipment,201,05-Sep-2014,1409-00011,1985.00,R,A D Smith,No
Http://opendatacommunities.org/id/metropolitan-district-council/leeds,Leeds City Council,Childrens Services,Learning Skills & Universal,Third Party Payments,Services Rendered By Voluntary Sector,505,12-Sep-2014,1409-00012,12859.20,R,A E Speight,No
Http://opendatacommunities.org/id/metropolitan-district-council/leeds,Leeds City Council,Childrens Services,Learning Skills & Universal,Third Party Payments,Services Rendered By Voluntary Sector,505,16-Sep-2014,1409-00013,7857.00,R,A E Speight,No
Http://opendatacommunities.org/id/metropolitan-district-council/leeds,Leeds City Council,Childrens Services,Learning Skills & Universal,Third Party Payments,Services Rendered By Other Organisations,511,16-Sep-2014,1409-00014,362.06,R,A Foley,No
Http://opendatacommunities.org/id/metropolitan-district-council/leeds,Leeds City Council,Environment & Housing,Housing Leeds Service,Capital,Other Costs,7,11-Sep-2014,1409-00015,460.00,C,REDACTED PERSONAL DATA,No
Http://opendatacommunities.org/id/metropolitan-district-council/leeds,Leeds City Council,Environment & Housing,Housing Leeds Service,Capital,Other Costs,7,11-Sep-2014,1409-00016,190.00,C,REDACTED PERSONAL DATA,No
Http://opendatacommunities.org/id/metropolitan-district-council/leeds,Leeds City Council,Adult Social Care,Social Services Support Services,Transport,Public Transport Expenses,310,04-Sep-2014,1409-00017,27.50,R,REDACTED PERSONAL DATA,No
Http://opendatacommunities.org/id/metropolitan-district-council/leeds,Leeds City Council,Childrens Services,Safeguarding Targeted & Specialist,Third Party Payments,Section 17,551,29-Sep-2014,1409-00018,160.00,R,REDACTED PERSONAL DATA,No
Http://opendatacommunities.org/id/metropolitan-district-council/leeds,Leeds City Council,Central & Corporate,Commercial Services Trading Services,Supplies and Services,Operational Materials,205,30-Sep-2014,1409-00019,47.95,R,A J H  Pump Supply & Repair Ltd,No
Http://opendatacommunities.org/id/metropolitan-district-council/leeds,Leeds City Council,Central & Corporate,Commercial Services Trading Services,Supplies and Services,Operational Materials,205,30-Sep-2014,1409-00020,58.14,R,A J H  Pump Supply & Repair Ltd,No
Http://opendatacommunities.org/id/metropolitan-district-council/leeds,Leeds City Council,Central & Corporate,Commercial Services Trading Services,Supplies and Services,Operational Materials,205,30-Sep-2014,1409-00021,74.21,R,A J H  Pump Supply & Repair Ltd,No
Http://opendatacommunities.org/id/metropolitan-district-council/leeds,Leeds City Council,Central & Corporate,Commercial Services Trading Services,Supplies and Services,Operational Materials,205,30-Sep-2014,1409-00022,9.90,R,A J H  Pump Supply & Repair Ltd,No
Http://opendatacommunities.org/id/metropolitan-district-council/leeds,Leeds City Council,Central & Corporate,Commercial Services Trading Services,Supplies and Services,Operational Materials,205,30-Sep-2014,1409-00023,215.00,R,A J H  Pump Supply & Repair Ltd,No
Http://opendatacommunities.org/id/metropolitan-district-council/leeds,Leeds City Council,Central & Corporate,Commercial Services Trading Services,Supplies and Services,Operational Materials,205,30-Sep-2014,1409-00024,111.57,R,A J H  Pump Supply & Repair Ltd,No
Http://opendatacommunities.org/id/metropolitan-district-council/leeds,Leeds City Council,Central & Corporate,Commercial Services Trading Services,Supplies and Services,Operational Materials,205,30-Sep-2014,1409-00025,37.47,R,A J H  Pump Supply & Repair Ltd,No
Http://opendatacommunities.org/id/metropolitan-district-council/leeds,Leeds City Council,Central & Corporate,Commercial Services Trading Services,Supplies and Services,Operational Materials,205,30-Sep-2014,1409-00026,199.95,R,A J H  Pump Supply & Repair Ltd,No
Http://opendatacommunities.org/id/metropolitan-district-council/leeds,Leeds City Council,Central & Corporate,Commercial Services Trading Services,Supplies and Services,Operational Materials,205,30-Sep-2014,1409-00027,258.70,R,A J H  Pump Supply & Repair Ltd,No
Http://opendatacommunities.org/id/metropolitan-district-council/leeds,Leeds City Council,Central & Corporate,Commercial Services Trading Services,Supplies and Services,Operational Materials,205,30-Sep-2014,1409-00028,85.00,R,A J H  Pump Supply & Repair Ltd,No
Http://opendatacommunities.org/id/metropolitan-district-council/leeds,Leeds City Council,Central & Corporate,Commercial Services Trading Services,Supplies and Services,Operational Materials,205,30-Sep-2014,1409-00029,457.90,R,A J H  Pump Supply & Repair Ltd,No
Http://opendatacommunities.org/id/metropolitan-district-council/leeds,Leeds City Council,Central & Corporate,Commercial Services Trading Services,Supplies and Services,Operational Materials,205,30-Sep-2014,1409-00030,28.07,R,A J H  Pump Supply & Repair Ltd,No
Http://opendatacommunities.org/id/metropolitan-district-council/leeds,Leeds City Council,Central & Corporate,Commercial Services Trading Services,Supplies and Services,Operational Materials,205,30-Sep-2014,1409-00031,568.00,R,A J H  Pump Supply & Repair Ltd,No
Http://opendatacommunities.org/id/metropolitan-district-council/leeds,Leeds City Council,Central & Corporate,Commercial Services Trading Services,Supplies and Services,Operational Materials,205,30-Sep-2014,1409-00032,60.00,R,A J H  Pump Supply & Repair Ltd,No
Http://opendatacommunities.org/id/metropolitan-district-council/leeds,Leeds City Council,Central & Corporate,Commercial Services Trading Services,Supplies and Services,Operational Materials,205,30-Sep-2014,1409-00033,101.95,R,A J H  Pump Supply & Repair Ltd,No
Http://opendatacommunities.org/id/metropolitan-district-council/leeds,Leeds City Council,Central & Corporate,Commercial Services Trading Services,Supplies and Services,Operational Materials,205,30-Sep-2014,1409-00034,129.38,R,A J H  Pump Supply & Repair Ltd,No
Http://opendatacommunities.org/id/metropolitan-district-council/leeds,Leeds City Council,Central & Corporate,Commercial Services Trading Services,Supplies and Services,Operational Materials,205,30-Sep-2014,1409-00035,2153.00,R,A J H  Pump Supply & Repair Ltd,No
Http://opendatacommunities.org/id/metropolitan-district-council/leeds,Leeds City Council,Central & Corporate,Commercial Services Trading Services,Supplies and Services,Operational Materials,205,30-Sep-2014,1409-00036,1310.00,R,A J H  Pump Supply & Repair Ltd,No
Http://opendatacommunities.org/id/metropolitan-district-council/leeds,Leeds City Council,Central & Corporate,Commercial Services Trading Services,Supplies and Services,Operational Materials,205,30-Sep-2014,1409-00037,2235.00,R,A J H  Pump Supply & Repair Ltd,No
Http://opendatacommunities.org/id/metropolitan-district-council/leeds,Leeds City Council,Central & Corporate,Commercial Services Trading Services,Supplies and Services,Operational Materials,205,30-Sep-2014,1409-00038,1320.00,R,A J H  Pump Supply & Repair Ltd,No
Http://opendatacommunities.org/id/metropolitan-district-council/leeds,Leeds City Council,Central & Corporate,Commercial Services Trading Services,Supplies and Services,Operational Materials,205,30-Sep-2014,1409-00039,1320.00,R,A J H  Pump Supply & Repair Ltd,No
Http://opendatacommunities.org/id/metropolitan-district-council/leeds,Leeds City Council,Central & Corporate,Commercial Services Trading Services,Supplies and Services,Operational Materials,205,30-Sep-2014,1409-00040,1229.00,R,A J H  Pump Supply & Repair Ltd,No
Http://opendatacommunities.org/id/metropolitan-district-council/leeds,Leeds City Council,Central & Corporate,Commercial Services Trading Services,Supplies and Services,Operational Materials,205,30-Sep-2014,1409-00041,1465.00,R,A J H  Pump Supply & Repair Ltd,No
Http://opendatacommunities.org/id/metropolitan-district-council/leeds,Leeds City Council,Central & Corporate,Commercial Services Trading Services,Supplies and Services,Operational Materials,205,30-Sep-2014,1409-00042,955.00,R,A J H  Pump Supply & Repair Ltd,No
Http://opendatacommunities.org/id/metropolitan-district-council/leeds,Leeds City Council,Central & Corporate,Commercial Services Trading Services,Supplies and Services,Other Hired And Contracted Services,265,30-Sep-2014,1409-00043,357.85,R,A J H  Pump Supply & Repair Ltd,No
Http://opendatacommunities.org/id/metropolitan-district-council/leeds,Leeds City Council,Central & Corporate,Commercial Services Trading Services,Supplies and Services,Operational Materials,205,30-Sep-2014,1409-00044,9.00,R,A J H  Pump Supply & Repair Ltd,No
Http://opendatacommunities.org/id/metropolitan-district-council/leeds,Leeds City Council,Central & Corporate,Commercial Services Trading Services,Supplies and Services,Operational Materials,205,12-Sep-2014,1409-00045,1028.00,R,A J H  Pump Supply & Repair Ltd,No
Http://opendatacommunities.org/id/metropolitan-district-council/leeds,Leeds City Council,Central & Corporate,Commercial Services Trading Services,Supplies and Services,Operational Materials,205,12-Sep-2014,1409-00046,12.45,R,A J H  Pump Supply & Repair Ltd,No
Http://opendatacommunities.org/id/metropolitan-district-council/leeds,Leeds City Council,Central & Corporate,Commercial Services Trading Services,Supplies and Services,Operational Materials,205,12-Sep-2014,1409-00047,338.85,R,A J H  Pump Supply & Repair Ltd,No
Http://opendatacommunities.org/id/metropolitan-district-council/leeds,Leeds City Council,Central & Corporate,Commercial Services Trading Services,Supplies and Services,Operational Materials,205,12-Sep-2014,1409-00048,330.00,R,A J H  Pump Supply & Repair Ltd,No
Http://opendatacommunities.org/id/metropolitan-district-council/leeds,Leeds City Council,Central & Corporate,Commercial Services Trading Services,Supplies and Services,Operational Materials,205,12-Sep-2014,1409-00049,22.03,R,A J H  Pump Supply & Repair Ltd,No
Http://opendatacommunities.org/id/metropolitan-district-council/leeds,Leeds City Council,Central & Corporate,Commercial Services Trading Services,Supplies and Services,Operational Materials,205,30-Sep-2014,1409-00050,37.37,R,A J H  Pump Supply & Repair Ltd,No
Http://opendatacommunities.org/id/metropolitan-district-council/leeds,Leeds City Council,Central & Corporate,Commercial Services Trading Services,Supplies and Services,Operational Materials,205,12-Sep-2014,1409-00051,27.57,R,A J H  Pump Supply & Repair Ltd,No
Http://opendatacommunities.org/id/metropolitan-district-council/leeds,Leeds City Council,Central & Corporate,Commercial Services Trading Services,Supplies and Services,Operational Materials,205,12-Sep-2014,1409-00052,120.08,R,A J H  Pump Supply & Repair Ltd,No
Http://opendatacommunities.org/id/metropolitan-district-council/leeds,Leeds City Council,Central & Corporate,Commercial Services Trading Services,Supplies and Services,Operational Materials,205,12-Sep-2014,1409-00053,9.95,R,A J H  Pump Supply & Repair Ltd,No
Http://opendatacommunities.org/id/metropolitan-district-council/leeds,Leeds City Council,Central & Corporate,Commercial Services Trading Services,Supplies and Services,Operational Materials,205,12-Sep-2014,1409-00054,356.00,R,A J H  Pump Supply & Repair Ltd,No
Http://opendatacommunities.org/id/metropolitan-district-council/leeds,Leeds City Council,Central & Corporate,Commercial Services Trading Services,Supplies and Services,Operational Materials,205,12-Sep-2014,1409-00055,58.59,R,A J H  Pump Supply & Repair Ltd,No
Http://opendatacommunities.org/id/metropolitan-district-council/leeds,Leeds City Council,Central & Corporate,Commercial Services Trading Services,Supplies and Services,Operational Materials,205,12-Sep-2014,1409-00056,275.00,R,A J H  Pump Supply & Repair Ltd,No
Http://opendatacommunities.org/id/metropolitan-district-council/leeds,Leeds City Council,Central & Corporate,Commercial Services Trading Services,Supplies and Services,Operational Materials,205,12-Sep-2014,1409-00057,79.62,R,A J H  Pump Supply & Repair Ltd,No
Http://opendatacommunities.org/id/metropolitan-district-council/leeds,Leeds City Council,Central & Corporate,Commercial Services Trading Services,Supplies and Services,Operational Materials,205,12-Sep-2014,1409-00058,27.45,R,A J H  Pump Supply & Repair Ltd,No
Http://opendatacommunities.org/id/metropolitan-district-council/leeds,Leeds City Council,Central & Corporate,Commercial Services Trading Services,Supplies and Services,Operational Materials,205,12-Sep-2014,1409-00059,198.50,R,A J H  Pump Supply & Repair Ltd,No
Http://opendatacommunities.org/id/metropolitan-district-council/leeds,Leeds City Council,Central & Corporate,Commercial Services Trading Services,Supplies and Services,Operational Materials,205,12-Sep-2014,1409-00060,150.50,R,A J H  Pump Supply & Repair Ltd,No
Http://opendatacommunities.org/id/metropolitan-district-council/leeds,Leeds City Council,Central & Corporate,Commercial Services Trading Services,Supplies and Services,Operational Materials,205,12-Sep-2014,1409-00061,117.50,R,A J H  Pump Supply & Repair Ltd,No
Http://opendatacommunities.org/id/metropolitan-district-council/leeds,Leeds City Council,Central & Corporate,Commercial Services Trading Services,Supplies and Services,Operational Materials,205,30-Sep-2014,1409-00062,1320.00,R,A J H  Pump Supply & Repair Ltd,No
Http://opendatacommunities.org/id/metropolitan-district-council/leeds,Leeds City Council,Central & Corporate,Commercial Services Trading Services,Supplies and Services,Operational Materials,205,30-Sep-2014,1409-00063,190.00,R,A J H  Pump Supply & Repair Ltd,No
Http://opendatacommunities.org/id/metropolitan-district-council/leeds,Leeds City Council,Central & Corporate,Commercial Services Trading Services,Supplies and Services,Operational Materials,205,30-Sep-2014,1409-00064,116.91,R,A J H  Pump Supply & Repair Ltd,No
Http://opendatacommunities.org/id/metropolitan-district-council/leeds,Leeds City Council,Central & Corporate,Commercial Services Trading Services,Supplies and Services,Operational Materials,205,30-Sep-2014,1409-00065,68.45,R,A J H  Pump Supply & Repair Ltd,No
Http://opendatacommunities.org/id/metropolitan-district-council/leeds,Leeds City Council,Central & Corporate,Commercial Services Trading Services,Supplies and Services,Operational Materials,205,30-Sep-2014,1409-00066,19.82,R,A J H  Pump Supply & Repair Ltd,No
Http://opendatacommunities.org/id/metropolitan-district-council/leeds,Leeds City Council,Central & Corporate,Commercial Services Trading Services,Supplies and Services,Operational Materials,205,30-Sep-2014,1409-00067,28.45,R,A J H  Pump Supply & Repair Ltd,No
Http://opendatacommunities.org/id/metropolitan-district-council/leeds,Leeds City Council,Central & Corporate,Commercial Services Trading Services,Supplies and Services,Operational Materials,205,30-Sep-2014,1409-00068,103.58,R,A J H  Pump Supply & Repair Ltd,No
Http://opendatacommunities.org/id/metropolitan-district-council/leeds,Leeds City Council,City Development,Economic Development,Supplies and Services,Resaleable Materials,204,12-Sep-2014,1409-00069,36.80,R,A J Promotions,No
Http://opendatacommunities.org/id/metropolitan-district-council/leeds,Leeds City Council,City Development,Libraries  Arts & Heritage,Supplies and Services,Resaleable Materials,204,24-Sep-2014,1409-00070,-319.12,R,A J Promotions,No
Http://opendatacommunities.org/id/metropolitan-district-council/leeds,Leeds City Council,Environment & Housing,Parks & Countryside,Supplies and Services,Resaleable Materials,204,24-Sep-2014,1409-00071,750.00,R,A J Promotions,No
Http://opendatacommunities.org/id/metropolitan-district-council/leeds,Leeds City Council,Central & Corporate,Public Health,Third Party Payments,Public Health Commissioned Services,526,24-Sep-2014,1409-00072,61.00,R,A Khan & K Muneer,No
Http://opendatacommunities.org/id/metropolitan-district-council/leeds,Leeds City Council,Central & Corporate,Customer Services,Supplies and Services,Other Hired And Contracted Services,265,04-Sep-2014,1409-00073,158.25,R,A Musalam,No
Http://opendatacommunities.org/id/metropolitan-district-council/leeds,Leeds City Council,Childrens Services,Learning Skills & Universal,Third Party Payments,Services Rendered By Other Organisations,511,16-Sep-2014,1409-00074,2619.00,R,REDACTED PERSONAL DATA,No
Http://opendatacommunities.org/id/metropolitan-district-council/leeds,Leeds City Council,Childrens Services,Learning Skills & Universal,Third Party Payments,Services Rendered By Other Organisations,511,12-Sep-2014,1409-00075,684.00,R,REDACTED PERSONAL DATA,No
Http://opendatacommunities.org/id/metropolitan-district-council/leeds,Leeds City Council,Central & Corporate,Customer Services,Supplies and Services,Other Hired And Contracted Services,265,03-Sep-2014,1409-00076,361.00,R,A Namaki,No
Http://opendatacommunities.org/id/metropolitan-district-council/leeds,Leeds City Council,Childrens Services,Learning Skills & Universal,Third Party Payments,Services Rendered By Other Organisations,511,12-Sep-2014,1409-00077,500.00,R,REDACTED PERSONAL DATA,No
Http://opendatacommunities.org/id/metropolitan-district-council/leeds,Leeds City Council,City Development,Recreation,Income,Sporting & Other Recreational Fees,928,11-Sep-2014,1409-00078,66.00,R,REDACTED PERSONAL DATA,No
Http://opendatacommunities.org/id/metropolitan-district-council/leeds,Leeds City Council,Central & Corporate,Public Health,Third Party Payments,Public Health Commissioned Services,526,16-Sep-2014,1409-00079,1955.15,R,A P Health,No
Http://opendatacommunities.org/id/metropolitan-district-council/leeds,Leeds City Council,Central & Corporate,Public Health,Third Party Payments,Public Health Commissioned Services,526,24-Sep-2014,1409-00080,285.00,R,REDACTED PERSONAL DATA,No
Http://opendatacommunities.org/id/metropolitan-district-council/leeds,Leeds City Council,Adult Social Care,Services For Older People Under 65 P/Dis,Transfer Payments,Direct Payments,626,24-Sep-2014,1409-00081,1006.92,R,REDACTED PERSONAL DATA,No
Http://opendatacommunities.org/id/metropolitan-district-council/leeds,Leeds City Council,City Development,Libraries  Arts & Heritage,Supplies and Services,Books & Audio-Visual Materials,206,05-Sep-2014,1409-00082,132.95,R,A S Jhagra,No
Http://opendatacommunities.org/id/metropolitan-district-council/leeds,Leeds City Council,Central & Corporate,Commercial Services General Fund,Transport,Miscellaneous Transport Related Costs,324,04-Sep-2014,1409-00083,25.00,R,A Shores & Co (L & Cp) Ltd,No
Http://opendatacommunities.org/id/metropolitan-district-council/leeds,Leeds City Council,City Development,Recreation,Income,Swimming Bath Charges,923,18-Sep-2014,1409-00084,70.20,R,REDACTED PERSONAL DATA,No
Http://opendatacommunities.org/id/metropolitan-district-council/leeds,Leeds City Council,Central & Corporate,Support And Facilities General Fund,Supplies and Services,Other Hired And Contracted Services,265,17-Sep-2014,1409-00085,46.25,R,A Star Couriers Ltd,No
Http://opendatacommunities.org/id/metropolitan-district-council/leeds,Leeds City Council,City Development,Economic Development,Supplies and Services,Publication And Promotion,267,10-Sep-2014,1409-00086,400.00,R,A T Graphics Limited,No
Http://opendatacommunities.org/id/metropolitan-district-council/leeds,Leeds City Council,Environment & Housing,Parks & Countryside,Supplies and Services,Food & Drink,231,10-Sep-2014,1409-00087,129.14,R,A T Traynor,No
Http://opendatacommunities.org/id/metropolitan-district-council/leeds,Leeds City Council,Environment & Housing,Parks & Countryside,Supplies and Services,Food & Drink,231,10-Sep-2014,1409-00088,124.10,R,A T Traynor,No
Http://opendatacommunities.org/id/metropolitan-district-council/leeds,Leeds City Council,Central & Corporate,Human Resources,Employees,Occupational Health,85,26-Sep-2014,1409-00089,90.00,R,A V Lee & Partners,No
Http://opendatacommunities.org/id/metropolitan-district-council/leeds,Leeds City Council,Childrens Services,Learning Skills & Universal,Third Party Payments,Fees To Carers,563,24-Sep-2014,1409-00090,654.75,R,A Walding,No
Http://opendatacommunities.org/id/metropolitan-district-council/leeds,Leeds City Council,Childrens Services,Learning Skills & Universal,Third Party Payments,Services Rendered By Other Organisations,511,12-Sep-2014,1409-00091,1368.00,R,A Walding,No
Http://opendatacommunities.org/id/metropolitan-district-council/leeds,Leeds City Council,Childrens Services,Learning Skills & Universal,Third Party Payments,Services Rendered By Other Organisations,511,16-Sep-2014,1409-00092,4365.00,R,A Walding,No
Http://opendatacommunities.org/id/metropolitan-district-council/leeds,Leeds City Council,Childrens Services,Safeguarding Targeted & Specialist,Third Party Payments,Residence Order,557,22-Sep-2014,1409-00093,200.00,R,A Walding,No
Http://opendatacommunities.org/id/metropolitan-district-council/leeds,Leeds City Council,Childrens Services,Safeguarding Targeted & Specialist,Third Party Payments,Residence Order,557,05-Sep-2014,1409-00094,600.00,R,A Walding,No
Http://opendatacommunities.org/id/metropolitan-district-council/leeds,Leeds City Council,Childrens Services,Learning Skills & Universal,Third Party Payments,Services Rendered By Other Organisations,511,16-Sep-2014,1409-00095,684.00,R,REDACTED PERSONAL DATA,No
Http://opendatacommunities.org/id/metropolitan-district-council/leeds,Leeds City Council,Childrens Services,Safeguarding Targeted & Specialist,Third Party Payments,General External Residential Placements,507,03-Sep-2014,1409-00096,4650.00,R,A Wilderness Way,No
Http://opendatacommunities.org/id/metropolitan-district-council/leeds,Leeds City Council,Childrens Services,Safeguarding Targeted & Specialist,Third Party Payments,General External Residential Placements,507,05-Sep-2014,1409-00097,4650.00,R,A Wilderness Way,No
Http://opendatacommunities.org/id/metropolitan-district-council/leeds,Leeds City Council,Childrens Services,Safeguarding Targeted & Specialist,Third Party Payments,General External Residential Placements,507,12-Sep-2014,1409-00098,4650.00,R,A Wilderness Way,No
Http://opendatacommunities.org/id/metropolitan-district-council/leeds,Leeds City Council,Childrens Services,Safeguarding Targeted & Specialist,Third Party Payments,General External Residential Placements,507,22-Sep-2014,1409-00099,4650.00,R,A Wilderness Way,No
Http://opendatacommunities.org/id/metropolitan-district-council/leeds,Leeds City Council,Environment & Housing,Housing Leeds Service,Capital,Construction,3,11-Sep-2014,1409-00100,500.00,C,REDACTED PERSONAL DATA,No
Http://opendatacommunities.org/id/metropolitan-district-council/leeds,Leeds City Council,Adult Social Care,Services For Older People Under 65 P/Dis,Transfer Payments,Direct Payments,626,24-Sep-2014,1409-00101,1543.82,R,REDACTED PERSONAL DATA,No
Http://opendatacommunities.org/id/metropolitan-district-council/leeds,Leeds City Council,Environment & Housing,Parks & Countryside,Supplies and Services,Other Hired And Contracted Services,265,12-Sep-2014,1409-00102,100.00,R,A Wright,No
Http://opendatacommunities.org/id/metropolitan-district-council/leeds,Leeds City Council,Central & Corporate,Customer Services,Supplies and Services,Other Hired And Contracted Services,265,03-Sep-2014,1409-00103,107.76,R,A Zeir,No
Http://opendatacommunities.org/id/metropolitan-district-council/leeds,Leeds City Council,City Development,Recreation,Income,Swimming Bath Charges,923,11-Sep-2014,1409-00104,75.60,R,REDACTED PERSONAL DATA,No
Http://opendatacommunities.org/id/metropolitan-district-council/leeds,Leeds City Council,Environment & Housing,Housing Leeds Service,Capital,Other Costs,7,18-Sep-2014,1409-00105,260.00,C,REDACTED PERSONAL DATA,No
Http://opendatacommunities.org/id/metropolitan-district-council/leeds,Leeds City Council,Adult Social Care,Services For Older People Under 65 P/Dis,Transfer Payments,Personalised Budgets,627,24-Sep-2014,1409-00106,822.40,R,REDACTED PERSONAL DATA,No
Http://opendatacommunities.org/id/metropolitan-district-council/leeds,Leeds City Council,City Development,Libraries  Arts & Heritage,Supplies and Services,Operational Furniture And Equipment,203,15-Sep-2014,1409-00107,5325.00,R,Aat (Gb) Ltd,No
Http://opendatacommunities.org/id/metropolitan-district-council/leeds,Leeds City Council as Accountable Body,Social Services Pooled Budgets,Leeds Community Equip Store Pooled Budgt,Supplies and Services,Other Equipment,203,03-Sep-2014,1409-00108,439.00,R,Aat (Gb) Ltd,No
Http://opendatacommunities.org/id/metropolitan-district-council/leeds,Leeds City Council as Accountable Body,Social Services Pooled Budgets,Leeds Community Equip Store Pooled Budgt,Supplies and Services,Other Equipment,203,03-Sep-2014,1409-00109,933.00,R,Aat (Gb) Ltd,No
Http://opendatacommunities.org/id/metropolitan-district-council/leeds,Leeds City Council as Accountable Body,Social Services Pooled Budgets,Leeds Community Equip Store Pooled Budgt,Supplies and Services,Other Equipment,203,17-Sep-2014,1409-00110,100.00,R,Aat (Gb) Ltd,No
Http://opendatacommunities.org/id/metropolitan-district-council/leeds,Leeds City Council as Accountable Body,Social Services Pooled Budgets,Leeds Community Equip Store Pooled Budgt,Supplies and Services,Other Equipment,203,26-Sep-2014,1409-00111,750.00,R,Aat (Gb) Ltd,No
Http://opendatacommunities.org/id/metropolitan-district-council/leeds,Leeds City Council,Childrens Services,Safeguarding Targeted & Specialist,Support Services,Legal Disbursements,411,19-Sep-2014,1409-00112,14.51,R,Abacus Express Limited,No
Http://opendatacommunities.org/id/metropolitan-district-council/leeds,Leeds City Council,Childrens Services,Safeguarding Targeted & Specialist,Support Services,Legal Disbursements,411,30-Sep-2014,1409-00113,231.50,R,Abacus Express Limited,No
Http://opendatacommunities.org/id/metropolitan-district-council/leeds,Leeds City Council,Childrens Services,Safeguarding Targeted & Specialist,Support Services,Legal Disbursements,411,26-Sep-2014,1409-00114,25.00,R,Abacus Express Limited,No
Http://opendatacommunities.org/id/metropolitan-district-council/leeds,Leeds City Council,Childrens Services,Safeguarding Targeted & Specialist,Support Services,Legal Disbursements,411,30-Sep-2014,1409-00115,25.00,R,Abacus Express Limited,No
Http://opendatacommunities.org/id/metropolitan-district-council/leeds,Leeds City Council,Childrens Services,Safeguarding Targeted & Specialist,Support Services,Legal Disbursements,411,24-Sep-2014,1409-00116,26.77,R,Abacus Express Limited,No
Http://opendatacommunities.org/id/metropolitan-district-council/leeds,Leeds City Council,City Development,Highways,Supplies and Services,Computer Software & Equipment,214,19-Sep-2014,1409-00117,20.96,R,Abacus Express Limited,No
Http://opendatacommunities.org/id/metropolitan-district-council/leeds,Leeds City Council,City Development,Planning & Sustainable Development,Supplies and Services,Other Hired And Contracted Services,265,05-Sep-2014,1409-00118,14.51,R,Abacus Express Limited,No
Http://opendatacommunities.org/id/metropolitan-district-council/leeds,Leeds City Council,City Development,Planning & Sustainable Development,Supplies and Services,Other Hired And Contracted Services,265,19-Sep-2014,1409-00119,14.51,R,Abacus Express Limited,No
Http://opendatacommunities.org/id/metropolitan-district-council/leeds,Leeds City Council,Central & Corporate,Leeds Shared Services,Supplies and Services,Computer Software & Equipment,214,18-Sep-2014,1409-00120,8250.00,R,Abacus Software Ltd,No
Http://opendatacommunities.org/id/metropolitan-district-council/leeds,Leeds City Council,Adult Social Care,Services For Older People - 65 And Over,Third Party Payments,Nursing Care Dementia,574,24-Sep-2014,1409-00121,2295.88,R,Abbendon Nursing Home,No
Http://opendatacommunities.org/id/metropolitan-district-council/leeds,Leeds City Council,Childrens Services,Safeguarding Targeted & Specialist  ,Supplies and Services,Other Hired And Contracted Services,265,06-Aug-2014,1409-00122,3.20,R,Abbey House Museum,Yes
Http://opendatacommunities.org/id/metropolitan-district-council/leeds,Leeds City Council,Childrens Services,Safeguarding Targeted & Specialist  ,Supplies and Services,Subsistence,256,06-Aug-2014,1409-00123,5.80,R,Abbey House Museum Caf,Yes
Http://opendatacommunities.org/id/metropolitan-district-council/leeds,Leeds City Council,Childrens Services,Safeguarding Targeted & Specialist  ,Supplies and Services,Subsistence,256,09-Aug-2014,1409-00124,6.95,R,Abbey House Museum Caf,Yes
Http://opendatacommunities.org/id/metropolitan-district-council/leeds,Leeds City Council,Environment & Housing,Environmental Action (South),Supplies and Services,Other Hired And Contracted Services,265,05-Sep-2014,1409-00125,36.86,R,Abbey House Veterinary Hospital,No
Http://opendatacommunities.org/id/metropolitan-district-council/leeds,Leeds City Council,Environment & Housing,Environmental Action (South),Supplies and Services,Other Hired And Contracted Services,265,11-Sep-2014,1409-00126,21.24,R,Abbey House Veterinary Hospital,No
Http://opendatacommunities.org/id/metropolitan-district-council/leeds,Leeds City Council,Environment & Housing,Environmental Action (South),Supplies and Services,Other Hired And Contracted Services,265,26-Sep-2014,1409-00127,43.64,R,Abbey House Veterinary Hospital,No
Http://opendatacommunities.org/id/metropolitan-district-council/leeds,Leeds City Council,Adult Social Care,Services For Older People - 65 And Over,Third Party Payments,Residential Care Dementia,571,24-Sep-2014,1409-00128,1131.84,R,Abbey Lea Residential Care Home,No
Http://opendatacommunities.org/id/metropolitan-district-council/leeds,Leeds City Council as Accountable Body,Social Services Pooled Budgets,Jcs For People With Learning Disabilitie,Transfer Payments,Personal Budgets,627,24-Sep-2014,1409-00129,379.28,R,REDACTED PERSONAL DATA,No
Http://opendatacommunities.org/id/metropolitan-district-council/leeds,Leeds City Council,Childrens Services,Learning Skills & Universal,Third Party Payments,Services Rendered By Other Organisations,511,16-Sep-2014,1409-00130,6984.00,R,Abc Daycare And Ozone Out Of School,No
Http://opendatacommunities.org/id/metropolitan-district-council/leeds,Leeds City Council,Childrens Services,Learning Skills & Universal,Third Party Payments,Services Rendered By Other Organisations,511,12-Sep-2014,1409-00131,6156.00,R,Abc Daycare And Ozone Out Of School,No
Http://opendatacommunities.org/id/metropolitan-district-council/leeds,Leeds City Council,Childrens Services,Learning Skills & Universal,Third Party Payments,Services Rendered By Other Organisations,511,16-Sep-2014,1409-00132,2328.00,R,Abc Nursery At Lufc,No
Http://opendatacommunities.org/id/metropolitan-district-council/leeds,Leeds City Council,Childrens Services,Learning Skills & Universal,Third Party Payments,Services Rendered By Other Organisations,511,12-Sep-2014,1409-00133,6840.00,R,Abc Nursery At Lufc,No
Http://opendatacommunities.org/id/metropolitan-district-council/leeds,Leeds City Council,Adult Social Care,Services For Older People - 65 And Over,Third Party Payments,Nursing Home,570,24-Sep-2014,1409-00134,29913.14,R,Aberford Hall,No
Http://opendatacommunities.org/id/metropolitan-district-council/leeds,Leeds City Council,Adult Social Care,Services For Older People - 65 And Over,Third Party Payments,Nursing Care Dementia,574,24-Sep-2014,1409-00135,1836.00,R,Aberford Hall,No
Http://opendatacommunities.org/id/metropolitan-district-council/leeds,Leeds City Council,Adult Social Care,Services For Older People - 65 And Over,Third Party Payments,Residential,580,24-Sep-2014,1409-00136,14723.63,R,Aberford Hall,No
Http://opendatacommunities.org/id/metropolitan-district-council/leeds,Leeds City Council,Central & Corporate,Commercial Services Trading Services,Supplies and Services,Operational Materials,205,30-Sep-2014,1409-00137,12.50,R,Abi Garage Doors Ltd,No
Http://opendatacommunities.org/id/metropolitan-district-council/leeds,Leeds City Council,Central & Corporate,Commercial Services Trading Services,Supplies and Services,Operational Materials,205,30-Sep-2014,1409-00138,225.00,R,Abi Garage Doors Ltd,No
Http://opendatacommunities.org/id/metropolitan-district-council/leeds,Leeds City Council,Central & Corporate,Commercial Services Trading Services,Supplies and Services,Operational Materials,205,12-Sep-2014,1409-00139,225.00,R,Abi Garage Doors Ltd,No
Http://opendatacommunities.org/id/metropolitan-district-council/leeds,Leeds City Council,Central & Corporate,Commercial Services Trading Services,Supplies and Services,Operational Materials,205,30-Sep-2014,1409-00140,50.00,R,Abi Garage Doors Ltd,No
Http://opendatacommunities.org/id/metropolitan-district-council/leeds,Leeds City Council,Childrens Services,Safeguarding Targeted & Specialist,Transport,Car & Motorcycle Allowances,311,29-Sep-2014,1409-00141,12.15,R,REDACTED PERSONAL DATA,No
Http://opendatacommunities.org/id/metropolitan-district-council/leeds,Leeds City Council,Childrens Services,Safeguarding Targeted & Specialist,Supplies and Services,Food & Drink,231,29-Sep-2014,1409-00142,13.64,R,REDACTED PERSONAL DATA,No
Http://opendatacommunities.org/id/metropolitan-district-council/leeds,Leeds City Council,Childrens Services,Safeguarding Targeted & Specialist,Supplies and Services,Telephones,213,29-Sep-2014,1409-00143,2.00,R,REDACTED PERSONAL DATA,No
Http://opendatacommunities.org/id/metropolitan-district-council/leeds,Leeds City Council,Childrens Services,Safeguarding Targeted & Specialist,Supplies and Services,Postages,212,29-Sep-2014,1409-00144,0.50,R,REDACTED PERSONAL DATA,No
Http://opendatacommunities.org/id/metropolitan-district-council/leeds,Leeds City Council as Accountable Body,Social Services Pooled Budgets,Jcs For People With Learning Disabilitie,Transfer Payments,Personal Budgets,627,24-Sep-2014,1409-00145,1269.12,R,REDACTED PERSONAL DATA,No
Http://opendatacommunities.org/id/metropolitan-district-council/leeds,Leeds City Council,Childrens Services,Learning Skills & Universal,Supplies and Services,Bought In Professional Services,277,18-Sep-2014,1409-00146,14733.66,R,Academic Appointments Ltd,No
Http://opendatacommunities.org/id/metropolitan-district-council/leeds,Leeds City Council,Childrens Services,Partnership Development & Leadership,Employees,Training Costs,71,25-Sep-2014,1409-00147,39.46,R,Academic Appointments Ltd,No
Http://opendatacommunities.org/id/metropolitan-district-council/leeds,Leeds City Council,Childrens Services,Safeguarding Targeted & Specialist,Employees,Agency Staff,8,19-Sep-2014,1409-00148,1846.86,R,Academic Appointments Ltd,No
Http://opendatacommunities.org/id/metropolitan-district-council/leeds,Leeds City Council,Childrens Services,Safeguarding Targeted & Specialist,Employees,Agency Staff,8,05-Sep-2014,1409-00149,1923.39,R,Academic Appointments Ltd,No
Http://opendatacommunities.org/id/metropolitan-district-council/leeds,Leeds City Council,Childrens Services,Safeguarding Targeted & Specialist,Employees,Agency Staff,8,01-Sep-2014,1409-00150,244.69,R,Academic Appointments Ltd,No
Http://opendatacommunities.org/id/metropolitan-district-council/leeds,Leeds City Council,Environment & Housing,Statutory Housing,Supplies and Services,Other Hired And Contracted Services,265,05-Sep-2014,1409-00151,161.60,R,Accent Housing,No
Http://opendatacommunities.org/id/metropolitan-district-council/leeds,Leeds City Council,Central & Corporate,Information Technology,Employees,Agency Staff,8,09-Sep-2014,1409-00152,4360.00,R,Access Computer Consulting Plc,No
Http://opendatacommunities.org/id/metropolitan-district-council/leeds,Leeds City Council,Central & Corporate,Commercial Services Trading Services,Supplies and Services,Operational Materials,205,02-Sep-2014,1409-00153,16.83,R,Access Locksmiths (Leeds) Limited,No
Http://opendatacommunities.org/id/metropolitan-district-council/leeds,Leeds City Council,Central & Corporate,Commercial Services Trading Services,Supplies and Services,Operational Materials,205,02-Sep-2014,1409-00154,14.83,R,Access Locksmiths (Leeds) Limited,No
Http://opendatacommunities.org/id/metropolitan-district-council/leeds,Leeds City Council,Central & Corporate,Commercial Services Trading Services,Supplies and Services,Operational Materials,205,12-Sep-2014,1409-00155,52.56,R,Access Locksmiths (Leeds) Limited,No
Http://opendatacommunities.org/id/metropolitan-district-council/leeds,Leeds City Council,Central & Corporate,Commercial Services Trading Services,Supplies and Services,Operational Materials,205,12-Sep-2014,1409-00156,101.88,R,Access Locksmiths (Leeds) Limited,No
Http://opendatacommunities.org/id/metropolitan-district-council/leeds,Leeds City Council,Central & Corporate,Commercial Services Trading Services,Supplies and Services,Operational Materials,205,12-Sep-2014,1409-00157,31.57,R,Access Locksmiths (Leeds) Limited,No
Http://opendatacommunities.org/id/metropolitan-district-council/leeds,Leeds City Council,Central & Corporate,Commercial Services Trading Services,Supplies and Services,Operational Materials,205,30-Sep-2014,1409-00158,10.49,R,Access Locksmiths (Leeds) Limited,No
Http://opendatacommunities.org/id/metropolitan-district-council/leeds,Leeds City Council,Central & Corporate,Commercial Services Trading Services,Supplies and Services,Operational Materials,205,30-Sep-2014,1409-00159,49.83,R,Access Locksmiths (Leeds) Limited,No
Http://opendatacommunities.org/id/metropolitan-district-council/leeds,Leeds City Council,Central & Corporate,Commercial Services Trading Services,Supplies and Services,Operational Materials,205,30-Sep-2014,1409-00160,17.52,R,Access Locksmiths (Leeds) Limited,No
Http://opendatacommunities.org/id/metropolitan-district-council/leeds,Leeds City Council,Central & Corporate,Commercial Services Trading Services,Supplies and Services,Operational Materials,205,30-Sep-2014,1409-00161,15.15,R,Access Locksmiths (Leeds) Limited,No
Http://opendatacommunities.org/id/metropolitan-district-council/leeds,Leeds City Council,Central & Corporate,Commercial Services Trading Services,Supplies and Services,Operational Materials,205,30-Sep-2014,1409-00162,10.33,R,Access Locksmiths (Leeds) Limited,No
Http://opendatacommunities.org/id/metropolitan-district-council/leeds,Leeds City Council,Central & Corporate,Commercial Services Trading Services,Supplies and Services,Operational Materials,205,30-Sep-2014,1409-00163,9.18,R,Access Locksmiths (Leeds) Limited,No
Http://opendatacommunities.org/id/metropolitan-district-council/leeds,Leeds City Council,Central & Corporate,Commercial Services Trading Services,Supplies and Services,Operational Materials,205,30-Sep-2014,1409-00164,32.11,R,Access Locksmiths (Leeds) Limited,No
Http://opendatacommunities.org/id/metropolitan-district-council/leeds,Leeds City Council,Environment & Housing,Hra,Supplies and Services,Office Consumables,210,26-Sep-2014,1409-00165,103.70,R,Access Locksmiths (Leeds) Limited,No
Http://opendatacommunities.org/id/metropolitan-district-council/leeds,Leeds City Council,Environment & Housing,Hra,Supplies and Services,Operational Materials,205,29-Sep-2014,1409-00166,5.00,R,Access Locksmiths (Leeds) Limited,No
Http://opendatacommunities.org/id/metropolitan-district-council/leeds,Leeds City Council,Environment & Housing,Hra,Supplies and Services,Operational Materials,205,26-Sep-2014,1409-00167,70.74,R,Access Locksmiths (Leeds) Limited,No
Http://opendatacommunities.org/id/metropolitan-district-council/leeds,Leeds City Council,Environment & Housing,Hra,Supplies and Services,Operational Materials,205,17-Sep-2014,1409-00168,5.00,R,Access Locksmiths (Leeds) Limited,No
Http://opendatacommunities.org/id/metropolitan-district-council/leeds,Leeds City Council,Environment & Housing,Hra,Supplies and Services,Operational Materials,205,02-Sep-2014,1409-00169,311.10,R,Access Locksmiths (Leeds) Limited,No
Http://opendatacommunities.org/id/metropolitan-district-council/leeds,Leeds City Council,Environment & Housing,Hra,Premises,General Maintenance,104,30-Sep-2014,1409-00170,72.34,R,Access Locksmiths (Leeds) Limited,No
Http://opendatacommunities.org/id/metropolitan-district-council/leeds,Leeds City Council,Environment & Housing,Hra,Premises,General Maintenance,104,30-Sep-2014,1409-00171,85.00,R,Access Locksmiths (Leeds) Limited,No
Http://opendatacommunities.org/id/metropolitan-district-council/leeds,Leeds City Council,Environment & Housing,Hra,Premises,General Maintenance,104,02-Sep-2014,1409-00172,210.40,R,Access Locksmiths (Leeds) Limited,No
Http://opendatacommunities.org/id/metropolitan-district-council/leeds,Leeds City Council,Central & Corporate,Commercial Services Trading Services,Supplies and Services,Operational Materials,205,30-Sep-2014,1409-00173,96.00,R,Access Opening Systems Limited,No
Http://opendatacommunities.org/id/metropolitan-district-council/leeds,Leeds City Council,Central & Corporate,Commercial Services Trading Services,Supplies and Services,Operational Materials,205,30-Sep-2014,1409-00174,112.00,R,Access Opening Systems Limited,No
Http://opendatacommunities.org/id/metropolitan-district-council/leeds,Leeds City Council,Central & Corporate,Commercial Services Trading Services,Supplies and Services,Operational Materials,205,30-Sep-2014,1409-00175,30.00,R,Access Opening Systems Limited,No
Http://opendatacommunities.org/id/metropolitan-district-council/leeds,Leeds City Council,Central & Corporate,Commercial Services Trading Services,Supplies and Services,Operational Materials,205,30-Sep-2014,1409-00176,875.00,R,Access Opening Systems Limited,No
Http://opendatacommunities.org/id/metropolitan-district-council/leeds,Leeds City Council,Central & Corporate,Commercial Services Trading Services,Supplies and Services,Operational Materials,205,30-Sep-2014,1409-00177,155.98,R,Access Opening Systems Limited,No
Http://opendatacommunities.org/id/metropolitan-district-council/leeds,Leeds City Council,Central & Corporate,Commercial Services Trading Services,Supplies and Services,Operational Materials,205,30-Sep-2014,1409-00178,580.00,R,Access Opening Systems Limited,No
Http://opendatacommunities.org/id/metropolitan-district-council/leeds,Leeds City Council,Central & Corporate,Commercial Services Trading Services,Supplies and Services,Operational Materials,205,05-Sep-2014,1409-00179,162.50,R,Access Opening Systems Limited,No
Http://opendatacommunities.org/id/metropolitan-district-council/leeds,Leeds City Council,Central & Corporate,Commercial Services Trading Services,Supplies and Services,Operational Materials,205,05-Sep-2014,1409-00180,85.00,R,Access Opening Systems Limited,No
Http://opendatacommunities.org/id/metropolitan-district-council/leeds,Leeds City Council,Central & Corporate,Commercial Services Trading Services,Supplies and Services,Operational Materials,205,02-Sep-2014,1409-00181,25.00,R,Access Opening Systems Limited,No
Http://opendatacommunities.org/id/metropolitan-district-council/leeds,Leeds City Council,Central & Corporate,Commercial Services Trading Services,Supplies and Services,Operational Materials,205,10-Sep-2014,1409-00182,1550.00,R,Access Opening Systems Limited,No
Http://opendatacommunities.org/id/metropolitan-district-council/leeds,Leeds City Council,City Development,Recreation,Supplies and Services,Other Hired And Contracted Services,265,12-Sep-2014,1409-00183,139.50,R,Ace Container Services Limited,No
Http://opendatacommunities.org/id/metropolitan-district-council/leeds,Leeds City Council,City Development,Recreation,Supplies and Services,Other Hired And Contracted Services,265,30-Sep-2014,1409-00184,135.00,R,Ace Container Services Limited,No
Http://opendatacommunities.org/id/metropolitan-district-council/leeds,Leeds City Council,City Development,Recreation,Transport,External Hire -Occasional,304,26-Sep-2014,1409-00185,124.50,R,Ace Container Services Limited,No
Http://opendatacommunities.org/id/metropolitan-district-council/leeds,Leeds City Council,Central & Corporate,Commercial Services General Fund,Transport,Private Hire,360,03-Sep-2014,1409-00186,766.00,R,Ace Taxis Wakefield Ltd,No
Http://opendatacommunities.org/id/metropolitan-district-council/leeds,Leeds City Council,Childrens Services,Safeguarding Targeted & Specialist,Third Party Payments,SEN Placements,566,26-Sep-2014,1409-00187,18138.66,R,Acorn Care And Education Ltd,No
Http://opendatacommunities.org/id/metropolitan-district-council/leeds,Leeds City Council,Childrens Services,Safeguarding Targeted & Specialist,Third Party Payments,Independent Fostering Agencies,509,05-Sep-2014,1409-00188,5181.34,R,Acorn House (Fostering Services) Ltd,No
Http://opendatacommunities.org/id/metropolitan-district-council/leeds,Leeds City Council,Childrens Services,Safeguarding Targeted & Specialist,Third Party Payments,Independent Fostering Agencies,509,12-Sep-2014,1409-00189,5181.34,R,Acorn House (Fostering Services) Ltd,No
Http://opendatacommunities.org/id/metropolitan-district-council/leeds,Leeds City Council,Adult Social Care,Other Adult Services,Third Party Payments,Residential - Drugs & Alcohol,583,24-Sep-2014,1409-00190,1788.00,R,Acorn Services,No
Http://opendatacommunities.org/id/metropolitan-district-council/leeds,Leeds City Council,Childrens Services,Learning Skills & Universal,Third Party Payments,Services Rendered By Other Organisations,511,12-Sep-2014,1409-00191,12809.04,R,Acorns Nursery,No
Http://opendatacommunities.org/id/metropolitan-district-council/leeds,Leeds City Council,Environment & Housing,Environmental Health,Supplies and Services,Computer Software & Equipment,214,25-Sep-2014,1409-00192,740.00,R,Acoustic Calibration Services Limited,No
Http://opendatacommunities.org/id/metropolitan-district-council/leeds,Leeds City Council,Adult Social Care,Services For Adults Under 65 Mental/Dis,Third Party Payments,Residential,580,24-Sep-2014,1409-00193,4242.64,R,Acre Green,No
Http://opendatacommunities.org/id/metropolitan-district-council/leeds,Leeds City Council,Adult Social Care,Services For Older People - 65 And Over,Third Party Payments,Residential,580,24-Sep-2014,1409-00194,11320.52,R,Acre Green,No
Http://opendatacommunities.org/id/metropolitan-district-council/leeds,Leeds City Council,Adult Social Care,Services For Older People - 65 And Over,Third Party Payments,Residential Care Dementia,571,24-Sep-2014,1409-00195,1336.12,R,Acre Green,No
Http://opendatacommunities.org/id/metropolitan-district-council/leeds,Leeds City Council,Adult Social Care,Services For Older People - 65 And Over,Third Party Payments,Nursing Home,570,24-Sep-2014,1409-00196,19261.70,R,Acre Green,No
Http://opendatacommunities.org/id/metropolitan-district-council/leeds,Leeds City Council,Childrens Services,Learning Skills & Universal,Third Party Payments,Services Rendered By Other Organisations,511,12-Sep-2014,1409-00197,10260.00,R,Acre Wood Day Nursery,No
Http://opendatacommunities.org/id/metropolitan-district-council/leeds,Leeds City Council,Childrens Services,Safeguarding Targeted & Specialist,Third Party Payments,Independent Fostering Agencies,509,03-Sep-2014,1409-00198,4776.48,R,Action For Children,No
Http://opendatacommunities.org/id/metropolitan-district-council/leeds,Leeds City Council,Childrens Services,Safeguarding Targeted & Specialist,Third Party Payments,Independent Fostering Agencies,509,03-Sep-2014,1409-00199,4776.48,R,Action For Children,No
Http://opendatacommunities.org/id/metropolitan-district-council/leeds,Leeds City Council,Childrens Services,Safeguarding Targeted & Specialist,Third Party Payments,Independent Fostering Agencies,509,03-Sep-2014,1409-00200,5163.67,R,Action For Children,No
Http://opendatacommunities.org/id/metropolitan-district-council/leeds,Leeds City Council,Childrens Services,Safeguarding Targeted & Specialist,Third Party Payments,Interagency Adoptions,559,12-Sep-2014,1409-00201,750.00,R,Action For Children,No
Http://opendatacommunities.org/id/metropolitan-district-council/leeds,Leeds City Council,Central & Corporate,Executive Support,Supplies and Services,Publication And Promotion,267,08-Sep-2014,1409-00202,175.00,R,Active Hire (Leeds) Ltd,No
Http://opendatacommunities.org/id/metropolitan-district-council/leeds,Leeds City Council,Childrens Services,Learning Skills & Universal,Third Party Payments,Services Rendered By Other Organisations,511,16-Sep-2014,1409-00203,3492.00,R,Active Kids Day Nursery,No
Http://opendatacommunities.org/id/metropolitan-district-council/leeds,Leeds City Council,Childrens Services,Learning Skills & Universal,Third Party Payments,Services Rendered By Other Organisations,511,12-Sep-2014,1409-00204,8892.00,R,Active Kids Day Nursery,No
Http://opendatacommunities.org/id/metropolitan-district-council/leeds,Leeds City Council,Environment & Housing,Parks & Countryside,Supplies and Services,Resaleable Materials,204,11-Sep-2014,1409-00205,155.00,R,Acushnet Europe Limited,No
Http://opendatacommunities.org/id/metropolitan-district-council/leeds,Leeds City Council as Accountable Body,Social Services Pooled Budgets,Leeds Community Equip Store Pooled Budgt,Supplies and Services,Other Equipment,203,02-Sep-2014,1409-00206,65.00,R,Acute Sales Limited,No
Http://opendatacommunities.org/id/metropolitan-district-council/leeds,Leeds City Council,Environment & Housing,Parks & Countryside,Supplies and Services,Bought In Professional Services,277,18-Sep-2014,1409-00207,5841.58,R,REDACTED COMMERCIAL CONFIDENTIALITY,No
Http://opendatacommunities.org/id/metropolitan-district-council/leeds,Leeds City Council,Central & Corporate,Support And Facilities General Fund,Supplies and Services,Other Hired And Contracted Services,265,26-Sep-2014,1409-00208,150.24,R,Ad3 Envelope Printers Limited,No
Http://opendatacommunities.org/id/metropolitan-district-council/leeds,Leeds City Council,Adult Social Care,Services For Older People Under 65 P/Dis,Transfer Payments,Personalised Budgets,627,24-Sep-2014,1409-00209,748.00,R,REDACTED PERSONAL DATA,No
Http://opendatacommunities.org/id/metropolitan-district-council/leeds,Leeds City Council as Accountable Body,Social Services Pooled Budgets,Jcs For People With Learning Disabilitie,Transfer Payments,Personal Budgets,627,24-Sep-2014,1409-00210,1750.52,R,REDACTED PERSONAL DATA,No
Http://opendatacommunities.org/id/metropolitan-district-council/leeds,Leeds City Council,Adult Social Care,Services For Older People Under 65 P/Dis,Transfer Payments,Personalised Budgets,627,24-Sep-2014,1409-00211,576.00,R,REDACTED PERSONAL DATA,No
Http://opendatacommunities.org/id/metropolitan-district-council/leeds,Leeds City Council,Adult Social Care,Services For Adults Under 65 Mental/Dis,Transfer Payments,Direct Payments,626,24-Sep-2014,1409-00212,444.40,R,REDACTED PERSONAL DATA,No
Http://opendatacommunities.org/id/metropolitan-district-council/leeds,Leeds City Council as Accountable Body,Social Services Pooled Budgets,Jcs For People With Learning Disabilitie,Transfer Payments,Direct Payments,626,24-Sep-2014,1409-00213,859.60,R,REDACTED PERSONAL DATA,No
Http://opendatacommunities.org/id/metropolitan-district-council/leeds,Leeds City Council,Childrens Services,Learning Skills & Universal,Supplies and Services,Memberships,226,12-Sep-2014,1409-00214,30.00,R,Adamson Publishing Ltd,No
Http://opendatacommunities.org/id/metropolitan-district-council/leeds,Leeds City Council,Environment & Housing,Streetscene Environmental Services  ,Supplies and Services,Operational Materials,205,07-Aug-2014,1409-00215,310.86,R,Adbruf Ltd,Yes
Http://opendatacommunities.org/id/metropolitan-district-council/leeds,Leeds City Council,Childrens Services,Learning Skills & Universal,Supplies and Services,Conference Meetings,253,22-Sep-2014,1409-00216,416.00,R,Adcs,No
Http://opendatacommunities.org/id/metropolitan-district-council/leeds,Leeds City Council,Childrens Services,Safeguarding Targeted & Specialist,Third Party Payments,Interagency Adoptions,559,05-Sep-2014,1409-00217,750.00,R,Addictive Media,No
Http://opendatacommunities.org/id/metropolitan-district-council/leeds,Leeds City Council,Central & Corporate,Public Health,Third Party Payments,Public Health Commissioned Services,526,24-Sep-2014,1409-00218,6378.30,R,Addlestone Moumouris Orme Sixsmith,No
Http://opendatacommunities.org/id/metropolitan-district-council/leeds,Leeds City Council,Childrens Services,Learning Skills & Universal,Employees,Agency Staff,8,11-Sep-2014,1409-00219,489.17,R,Adecco Uk Ltd,No
Http://opendatacommunities.org/id/metropolitan-district-council/leeds,Leeds City Council,Childrens Services,Learning Skills & Universal,Employees,Agency Staff,8,11-Sep-2014,1409-00220,407.64,R,Adecco Uk Ltd,No
Http://opendatacommunities.org/id/metropolitan-district-council/leeds,Leeds City Council,Childrens Services,Learning Skills & Universal,Employees,Agency Staff,8,11-Sep-2014,1409-00221,407.64,R,Adecco Uk Ltd,No
Http://opendatacommunities.org/id/metropolitan-district-council/leeds,Leeds City Council,Childrens Services,Learning Skills & Universal,Employees,Agency Staff,8,11-Sep-2014,1409-00222,407.64,R,Adecco Uk Ltd,No
Http://opendatacommunities.org/id/metropolitan-district-council/leeds,Leeds City Council,Childrens Services,Learning Skills & Universal,Employees,Agency Staff,8,03-Sep-2014,1409-00223,407.64,R,Adecco Uk Ltd,No
Http://opendatacommunities.org/id/metropolitan-district-council/leeds,Leeds City Council,Strategic Accounts,Miscellaneous,Supplies and Services,Non-Recurring Grants,227,15-Sep-2014,1409-00224,330.00,R,Adel Parochial Church Council,No
Http://opendatacommunities.org/id/metropolitan-district-council/leeds,Leeds City Council,Childrens Services,Learning Skills & Universal,Third Party Payments,Services Rendered By Voluntary Sector,505,16-Sep-2014,1409-00225,3492.00,R,Adel Pre School,No
Http://opendatacommunities.org/id/metropolitan-district-council/leeds,Leeds City Council,Childrens Services,Learning Skills & Universal,Third Party Payments,Services Rendered By Voluntary Sector,505,12-Sep-2014,1409-00226,10944.00,R,Adel Pre School,No
Http://opendatacommunities.org/id/metropolitan-district-council/leeds,Leeds City Council,Adult Social Care,Services For Older People Under 65 P/Dis,Transfer Payments,Personalised Budgets,627,24-Sep-2014,1409-00227,1866.32,R,REDACTED PERSONAL DATA,No
Http://opendatacommunities.org/id/metropolitan-district-council/leeds,Leeds City Council,Childrens Services,Learning Skills & Universal,Third Party Payments,Services Rendered By Other Organisations,511,12-Sep-2014,1409-00228,684.00,R,REDACTED PERSONAL DATA,No
Http://opendatacommunities.org/id/metropolitan-district-council/leeds,Leeds City Council,City Development,Libraries  Arts & Heritage,Supplies and Services,Other Hired And Contracted Services,265,03-Sep-2014,1409-00229,1350.00,R,Adelle Stripe,No
Http://opendatacommunities.org/id/metropolitan-district-council/leeds,Leeds City Council,Adult Social Care,Services For Older People - 65 And Over,Third Party Payments,Nursing Home,570,24-Sep-2014,1409-00230,1031.72,R,Aden House,No
Http://opendatacommunities.org/id/metropolitan-district-council/leeds,Leeds City Council,Adult Social Care,Services For Older People - 65 And Over,Third Party Payments,Residential Care Dementia,571,24-Sep-2014,1409-00231,1284.56,R,Aden House,No
Http://opendatacommunities.org/id/metropolitan-district-council/leeds,Leeds City Council,Central & Corporate,Commercial Services Trading Services,Supplies and Services,Operational Materials,205,30-Sep-2014,1409-00232,81.36,R,Adi Global,No
Http://opendatacommunities.org/id/metropolitan-district-council/leeds,Leeds City Council,Central & Corporate,Commercial Services Trading Services,Supplies and Services,Operational Materials,205,30-Sep-2014,1409-00233,314.86,R,Adi Global,No
Http://opendatacommunities.org/id/metropolitan-district-council/leeds,Leeds City Council,Central & Corporate,Commercial Services Trading Services,Supplies and Services,Operational Materials,205,30-Sep-2014,1409-00234,111.28,R,Adi Global,No
Http://opendatacommunities.org/id/metropolitan-district-council/leeds,Leeds City Council,Central & Corporate,Commercial Services Trading Services,Supplies and Services,Operational Materials,205,30-Sep-2014,1409-00235,234.00,R,Adi Global,No
Http://opendatacommunities.org/id/metropolitan-district-council/leeds,Leeds City Council,Central & Corporate,Commercial Services Trading Services,Supplies and Services,Operational Materials,205,30-Sep-2014,1409-00236,101.71,R,Adi Global,No
Http://opendatacommunities.org/id/metropolitan-district-council/leeds,Leeds City Council,Central & Corporate,Commercial Services Trading Services,Supplies and Services,Operational Materials,205,30-Sep-2014,1409-00237,51.32,R,Adi Global,No
Http://opendatacommunities.org/id/metropolitan-district-council/leeds,Leeds City Council,Central & Corporate,Commercial Services Trading Services,Supplies and Services,Operational Materials,205,30-Sep-2014,1409-00238,588.75,R,Adi Global,No
Http://opendatacommunities.org/id/metropolitan-district-council/leeds,Leeds City Council,Central & Corporate,Commercial Services Trading Services,Supplies and Services,Operational Materials,205,30-Sep-2014,1409-00239,77.52,R,Adi Global,No
Http://opendatacommunities.org/id/metropolitan-district-council/leeds,Leeds City Council,Central & Corporate,Commercial Services Trading Services,Supplies and Services,Operational Materials,205,12-Sep-2014,1409-00240,76.28,R,Adi Global,No
Http://opendatacommunities.org/id/metropolitan-district-council/leeds,Leeds City Council,Central & Corporate,Commercial Services Trading Services,Supplies and Services,Operational Materials,205,05-Sep-2014,1409-00241,120.78,R,Adi Global,No
Http://opendatacommunities.org/id/metropolitan-district-council/leeds,Leeds City Council,Central & Corporate,Commercial Services Trading Services,Supplies and Services,Operational Materials,205,05-Sep-2014,1409-00242,349.48,R,Adi Global,No
Http://opendatacommunities.org/id/metropolitan-district-council/leeds,Leeds City Council,Central & Corporate,Commercial Services Trading Services,Transport,Vehicle Spares,345,26-Sep-2014,1409-00243,40.00,R,Adm Car Audio,No
Http://opendatacommunities.org/id/metropolitan-district-council/leeds,Leeds City Council,Central & Corporate,Commercial Services Trading Services,Transport,Vehicle Spares,345,26-Sep-2014,1409-00244,55.00,R,Adm Car Audio,No
Http://opendatacommunities.org/id/metropolitan-district-council/leeds,Leeds City Council,Central & Corporate,Commercial Services Trading Services,Supplies and Services,Other Hired And Contracted Services,265,30-Sep-2014,1409-00245,310.00,R,Admas Limited,No
Http://opendatacommunities.org/id/metropolitan-district-council/leeds,Leeds City Council,Central & Corporate,Commercial Services Trading Services,Supplies and Services,Other Hired And Contracted Services,265,30-Sep-2014,1409-00246,180.00,R,Admas Limited,No
Http://opendatacommunities.org/id/metropolitan-district-council/leeds,Leeds City Council,Central & Corporate,Commercial Services Trading Services,Supplies and Services,Other Hired And Contracted Services,265,30-Sep-2014,1409-00247,180.00,R,Admas Limited,No
Http://opendatacommunities.org/id/metropolitan-district-council/leeds,Leeds City Council,Childrens Services,Safeguarding Targeted & Specialist,Third Party Payments,Independent Fostering Agencies,509,26-Sep-2014,1409-00248,1440.00,R,Adolescent And Childrens Trust,No
Http://opendatacommunities.org/id/metropolitan-district-council/leeds,Leeds City Council,Childrens Services,Safeguarding Targeted & Specialist,Third Party Payments,Independent Fostering Agencies,509,05-Sep-2014,1409-00249,3115.50,R,Adolescent And Childrens Trust,No
Http://opendatacommunities.org/id/metropolitan-district-council/leeds,Leeds City Council,Childrens Services,Safeguarding Targeted & Specialist,Third Party Payments,Independent Fostering Agencies,509,05-Sep-2014,1409-00250,2959.73,R,Adolescent And Childrens Trust,No
Http://opendatacommunities.org/id/metropolitan-district-council/leeds,Leeds City Council,Childrens Services,Safeguarding Targeted & Specialist,Third Party Payments,Interagency Adoptions,559,05-Sep-2014,1409-00251,670.25,R,Adoption Uk,No
Http://opendatacommunities.org/id/metropolitan-district-council/leeds,Leeds City Council,Central & Corporate,Commercial Services Trading Services,Supplies and Services,Other Hired And Contracted Services,265,02-Sep-2014,1409-00252,625.00,R,Adrian Freeman T/A Beacon,No
Http://opendatacommunities.org/id/metropolitan-district-council/leeds,Leeds City Council,Central & Corporate,Commercial Services Trading Services,Supplies and Services,Other Hired And Contracted Services,265,08-Sep-2014,1409-00253,513.00,R,Adrian Freeman T/A Beacon,No
Http://opendatacommunities.org/id/metropolitan-district-council/leeds,Leeds City Council,Central & Corporate,Commercial Services Trading Services,Supplies and Services,Other Hired And Contracted Services,265,16-Sep-2014,1409-00254,568.50,R,Adrian Freeman T/A Beacon,No
Http://opendatacommunities.org/id/metropolitan-district-council/leeds,Leeds City Council,Central & Corporate,Commercial Services Trading Services,Supplies and Services,Other Hired And Contracted Services,265,08-Sep-2014,1409-00255,466.50,R,Adrian Freeman T/A Beacon,No
Http://opendatacommunities.org/id/metropolitan-district-council/leeds,Leeds City Council,Central & Corporate,Commercial Services Trading Services,Supplies and Services,Other Hired And Contracted Services,265,16-Sep-2014,1409-00256,709.00,R,Adrian Freeman T/A Beacon,No
Http://opendatacommunities.org/id/metropolitan-district-council/leeds,Leeds City Council,Central & Corporate,Commercial Services Trading Services,Supplies and Services,Other Hired And Contracted Services,265,16-Sep-2014,1409-00257,419.00,R,Adrian Freeman T/A Beacon,No
Http://opendatacommunities.org/id/metropolitan-district-council/leeds,Leeds City Council,Central & Corporate,Commercial Services Trading Services,Supplies and Services,Other Hired And Contracted Services,265,16-Sep-2014,1409-00258,563.20,R,Adrian Freeman T/A Beacon,No
Http://opendatacommunities.org/id/metropolitan-district-council/leeds,Leeds City Council,Central & Corporate,Commercial Services Trading Services,Supplies and Services,Other Hired And Contracted Services,265,08-Sep-2014,1409-00259,505.30,R,Adrian Freeman T/A Beacon,No
Http://opendatacommunities.org/id/metropolitan-district-council/leeds,Leeds City Council as Accountable Body,Social Services Pooled Budgets,Jcs For People With Learning Disabilitie,Third Party Payments,Residential,580,11-Sep-2014,1409-00260,39720.48,R,Adrian House,No
Http://opendatacommunities.org/id/metropolitan-district-council/leeds,Leeds City Council,Adult Social Care,Services For Older People Under 65 P/Dis,Transfer Payments,Personalised Budgets,627,24-Sep-2014,1409-00261,312.00,R,REDACTED PERSONAL DATA,No
Http://opendatacommunities.org/id/metropolitan-district-council/leeds,Leeds City Council,Childrens Services,Learning Skills & Universal,Third Party Payments,Services Rendered By Other Organisations,511,16-Sep-2014,1409-00262,1746.00,R,REDACTED PERSONAL DATA,No
Http://opendatacommunities.org/id/metropolitan-district-council/leeds,Leeds City Council,Childrens Services,Learning Skills & Universal,Third Party Payments,Services Rendered By Other Organisations,511,12-Sep-2014,1409-00263,684.00,R,REDACTED PERSONAL DATA,No
Http://opendatacommunities.org/id/metropolitan-district-council/leeds,Leeds City Council,Adult Social Care,Roseville Enterprises,Supplies and Services,Operational Furniture And Equipment,203,22-Sep-2014,1409-00264,1425.40,R,Adt Fire And Security Plc,No
Http://opendatacommunities.org/id/metropolitan-district-council/leeds,Leeds City Council,Central & Corporate,Commercial Services Trading Services,Supplies and Services,Other Hired And Contracted Services,265,30-Sep-2014,1409-00265,1181.13,R,Adt Fire And Security Plc,No
Http://opendatacommunities.org/id/metropolitan-district-council/leeds,Leeds City Council,Central & Corporate,Commercial Services Trading Services,Premises,Maintenance Of Buildings,101,09-Sep-2014,1409-00266,138.57,R,Adt Fire And Security Plc,No
Http://opendatacommunities.org/id/metropolitan-district-council/leeds,Leeds City Council,Environment & Housing,Hra,Premises,Maintenance Of Buildings,101,22-Sep-2014,1409-00267,135.00,R,Adt Fire And Security Plc,No
Http://opendatacommunities.org/id/metropolitan-district-council/leeds,Leeds City Council,Environment & Housing,Parks & Countryside,Supplies and Services,Operational Materials,205,09-Sep-2014,1409-00268,140.00,R,Adt Fire And Security Plc,No
Http://opendatacommunities.org/id/metropolitan-district-council/leeds,Leeds City Council as Accountable Body,Social Services Pooled Budgets,Jcs For People With Learning Disabilitie,Third Party Payments,Home Care,568,10-Sep-2014,1409-00269,608.64,R,Adult Placement Services,No
Http://opendatacommunities.org/id/metropolitan-district-council/leeds,Leeds City Council as Accountable Body,Social Services Pooled Budgets,Jcs For People With Learning Disabilitie,Third Party Payments,Sheltered Accommodation,569,26-Sep-2014,1409-00270,1332.20,R,Adult Placement Services,No
Http://opendatacommunities.org/id/metropolitan-district-council/leeds,Leeds City Council,Adult Social Care,Services For Adults Under 65 Mental/Dis,Third Party Payments,Nursing Home,570,24-Sep-2014,1409-00271,1544.80,R,Adult Supported Living Ltd,No
Http://opendatacommunities.org/id/metropolitan-district-council/leeds,Leeds City Council,City Development,Recreation,Supplies and Services,External Audit Fees,261,05-Sep-2014,1409-00272,235.00,R,Advance Stocks Ltd,No
Http://opendatacommunities.org/id/metropolitan-district-council/leeds,Leeds City Council,Childrens Services,Safeguarding Targeted & Specialist,Support Services,Legal Disbursements,411,05-Sep-2014,1409-00273,72.25,R,Advanced Child Care Assessments Ltd,No
Http://opendatacommunities.org/id/metropolitan-district-council/leeds,Leeds City Council,Childrens Services,Safeguarding Targeted & Specialist,Support Services,Legal Disbursements,411,18-Sep-2014,1409-00274,2770.80,R,Advanced Child Care Assessments Ltd,No
Http://opendatacommunities.org/id/metropolitan-district-council/leeds,Leeds City Council,Central & Corporate,Commercial Services Trading Services,Supplies and Services,Operational Materials,205,30-Sep-2014,1409-00275,154.25,R,Advanced Labelling Limited,No
Http://opendatacommunities.org/id/metropolitan-district-council/leeds,Leeds City Council,Childrens Services,Safeguarding Targeted & Specialist,Third Party Payments,Services Rendered By Voluntary Sector,505,05-Sep-2014,1409-00276,465.95,R,Advantage Healthcare Group Ltd,No
Http://opendatacommunities.org/id/metropolitan-district-council/leeds,Leeds City Council,Childrens Services,Safeguarding Targeted & Specialist,Third Party Payments,Services Rendered By Voluntary Sector,505,05-Sep-2014,1409-00277,286.74,R,Advantage Healthcare Group Ltd,No
Http://opendatacommunities.org/id/metropolitan-district-council/leeds,Leeds City Council,Childrens Services,Safeguarding Targeted & Specialist,Third Party Payments,Services Rendered By Voluntary Sector,505,12-Sep-2014,1409-00278,1195.75,R,Advantage Healthcare Group Ltd,No
Http://opendatacommunities.org/id/metropolitan-district-council/leeds,Leeds City Council,Childrens Services,Safeguarding Targeted & Specialist,Third Party Payments,Services Rendered By Voluntary Sector,505,17-Sep-2014,1409-00279,1653.24,R,Advantage Healthcare Group Ltd,No
Http://opendatacommunities.org/id/metropolitan-district-council/leeds,Leeds City Council as Accountable Body,Social Services Pooled Budgets,Jcs For People With Learning Disabilitie,Third Party Payments,Home Care,568,30-Sep-2014,1409-00280,3244.23,R,Advantage Healthcare Group Ltd,No
Http://opendatacommunities.org/id/metropolitan-district-council/leeds,Leeds City Council as Accountable Body,Social Services Pooled Budgets,Jcs For People With Learning Disabilitie,Third Party Payments,Home Care,568,15-Sep-2014,1409-00281,3146.95,R,Advantage Healthcare Group Ltd,No
Http://opendatacommunities.org/id/metropolitan-district-council/leeds,Leeds City Council as Accountable Body,Social Services Pooled Budgets,Jcs For People With Learning Disabilitie,Third Party Payments,Home Care,568,15-Sep-2014,1409-00282,4571.48,R,Advantage Healthcare Group Ltd,No
Http://opendatacommunities.org/id/metropolitan-district-council/leeds,Leeds City Council as Accountable Body,Social Services Pooled Budgets,Jcs For People With Learning Disabilitie,Third Party Payments,Home Care,568,26-Sep-2014,1409-00283,317.60,R,Advantage Healthcare Group Ltd,No
Http://opendatacommunities.org/id/metropolitan-district-council/leeds,Leeds City Council as Accountable Body,Social Services Pooled Budgets,Jcs For People With Learning Disabilitie,Third Party Payments,Home Care,568,12-Sep-2014,1409-00284,647.80,R,Advantage Healthcare Group Ltd,No
Http://opendatacommunities.org/id/metropolitan-district-council/leeds,Leeds City Council as Accountable Body,Social Services Pooled Budgets,Jcs For People With Learning Disabilitie,Third Party Payments,Home Care,568,12-Sep-2014,1409-00285,3269.37,R,Advantage Healthcare Group Ltd,No
Http://opendatacommunities.org/id/metropolitan-district-council/leeds,Leeds City Council as Accountable Body,Social Services Pooled Budgets,Jcs For People With Learning Disabilitie,Third Party Payments,Home Care,568,12-Sep-2014,1409-00286,169.75,R,Advantage Healthcare Group Ltd,No
Http://opendatacommunities.org/id/metropolitan-district-council/leeds,Leeds City Council as Accountable Body,Social Services Pooled Budgets,Jcs For People With Learning Disabilitie,Third Party Payments,Home Care,568,09-Sep-2014,1409-00287,3929.82,R,Advantage Healthcare Group Ltd,No
Http://opendatacommunities.org/id/metropolitan-district-council/leeds,Leeds City Council as Accountable Body,Social Services Pooled Budgets,Jcs For People With Learning Disabilitie,Third Party Payments,Home Care,568,11-Sep-2014,1409-00288,3018.20,R,Advantage Healthcare Group Ltd,No
Http://opendatacommunities.org/id/metropolitan-district-council/leeds,Leeds City Council as Accountable Body,Social Services Pooled Budgets,Jcs For People With Learning Disabilitie,Third Party Payments,Home Care,568,03-Sep-2014,1409-00289,2207.29,R,Advantage Healthcare Group Ltd,No
Http://opendatacommunities.org/id/metropolitan-district-council/leeds,Leeds City Council as Accountable Body,Social Services Pooled Budgets,Jcs For People With Learning Disabilitie,Third Party Payments,Home Care,568,03-Sep-2014,1409-00290,647.80,R,Advantage Healthcare Group Ltd,No
Http://opendatacommunities.org/id/metropolitan-district-council/leeds,Leeds City Council as Accountable Body,Social Services Pooled Budgets,Jcs For People With Learning Disabilitie,Third Party Payments,Home Care,568,11-Sep-2014,1409-00291,1902.68,R,Advantage Healthcare Group Ltd,No
Http://opendatacommunities.org/id/metropolitan-district-council/leeds,Leeds City Council as Accountable Body,Social Services Pooled Budgets,Jcs For People With Learning Disabilitie,Third Party Payments,Home Care,568,03-Sep-2014,1409-00292,1724.62,R,Advantage Healthcare Group Ltd,No
Http://opendatacommunities.org/id/metropolitan-district-council/leeds,Leeds City Council as Accountable Body,Social Services Pooled Budgets,Jcs For People With Learning Disabilitie,Third Party Payments,Home Care,568,26-Sep-2014,1409-00293,381.12,R,Advantage Healthcare Group Ltd,No
Http://opendatacommunities.org/id/metropolitan-district-council/leeds,Leeds City Council as Accountable Body,Social Services Pooled Budgets,Jcs For People With Learning Disabilitie,Third Party Payments,Home Care,568,10-Sep-2014,1409-00294,647.80,R,Advantage Healthcare Group Ltd,No
Http://opendatacommunities.org/id/metropolitan-district-council/leeds,Leeds City Council as Accountable Body,Social Services Pooled Budgets,Jcs For People With Learning Disabilitie,Third Party Payments,Home Care,568,10-Sep-2014,1409-00295,647.80,R,Advantage Healthcare Group Ltd,No
Http://opendatacommunities.org/id/metropolitan-district-council/leeds,Leeds City Council as Accountable Body,Social Services Pooled Budgets,Jcs For People With Learning Disabilitie,Third Party Payments,Home Care,568,03-Sep-2014,1409-00296,-136.07,R,Advantage Healthcare Group Ltd,No
Http://opendatacommunities.org/id/metropolitan-district-council/leeds,Leeds City Council as Accountable Body,Social Services Pooled Budgets,Jcs For People With Learning Disabilitie,Third Party Payments,Home Care,568,09-Sep-2014,1409-00297,-153.53,R,Advantage Healthcare Group Ltd,No
Http://opendatacommunities.org/id/metropolitan-district-council/leeds,Leeds City Council as Accountable Body,Social Services Pooled Budgets,Jcs For People With Learning Disabilitie,Third Party Payments,Residential,580,24-Sep-2014,1409-00298,23004.36,R,Advitam Ltd,No
Http://opendatacommunities.org/id/metropolitan-district-council/leeds,Leeds City Council,Adult Social Care,Social Services Support Services,Third Party Payments,Payments To Voluntary Organisations,561,11-Sep-2014,1409-00299,86216.69,R,Advonet,No
Http://opendatacommunities.org/id/metropolitan-district-council/leeds,Leeds City Council,City Development,Libraries  Arts & Heritage,Supplies and Services,Advertising,211,18-Sep-2014,1409-00300,295.00,R,Aesthetica Magazine Ltd,No
Http://opendatacommunities.org/id/metropolitan-district-council/leeds,Leeds City Council,Central & Corporate,Customer Services,Supplies and Services,Other Hired And Contracted Services,265,03-Sep-2014,1409-00301,12.00,R,Afbedel Ltd,No
Http://opendatacommunities.org/id/metropolitan-district-council/leeds,Leeds City Council,Adult Social Care,Services For Older People - 65 And Over,Third Party Payments,Home Care,568,05-Sep-2014,1409-00302,1070.66,R,Affinity Trust,No
Http://opendatacommunities.org/id/metropolitan-district-council/leeds,Leeds City Council,Adult Social Care,Services For Older People Under 65 P/Dis,Third Party Payments,Home Care,568,19-Sep-2014,1409-00303,503.37,R,Affinity Trust,No
Http://opendatacommunities.org/id/metropolitan-district-council/leeds,Leeds City Council,Adult Social Care,Services For Older People Under 65 P/Dis,Third Party Payments,Home Care,568,19-Sep-2014,1409-00304,736.26,R,Affinity Trust,No
Http://opendatacommunities.org/id/metropolitan-district-council/leeds,Leeds City Council,Adult Social Care,Services For Older People Under 65 P/Dis,Third Party Payments,Home Care,568,19-Sep-2014,1409-00305,1076.48,R,Affinity Trust,No
Http://opendatacommunities.org/id/metropolitan-district-council/leeds,Leeds City Council,Adult Social Care,Services For Older People Under 65 P/Dis,Third Party Payments,Home Care,568,19-Sep-2014,1409-00306,312.40,R,Affinity Trust,No
Http://opendatacommunities.org/id/metropolitan-district-council/leeds,Leeds City Council,Adult Social Care,Services For Older People Under 65 P/Dis,Third Party Payments,Home Care,568,19-Sep-2014,1409-00307,351.56,R,Affinity Trust,No
Http://opendatacommunities.org/id/metropolitan-district-council/leeds,Leeds City Council,Adult Social Care,Services For Older People Under 65 P/Dis,Third Party Payments,Home Care,568,12-Sep-2014,1409-00308,658.35,R,Affinity Trust,No
Http://opendatacommunities.org/id/metropolitan-district-council/leeds,Leeds City Council,Adult Social Care,Services For Older People Under 65 P/Dis,Third Party Payments,Home Care,568,29-Sep-2014,1409-00309,526.68,R,Affinity Trust,No
Http://opendatacommunities.org/id/metropolitan-district-council/leeds,Leeds City Council,Adult Social Care,Services For Older People Under 65 P/Dis,Third Party Payments,Home Care,568,29-Sep-2014,1409-00310,134.56,R,Affinity Trust,No
Http://opendatacommunities.org/id/metropolitan-district-council/leeds,Leeds City Council,Adult Social Care,Services For Older People Under 65 P/Dis,Third Party Payments,Home Care,568,29-Sep-2014,1409-00311,269.12,R,Affinity Trust,No
Http://opendatacommunities.org/id/metropolitan-district-council/leeds,Leeds City Council,Adult Social Care,Services For Older People Under 65 P/Dis,Third Party Payments,Home Care,568,19-Sep-2014,1409-00312,223.72,R,Affinity Trust,No
Http://opendatacommunities.org/id/metropolitan-district-council/leeds,Leeds City Council,Adult Social Care,Services For Older People Under 65 P/Dis,Third Party Payments,Home Care,568,19-Sep-2014,1409-00313,715.55,R,Affinity Trust,No
Http://opendatacommunities.org/id/metropolitan-district-council/leeds,Leeds City Council,Adult Social Care,Services For Older People Under 65 P/Dis,Third Party Payments,Home Care,568,19-Sep-2014,1409-00314,429.00,R,Affinity Trust,No
Http://opendatacommunities.org/id/metropolitan-district-council/leeds,Leeds City Council,Adult Social Care,Services For Older People Under 65 P/Dis,Third Party Payments,Home Care,568,19-Sep-2014,1409-00315,303.62,R,Affinity Trust,No
Http://opendatacommunities.org/id/metropolitan-district-council/leeds,Leeds City Council,Adult Social Care,Services For Older People Under 65 P/Dis,Third Party Payments,Home Care,568,19-Sep-2014,1409-00316,2074.52,R,Affinity Trust,No
Http://opendatacommunities.org/id/metropolitan-district-council/leeds,Leeds City Council,Adult Social Care,Services For Older People Under 65 P/Dis,Third Party Payments,Home Care,568,19-Sep-2014,1409-00317,886.89,R,Affinity Trust,No
Http://opendatacommunities.org/id/metropolitan-district-council/leeds,Leeds City Council,Adult Social Care,Services For Older People Under 65 P/Dis,Third Party Payments,Home Care,568,19-Sep-2014,1409-00318,119.85,R,Affinity Trust,No
Http://opendatacommunities.org/id/metropolitan-district-council/leeds,Leeds City Council,Adult Social Care,Services For Older People Under 65 P/Dis,Third Party Payments,Home Care,568,19-Sep-2014,1409-00319,655.18,R,Affinity Trust,No
Http://opendatacommunities.org/id/metropolitan-district-council/leeds,Leeds City Council as Accountable Body,Social Services Pooled Budgets,Jcs For People With Learning Disabilitie,Third Party Payments,Home Care,568,16-Sep-2014,1409-00320,1365.00,R,Affinity Trust,No
Http://opendatacommunities.org/id/metropolitan-district-council/leeds,Leeds City Council as Accountable Body,Social Services Pooled Budgets,Jcs For People With Learning Disabilitie,Third Party Payments,Home Care,568,12-Sep-2014,1409-00321,4146.10,R,Affinity Trust,No
Http://opendatacommunities.org/id/metropolitan-district-council/leeds,Leeds City Council as Accountable Body,Social Services Pooled Budgets,Jcs For People With Learning Disabilitie,Third Party Payments,Home Care,568,12-Sep-2014,1409-00322,1350.00,R,Affinity Trust,No
Http://opendatacommunities.org/id/metropolitan-district-council/leeds,Leeds City Council as Accountable Body,Social Services Pooled Budgets,Jcs For People With Learning Disabilitie,Third Party Payments,Home Care,568,12-Sep-2014,1409-00323,243.40,R,Affinity Trust,No
Http://opendatacommunities.org/id/metropolitan-district-council/leeds,Leeds City Council as Accountable Body,Social Services Pooled Budgets,Jcs For People With Learning Disabilitie,Third Party Payments,Home Care,568,12-Sep-2014,1409-00324,1076.48,R,Affinity Trust,No
Http://opendatacommunities.org/id/metropolitan-district-council/leeds,Leeds City Council as Accountable Body,Social Services Pooled Budgets,Jcs For People With Learning Disabilitie,Third Party Payments,Home Care,568,12-Sep-2014,1409-00325,555.06,R,Affinity Trust,No
Http://opendatacommunities.org/id/metropolitan-district-council/leeds,Leeds City Council as Accountable Body,Social Services Pooled Budgets,Jcs For People With Learning Disabilitie,Third Party Payments,Home Care,568,12-Sep-2014,1409-00326,408.64,R,Affinity Trust,No
Http://opendatacommunities.org/id/metropolitan-district-council/leeds,Leeds City Council as Accountable Body,Social Services Pooled Budgets,Jcs For People With Learning Disabilitie,Third Party Payments,Home Care,568,12-Sep-2014,1409-00327,511.36,R,Affinity Trust,No
Http://opendatacommunities.org/id/metropolitan-district-council/leeds,Leeds City Council as Accountable Body,Social Services Pooled Budgets,Jcs For People With Learning Disabilitie,Third Party Payments,Home Care,568,12-Sep-2014,1409-00328,3307.86,R,Affinity Trust,No
Http://opendatacommunities.org/id/metropolitan-district-council/leeds,Leeds City Council as Accountable Body,Social Services Pooled Budgets,Jcs For People With Learning Disabilitie,Third Party Payments,Home Care,568,12-Sep-2014,1409-00329,1222.47,R,Affinity Trust,No
Http://opendatacommunities.org/id/metropolitan-district-council/leeds,Leeds City Council as Accountable Body,Social Services Pooled Budgets,Jcs For People With Learning Disabilitie,Third Party Payments,Home Care,568,12-Sep-2014,1409-00330,408.00,R,Affinity Trust,No
Http://opendatacommunities.org/id/metropolitan-district-council/leeds,Leeds City Council as Accountable Body,Social Services Pooled Budgets,Jcs For People With Learning Disabilitie,Third Party Payments,Home Care,568,12-Sep-2014,1409-00331,657.15,R,Affinity Trust,No
Http://opendatacommunities.org/id/metropolitan-district-council/leeds,Leeds City Council as Accountable Body,Social Services Pooled Budgets,Jcs For People With Learning Disabilitie,Third Party Payments,Home Care,568,12-Sep-2014,1409-00332,217.95,R,Affinity Trust,No
Http://opendatacommunities.org/id/metropolitan-district-council/leeds,Leeds City Council as Accountable Body,Social Services Pooled Budgets,Jcs For People With Learning Disabilitie,Third Party Payments,Home Care,568,11-Sep-2014,1409-00333,1999.98,R,Affinity Trust,No
Http://opendatacommunities.org/id/metropolitan-district-council/leeds,Leeds City Council as Accountable Body,Social Services Pooled Budgets,Jcs For People With Learning Disabilitie,Third Party Payments,Home Care,568,12-Sep-2014,1409-00334,1005.60,R,Affinity Trust,No
Http://opendatacommunities.org/id/metropolitan-district-council/leeds,Leeds City Council as Accountable Body,Social Services Pooled Budgets,Jcs For People With Learning Disabilitie,Third Party Payments,Home Care,568,12-Sep-2014,1409-00335,1294.30,R,Affinity Trust,No
Http://opendatacommunities.org/id/metropolitan-district-council/leeds,Leeds City Council as Accountable Body,Social Services Pooled Budgets,Jcs For People With Learning Disabilitie,Third Party Payments,Home Care,568,12-Sep-2014,1409-00336,1257.00,R,Affinity Trust,No
Http://opendatacommunities.org/id/metropolitan-district-council/leeds,Leeds City Council as Accountable Body,Social Services Pooled Budgets,Jcs For People With Learning Disabilitie,Third Party Payments,Home Care,568,16-Sep-2014,1409-00337,1200.00,R,Affinity Trust,No
Http://opendatacommunities.org/id/metropolitan-district-council/leeds,Leeds City Council as Accountable Body,Social Services Pooled Budgets,Jcs For People With Learning Disabilitie,Third Party Payments,Home Care,568,11-Sep-2014,1409-00338,1508.40,R,Affinity Trust,No
Http://opendatacommunities.org/id/metropolitan-district-council/leeds,Leeds City Council as Accountable Body,Social Services Pooled Budgets,Jcs For People With Learning Disabilitie,Third Party Payments,Home Care,568,22-Sep-2014,1409-00339,25160.52,R,Affinity Trust,No
Http://opendatacommunities.org/id/metropolitan-district-council/leeds,Leeds City Council as Accountable Body,Social Services Pooled Budgets,Jcs For People With Learning Disabilitie,Third Party Payments,Home Care,568,22-Sep-2014,1409-00340,34789.46,R,Affinity Trust,No
Http://opendatacommunities.org/id/metropolitan-district-council/leeds,Leeds City Council as Accountable Body,Social Services Pooled Budgets,Jcs For People With Learning Disabilitie,Third Party Payments,Residential,580,30-Sep-2014,1409-00341,4415.05,R,Affinity Trust,No
Http://opendatacommunities.org/id/metropolitan-district-council/leeds,Leeds City Council as Accountable Body,Social Services Pooled Budgets,Jcs For People With Learning Disabilitie,Third Party Payments,Day Centre,564,10-Sep-2014,1409-00342,17538.00,R,Affinity Trust,No
Http://opendatacommunities.org/id/metropolitan-district-council/leeds,Leeds City Council as Accountable Body,Social Services Pooled Budgets,Jcs For People With Learning Disabilitie,Third Party Payments,Day Centre,564,12-Sep-2014,1409-00343,416.64,R,Affinity Trust,No
Http://opendatacommunities.org/id/metropolitan-district-council/leeds,Leeds City Council as Accountable Body,Social Services Pooled Budgets,Jcs For People With Learning Disabilitie,Third Party Payments,Day Centre,564,12-Sep-2014,1409-00344,1316.70,R,Affinity Trust,No
Http://opendatacommunities.org/id/metropolitan-district-council/leeds,Leeds City Council as Accountable Body,Social Services Pooled Budgets,Jcs For People With Learning Disabilitie,Third Party Payments,Day Centre,564,12-Sep-2014,1409-00345,1449.92,R,Affinity Trust,No
Http://opendatacommunities.org/id/metropolitan-district-council/leeds,Leeds City Council as Accountable Body,Social Services Pooled Budgets,Jcs For People With Learning Disabilitie,Third Party Payments,Day Centre,564,12-Sep-2014,1409-00346,4838.24,R,Affinity Trust,No
Http://opendatacommunities.org/id/metropolitan-district-council/leeds,Leeds City Council as Accountable Body,Social Services Pooled Budgets,Jcs For People With Learning Disabilitie,Third Party Payments,Day Centre,564,11-Sep-2014,1409-00347,893.48,R,Affinity Trust,No
Http://opendatacommunities.org/id/metropolitan-district-council/leeds,Leeds City Council as Accountable Body,Social Services Pooled Budgets,Jcs For People With Learning Disabilitie,Third Party Payments,Day Centre,564,11-Sep-2014,1409-00348,2933.00,R,Affinity Trust,No
Http://opendatacommunities.org/id/metropolitan-district-council/leeds,Leeds City Council as Accountable Body,Social Services Pooled Budgets,Jcs For People With Learning Disabilitie,Third Party Payments,Home Care,568,11-Sep-2014,1409-00349,1910.64,R,Affinity Trust,No
Http://opendatacommunities.org/id/metropolitan-district-council/leeds,Leeds City Council as Accountable Body,Social Services Pooled Budgets,Jcs For People With Learning Disabilitie,Third Party Payments,Home Care,568,11-Sep-2014,1409-00350,3191.76,R,Affinity Trust,No
Http://opendatacommunities.org/id/metropolitan-district-council/leeds,Leeds City Council as Accountable Body,Social Services Pooled Budgets,Jcs For People With Learning Disabilitie,Third Party Payments,Home Care,568,10-Sep-2014,1409-00351,17389.19,R,Affinity Trust,No
Http://opendatacommunities.org/id/metropolitan-district-council/leeds,Leeds City Council as Accountable Body,Social Services Pooled Budgets,Jcs For People With Learning Disabilitie,Third Party Payments,Home Care,568,10-Sep-2014,1409-00352,3726.40,R,Affinity Trust,No
Http://opendatacommunities.org/id/metropolitan-district-council/leeds,Leeds City Council as Accountable Body,Social Services Pooled Budgets,Jcs For People With Learning Disabilitie,Third Party Payments,Home Care,568,12-Sep-2014,1409-00353,575.28,R,Affinity Trust,No
Http://opendatacommunities.org/id/metropolitan-district-council/leeds,Leeds City Council as Accountable Body,Social Services Pooled Budgets,Jcs For People With Learning Disabilitie,Third Party Payments,Home Care,568,12-Sep-2014,1409-00354,336.40,R,Affinity Trust,No
Http://opendatacommunities.org/id/metropolitan-district-council/leeds,Leeds City Council as Accountable Body,Social Services Pooled Budgets,Jcs For People With Learning Disabilitie,Third Party Payments,Home Care,568,12-Sep-2014,1409-00355,306.00,R,Affinity Trust,No
Http://opendatacommunities.org/id/metropolitan-district-council/leeds,Leeds City Council as Accountable Body,Social Services Pooled Budgets,Jcs For People With Learning Disabilitie,Third Party Payments,Home Care,568,12-Sep-2014,1409-00356,527.34,R,Affinity Trust,No
Http://opendatacommunities.org/id/metropolitan-district-council/leeds,Leeds City Council as Accountable Body,Social Services Pooled Budgets,Jcs For People With Learning Disabilitie,Third Party Payments,Home Care,568,12-Sep-2014,1409-00357,276.64,R,Affinity Trust,No
Http://opendatacommunities.org/id/metropolitan-district-council/leeds,Leeds City Council as Accountable Body,Social Services Pooled Budgets,Jcs For People With Learning Disabilitie,Third Party Payments,Home Care,568,12-Sep-2014,1409-00358,255.68,R,Affinity Trust,No
Http://opendatacommunities.org/id/metropolitan-district-council/leeds,Leeds City Council as Accountable Body,Social Services Pooled Budgets,Jcs For People With Learning Disabilitie,Third Party Payments,Home Care,568,12-Sep-2014,1409-00359,1592.25,R,Affinity Trust,No
Http://opendatacommunities.org/id/metropolitan-district-council/leeds,Leeds City Council as Accountable Body,Social Services Pooled Budgets,Jcs For People With Learning Disabilitie,Third Party Payments,Home Care,568,30-Sep-2014,1409-00360,1211.04,R,Affinity Trust,No
Http://opendatacommunities.org/id/metropolitan-district-council/leeds,Leeds City Council as Accountable Body,Social Services Pooled Budgets,Jcs For People With Learning Disabilitie,Third Party Payments,Home Care,568,12-Sep-2014,1409-00361,1022.72,R,Affinity Trust,No
Http://opendatacommunities.org/id/metropolitan-district-council/leeds,Leeds City Council as Accountable Body,Social Services Pooled Budgets,Jcs For People With Learning Disabilitie,Third Party Payments,Home Care,568,16-Sep-2014,1409-00362,751.06,R,Affinity Trust,No
Http://opendatacommunities.org/id/metropolitan-district-council/leeds,Leeds City Council as Accountable Body,Social Services Pooled Budgets,Jcs For People With Learning Disabilitie,Third Party Payments,Home Care,568,12-Sep-2014,1409-00363,767.04,R,Affinity Trust,No
Http://opendatacommunities.org/id/metropolitan-district-council/leeds,Leeds City Council as Accountable Body,Social Services Pooled Budgets,Jcs For People With Learning Disabilitie,Third Party Payments,Home Care,568,12-Sep-2014,1409-00364,639.20,R,Affinity Trust,No
Http://opendatacommunities.org/id/metropolitan-district-council/leeds,Leeds City Council as Accountable Body,Social Services Pooled Budgets,Jcs For People With Learning Disabilitie,Third Party Payments,Sheltered Accommodation,569,24-Sep-2014,1409-00365,106406.10,R,Affinity Trust North Divisional Office,No
Http://opendatacommunities.org/id/metropolitan-district-council/leeds,Leeds City Council as Accountable Body,Social Services Pooled Budgets,Jcs For People With Learning Disabilitie,Third Party Payments,Residential,580,24-Sep-2014,1409-00366,13843.72,R,Affinity Trust North Divisional Office,No
Http://opendatacommunities.org/id/metropolitan-district-council/leeds,Leeds City Council,Environment & Housing,Parks & Countryside  ,Transport,Hire Of Movable Plant & Machinery,315,08-Aug-2014,1409-00367,3230.00,R,Afi Uplift Ltd,Yes
Http://opendatacommunities.org/id/metropolitan-district-council/leeds,Leeds City Council,Childrens Services,Safeguarding Targeted & Specialist,Third Party Payments,Placement Support,550,26-Sep-2014,1409-00368,458.00,R,After Adoption,No
Http://opendatacommunities.org/id/metropolitan-district-council/leeds,Leeds City Council,Childrens Services,Safeguarding Targeted & Specialist,Third Party Payments,Payments To Voluntary Organisations,561,12-Sep-2014,1409-00369,22500.00,R,After Adoption Yorkshire,No
Http://opendatacommunities.org/id/metropolitan-district-council/leeds,Leeds City Council,Environment & Housing,Strategy & Commissioning,Third Party Payments,Supporting Ppl - Block Gross Chargeable,514,15-Sep-2014,1409-00370,3957.68,R,Age Uk Leeds,No
Http://opendatacommunities.org/id/metropolitan-district-council/leeds,Leeds City Council,Adult Social Care,Social Services Support Services,Employees,Training & Development,70,03-Sep-2014,1409-00371,390.00,R,Age Uk Training,No
Http://opendatacommunities.org/id/metropolitan-district-council/leeds,Leeds City Council,Childrens Services,Safeguarding Targeted & Specialist,Third Party Payments,Placement Support,550,05-Sep-2014,1409-00372,3845.00,R,Agm Joinery And Building Contractors,No
Http://opendatacommunities.org/id/metropolitan-district-council/leeds,Leeds City Council,Adult Social Care,Services For Older People Under 65 P/Dis,Transfer Payments,Personalised Budgets,627,24-Sep-2014,1409-00373,1001.48,R,REDACTED PERSONAL DATA,No
Http://opendatacommunities.org/id/metropolitan-district-council/leeds,Leeds City Council,Adult Social Care,Services For Older People Under 65 P/Dis,Third Party Payments,Residential,580,24-Sep-2014,1409-00374,5603.40,R,Agricola House,No
Http://opendatacommunities.org/id/metropolitan-district-council/leeds,Leeds City Council,Adult Social Care,Services For Older People Under 65 P/Dis,Transfer Payments,Personalised Budgets,627,24-Sep-2014,1409-00375,531.20,R,REDACTED PERSONAL DATA,No
Http://opendatacommunities.org/id/metropolitan-district-council/leeds,Leeds City Council as Accountable Body,Social Services Pooled Budgets,Leeds Community Equip Store Pooled Budgt,Supplies and Services,Other Equipment,203,26-Sep-2014,1409-00376,890.00,R,Aidapt Bathrooms Ltd,No
Http://opendatacommunities.org/id/metropolitan-district-council/leeds,Leeds City Council as Accountable Body,Social Services Pooled Budgets,Leeds Community Equip Store Pooled Budgt,Supplies and Services,Other Equipment,203,26-Sep-2014,1409-00377,93.00,R,Aidapt Bathrooms Ltd,No
Http://opendatacommunities.org/id/metropolitan-district-council/leeds,Leeds City Council as Accountable Body,Social Services Pooled Budgets,Leeds Community Equip Store Pooled Budgt,Supplies and Services,Other Equipment,203,17-Sep-2014,1409-00378,1203.00,R,Aidapt Bathrooms Ltd,No
Http://opendatacommunities.org/id/metropolitan-district-council/leeds,Leeds City Council as Accountable Body,Social Services Pooled Budgets,Leeds Community Equip Store Pooled Budgt,Supplies and Services,Other Equipment,203,12-Sep-2014,1409-00379,1297.50,R,Aidapt Bathrooms Ltd,No
Http://opendatacommunities.org/id/metropolitan-district-council/leeds,Leeds City Council as Accountable Body,Social Services Pooled Budgets,Leeds Community Equip Store Pooled Budgt,Supplies and Services,Other Equipment,203,17-Sep-2014,1409-00380,1487.00,R,Aidapt Bathrooms Ltd,No
Http://opendatacommunities.org/id/metropolitan-district-council/leeds,Leeds City Council as Accountable Body,Social Services Pooled Budgets,Leeds Community Equip Store Pooled Budgt,Supplies and Services,Other Equipment,203,03-Sep-2014,1409-00381,1247.00,R,Aidapt Bathrooms Ltd,No
Http://opendatacommunities.org/id/metropolitan-district-council/leeds,Leeds City Council as Accountable Body,Social Services Pooled Budgets,Leeds Community Equip Store Pooled Budgt,Supplies and Services,Other Equipment,203,03-Sep-2014,1409-00382,2285.00,R,Aidapt Bathrooms Ltd,No
Http://opendatacommunities.org/id/metropolitan-district-council/leeds,Leeds City Council as Accountable Body,Social Services Pooled Budgets,Leeds Community Equip Store Pooled Budgt,Supplies and Services,Other Equipment,203,03-Sep-2014,1409-00383,2850.00,R,Aidapt Bathrooms Ltd,No
Http://opendatacommunities.org/id/metropolitan-district-council/leeds,Leeds City Council as Accountable Body,Social Services Pooled Budgets,Jcs For People With Learning Disabilitie,Third Party Payments,Home Care,568,12-Sep-2014,1409-00384,54.90,R,Aid-Call Ltd,No
Http://opendatacommunities.org/id/metropolitan-district-council/leeds,Leeds City Council as Accountable Body,Social Services Pooled Budgets,Jcs For People With Learning Disabilitie,Transfer Payments,Personal Budgets,627,24-Sep-2014,1409-00385,2839.32,R,REDACTED PERSONAL DATA,No
Http://opendatacommunities.org/id/metropolitan-district-council/leeds,Leeds City Council as Accountable Body,Social Services Pooled Budgets,Jcs For People With Learning Disabilitie,Supplies and Services,Other Equipment,203,19-Sep-2014,1409-00386,290.00,R,Aidservice Ltd,No
Http://opendatacommunities.org/id/metropolitan-district-council/leeds,Leeds City Council as Accountable Body,Social Services Pooled Budgets,Leeds Community Equip Store Pooled Budgt,Supplies and Services,Other Equipment,203,19-Sep-2014,1409-00387,328.00,R,Aidservice Ltd,No
Http://opendatacommunities.org/id/metropolitan-district-council/leeds,Leeds City Council,Central & Corporate,Commercial Services Trading Services  ,Supplies and Services,Operational Materials,205,04-Aug-2014,1409-00388,190.42,R,Air Force Pneumati,Yes
Http://opendatacommunities.org/id/metropolitan-district-council/leeds,Leeds City Council,Central & Corporate,Commercial Services Trading Services,Supplies and Services,Operational Materials,205,30-Sep-2014,1409-00389,162.30,R,Air Liquide Uk,No
Http://opendatacommunities.org/id/metropolitan-district-council/leeds,Leeds City Council,Environment & Housing,Environmental Health,Supplies and Services,Other Hired And Contracted Services,265,05-Sep-2014,1409-00390,59.01,R,Air Liquide Uk,No
Http://opendatacommunities.org/id/metropolitan-district-council/leeds,Leeds City Council,Central & Corporate,Support And Facilities General Fund  ,Transport,Public Transport Expenses,310,14-Aug-2014,1409-00391,103.00,R,Airbnb,Yes
Http://opendatacommunities.org/id/metropolitan-district-council/leeds,Leeds City Council,Adult Social Care,Services For Adults Under 65 Mental/Dis,Third Party Payments,Residential,580,24-Sep-2014,1409-00392,6028.20,R,Aire House,No
Http://opendatacommunities.org/id/metropolitan-district-council/leeds,Leeds City Council as Accountable Body,Social Services Pooled Budgets,Jcs For People With Learning Disabilitie,Third Party Payments,Residential,580,24-Sep-2014,1409-00393,6862.62,R,Aire House,No
Http://opendatacommunities.org/id/metropolitan-district-council/leeds,Leeds City Council,Environment & Housing,Hra,Supplies and Services,Grant Related Expenditure,298,01-Sep-2014,1409-00394,50.00,R,Aire Valley Landscaping Services Ltd,No
Http://opendatacommunities.org/id/metropolitan-district-council/leeds,Leeds City Council,Environment & Housing,Hra,Supplies and Services,Other Hired And Contracted Services,265,17-Sep-2014,1409-00395,850.00,R,Aire Valley Tree Services Ltd,No
Http://opendatacommunities.org/id/metropolitan-district-council/leeds,Leeds City Council,Adult Social Care,Services For Older People - 65 And Over,Third Party Payments,Residential Care Dementia,571,24-Sep-2014,1409-00396,39161.60,R,Aire View Residential Home,No
Http://opendatacommunities.org/id/metropolitan-district-council/leeds,Leeds City Council,Adult Social Care,Services For Older People - 65 And Over,Third Party Payments,Residential,580,24-Sep-2014,1409-00397,10384.24,R,Aire View Residential Home,No
Http://opendatacommunities.org/id/metropolitan-district-council/leeds,Leeds City Council,Central & Corporate,Human Resources,Employees,Occupational Health,85,05-Sep-2014,1409-00398,85.00,R,Aireborough Family Practice,No
Http://opendatacommunities.org/id/metropolitan-district-council/leeds,Leeds City Council,Central & Corporate,Public Health,Third Party Payments,Public Health Commissioned Services,526,24-Sep-2014,1409-00399,2256.11,R,Aireborough Family Practice,No
Http://opendatacommunities.org/id/metropolitan-district-council/leeds,Leeds City Council,Adult Social Care,Services For Older People - 65 And Over,Third Party Payments,Residential,580,24-Sep-2014,1409-00400,17778.03,R,Airedale (Goldsborough),No
Http://opendatacommunities.org/id/metropolitan-district-council/leeds,Leeds City Council,Central & Corporate,Commercial Services Trading Services,Supplies and Services,Operational Materials,205,12-Sep-2014,1409-00401,1122.00,R,Airedale Catering Equipment Ltd,No
Http://opendatacommunities.org/id/metropolitan-district-council/leeds,Leeds City Council,Central & Corporate,Commercial Services Trading Services,Supplies and Services,Operational Materials,205,16-Sep-2014,1409-00402,3136.00,R,Airedale Catering Equipment Ltd,No
Http://opendatacommunities.org/id/metropolitan-district-council/leeds,Leeds City Council,Central & Corporate,Commercial Services Trading Services,Supplies and Services,Operational Materials,205,12-Sep-2014,1409-00403,1327.00,R,Airedale Catering Equipment Ltd,No
Http://opendatacommunities.org/id/metropolitan-district-council/leeds,Leeds City Council,Central & Corporate,Commercial Services Trading Services,Supplies and Services,Operational Materials,205,12-Sep-2014,1409-00404,2436.00,R,Airedale Catering Equipment Ltd,No
Http://opendatacommunities.org/id/metropolitan-district-council/leeds,Leeds City Council,Central & Corporate,Commercial Services Trading Services,Supplies and Services,Operational Materials,205,12-Sep-2014,1409-00405,1267.00,R,Airedale Catering Equipment Ltd,No
Http://opendatacommunities.org/id/metropolitan-district-council/leeds,Leeds City Council,Central & Corporate,Commercial Services Trading Services,Supplies and Services,Operational Materials,205,12-Sep-2014,1409-00406,1267.00,R,Airedale Catering Equipment Ltd,No
Http://opendatacommunities.org/id/metropolitan-district-council/leeds,Leeds City Council,Central & Corporate,Commercial Services Trading Services,Supplies and Services,Operational Materials,205,12-Sep-2014,1409-00407,1267.00,R,Airedale Catering Equipment Ltd,No
Http://opendatacommunities.org/id/metropolitan-district-council/leeds,Leeds City Council,Central & Corporate,Commercial Services Trading Services,Supplies and Services,Operational Materials,205,12-Sep-2014,1409-00408,1267.00,R,Airedale Catering Equipment Ltd,No
Http://opendatacommunities.org/id/metropolitan-district-council/leeds,Leeds City Council,Central & Corporate,Commercial Services Trading Services,Supplies and Services,Operational Materials,205,12-Sep-2014,1409-00409,990.00,R,Airedale Catering Equipment Ltd,No
Http://opendatacommunities.org/id/metropolitan-district-council/leeds,Leeds City Council,Central & Corporate,Commercial Services Trading Services,Supplies and Services,Operational Materials,205,12-Sep-2014,1409-00410,2294.00,R,Airedale Catering Equipment Ltd,No
Http://opendatacommunities.org/id/metropolitan-district-council/leeds,Leeds City Council,Central & Corporate,Commercial Services Trading Services,Supplies and Services,Operational Materials,205,17-Sep-2014,1409-00411,2710.00,R,Airedale Catering Equipment Ltd,No
Http://opendatacommunities.org/id/metropolitan-district-council/leeds,Leeds City Council,Central & Corporate,Commercial Services Trading Services,Supplies and Services,Operational Materials,205,12-Sep-2014,1409-00412,3977.00,R,Airedale Catering Equipment Ltd,No
Http://opendatacommunities.org/id/metropolitan-district-council/leeds,Leeds City Council,Central & Corporate,Commercial Services Trading Services,Supplies and Services,Operational Materials,205,16-Sep-2014,1409-00413,3030.00,R,Airedale Catering Equipment Ltd,No
Http://opendatacommunities.org/id/metropolitan-district-council/leeds,Leeds City Council,Central & Corporate,Commercial Services Trading Services,Supplies and Services,Operational Materials,205,26-Sep-2014,1409-00414,2014.00,R,Airedale Catering Equipment Ltd,No
Http://opendatacommunities.org/id/metropolitan-district-council/leeds,Leeds City Council,Central & Corporate,Commercial Services Trading Services,Supplies and Services,Operational Materials,205,12-Sep-2014,1409-00415,7986.00,R,Airedale Catering Equipment Ltd,No
Http://opendatacommunities.org/id/metropolitan-district-council/leeds,Leeds City Council,Central & Corporate,Commercial Services Trading Services,Supplies and Services,Operational Materials,205,15-Sep-2014,1409-00416,4199.00,R,Airedale Catering Equipment Ltd,No
Http://opendatacommunities.org/id/metropolitan-district-council/leeds,Leeds City Council,Central & Corporate,Commercial Services Trading Services,Supplies and Services,Operational Materials,205,12-Sep-2014,1409-00417,1122.00,R,Airedale Catering Equipment Ltd,No
Http://opendatacommunities.org/id/metropolitan-district-council/leeds,Leeds City Council,Central & Corporate,Commercial Services Trading Services,Supplies and Services,Operational Materials,205,12-Sep-2014,1409-00418,1122.00,R,Airedale Catering Equipment Ltd,No
Http://opendatacommunities.org/id/metropolitan-district-council/leeds,Leeds City Council,Central & Corporate,Commercial Services Trading Services,Supplies and Services,Operational Materials,205,15-Sep-2014,1409-00419,2594.00,R,Airedale Catering Equipment Ltd,No
Http://opendatacommunities.org/id/metropolitan-district-council/leeds,Leeds City Council,Central & Corporate,Commercial Services Trading Services,Supplies and Services,Operational Materials,205,12-Sep-2014,1409-00420,2257.00,R,Airedale Catering Equipment Ltd,No
Http://opendatacommunities.org/id/metropolitan-district-council/leeds,Leeds City Council,Central & Corporate,Commercial Services Trading Services,Supplies and Services,Operational Materials,205,12-Sep-2014,1409-00421,2710.00,R,Airedale Catering Equipment Ltd,No
Http://opendatacommunities.org/id/metropolitan-district-council/leeds,Leeds City Council,Central & Corporate,Commercial Services Trading Services,Supplies and Services,Operational Materials,205,12-Sep-2014,1409-00422,14152.00,R,Airedale Catering Equipment Ltd,No
Http://opendatacommunities.org/id/metropolitan-district-council/leeds,Leeds City Council,Central & Corporate,Commercial Services Trading Services,Supplies and Services,Operational Materials,205,15-Sep-2014,1409-00423,3977.00,R,Airedale Catering Equipment Ltd,No
Http://opendatacommunities.org/id/metropolitan-district-council/leeds,Leeds City Council,Central & Corporate,Commercial Services Trading Services,Supplies and Services,Operational Materials,205,12-Sep-2014,1409-00424,14152.00,R,Airedale Catering Equipment Ltd,No
Http://opendatacommunities.org/id/metropolitan-district-council/leeds,Leeds City Council,Central & Corporate,Commercial Services Trading Services,Supplies and Services,Operational Materials,205,12-Sep-2014,1409-00425,1122.00,R,Airedale Catering Equipment Ltd,No
Http://opendatacommunities.org/id/metropolitan-district-council/leeds,Leeds City Council,Central & Corporate,Commercial Services Trading Services,Supplies and Services,Operational Materials,205,12-Sep-2014,1409-00426,8118.00,R,Airedale Catering Equipment Ltd,No
Http://opendatacommunities.org/id/metropolitan-district-council/leeds,Leeds City Council,Central & Corporate,Commercial Services Trading Services,Supplies and Services,Operational Materials,205,12-Sep-2014,1409-00427,7882.00,R,Airedale Catering Equipment Ltd,No
Http://opendatacommunities.org/id/metropolitan-district-council/leeds,Leeds City Council,Central & Corporate,Commercial Services Trading Services,Supplies and Services,Operational Materials,205,17-Sep-2014,1409-00428,1267.00,R,Airedale Catering Equipment Ltd,No
Http://opendatacommunities.org/id/metropolitan-district-council/leeds,Leeds City Council,Central & Corporate,Commercial Services Trading Services,Supplies and Services,Crockery  Cutlery & Utensils,221,30-Sep-2014,1409-00429,1277.00,R,Airedale Catering Equipment Ltd,No
Http://opendatacommunities.org/id/metropolitan-district-council/leeds,Leeds City Council,Central & Corporate,Commercial Services Trading Services,Supplies and Services,Operational Materials,205,17-Sep-2014,1409-00430,6064.00,R,Airedale Catering Equipment Ltd,No
Http://opendatacommunities.org/id/metropolitan-district-council/leeds,Leeds City Council,Central & Corporate,Commercial Services Trading Services,Supplies and Services,Operational Materials,205,17-Sep-2014,1409-00431,5885.00,R,Airedale Catering Equipment Ltd,No
Http://opendatacommunities.org/id/metropolitan-district-council/leeds,Leeds City Council,Central & Corporate,Commercial Services Trading Services,Supplies and Services,Operational Materials,205,30-Sep-2014,1409-00432,4126.00,R,Airedale Catering Equipment Ltd,No
Http://opendatacommunities.org/id/metropolitan-district-council/leeds,Leeds City Council,Central & Corporate,Commercial Services Trading Services,Supplies and Services,Operational Materials,205,17-Sep-2014,1409-00433,1908.00,R,Airedale Catering Equipment Ltd,No
Http://opendatacommunities.org/id/metropolitan-district-council/leeds,Leeds City Council,Central & Corporate,Commercial Services Trading Services,Supplies and Services,Operational Materials,205,17-Sep-2014,1409-00434,1908.00,R,Airedale Catering Equipment Ltd,No
Http://opendatacommunities.org/id/metropolitan-district-council/leeds,Leeds City Council,Central & Corporate,Commercial Services Trading Services,Supplies and Services,Operational Materials,205,17-Sep-2014,1409-00435,7914.00,R,Airedale Catering Equipment Ltd,No
Http://opendatacommunities.org/id/metropolitan-district-council/leeds,Leeds City Council,Central & Corporate,Commercial Services Trading Services,Supplies and Services,Operational Materials,205,12-Sep-2014,1409-00436,2710.00,R,Airedale Catering Equipment Ltd,No
Http://opendatacommunities.org/id/metropolitan-district-council/leeds,Leeds City Council,Central & Corporate,Commercial Services Trading Services,Supplies and Services,Operational Materials,205,12-Sep-2014,1409-00437,1122.00,R,Airedale Catering Equipment Ltd,No
Http://opendatacommunities.org/id/metropolitan-district-council/leeds,Leeds City Council,Central & Corporate,Commercial Services Trading Services,Supplies and Services,Operational Materials,205,29-Sep-2014,1409-00438,13030.00,R,Airedale Catering Equipment Ltd,No
Http://opendatacommunities.org/id/metropolitan-district-council/leeds,Leeds City Council,Central & Corporate,Commercial Services Trading Services,Supplies and Services,Operational Materials,205,12-Sep-2014,1409-00439,3004.00,R,Airedale Catering Equipment Ltd,No
Http://opendatacommunities.org/id/metropolitan-district-council/leeds,Leeds City Council,Central & Corporate,Commercial Services Trading Services,Supplies and Services,Operational Materials,205,12-Sep-2014,1409-00440,1122.00,R,Airedale Catering Equipment Ltd,No
Http://opendatacommunities.org/id/metropolitan-district-council/leeds,Leeds City Council,Central & Corporate,Commercial Services Trading Services,Supplies and Services,Operational Materials,205,12-Sep-2014,1409-00441,1122.00,R,Airedale Catering Equipment Ltd,No
Http://opendatacommunities.org/id/metropolitan-district-council/leeds,Leeds City Council,Central & Corporate,Commercial Services Trading Services,Supplies and Services,Operational Materials,205,12-Sep-2014,1409-00442,1267.00,R,Airedale Catering Equipment Ltd,No
Http://opendatacommunities.org/id/metropolitan-district-council/leeds,Leeds City Council,Central & Corporate,Commercial Services Trading Services,Supplies and Services,Operational Materials,205,12-Sep-2014,1409-00443,1267.00,R,Airedale Catering Equipment Ltd,No
Http://opendatacommunities.org/id/metropolitan-district-council/leeds,Leeds City Council,Central & Corporate,Commercial Services Trading Services,Supplies and Services,Operational Materials,205,12-Sep-2014,1409-00444,1267.00,R,Airedale Catering Equipment Ltd,No
Http://opendatacommunities.org/id/metropolitan-district-council/leeds,Leeds City Council,Central & Corporate,Commercial Services Trading Services,Supplies and Services,Operational Materials,205,12-Sep-2014,1409-00445,13030.00,R,Airedale Catering Equipment Ltd,No
Http://opendatacommunities.org/id/metropolitan-district-council/leeds,Leeds City Council,Central & Corporate,Commercial Services Trading Services,Supplies and Services,Operational Materials,205,12-Sep-2014,1409-00446,2594.00,R,Airedale Catering Equipment Ltd,No
Http://opendatacommunities.org/id/metropolitan-district-council/leeds,Leeds City Council,Central & Corporate,Commercial Services Trading Services,Supplies and Services,Operational Materials,205,12-Sep-2014,1409-00447,1267.00,R,Airedale Catering Equipment Ltd,No
Http://opendatacommunities.org/id/metropolitan-district-council/leeds,Leeds City Council,Central & Corporate,Commercial Services Trading Services,Supplies and Services,Operational Materials,205,12-Sep-2014,1409-00448,8323.00,R,Airedale Catering Equipment Ltd,No
Http://opendatacommunities.org/id/metropolitan-district-council/leeds,Leeds City Council,Central & Corporate,Commercial Services Trading Services,Supplies and Services,Operational Materials,205,26-Sep-2014,1409-00449,2932.00,R,Airedale Catering Equipment Ltd,No
Http://opendatacommunities.org/id/metropolitan-district-council/leeds,Leeds City Council,Central & Corporate,Commercial Services Trading Services,Supplies and Services,Operational Materials,205,12-Sep-2014,1409-00450,13030.00,R,Airedale Catering Equipment Ltd,No
Http://opendatacommunities.org/id/metropolitan-district-council/leeds,Leeds City Council,Central & Corporate,Commercial Services Trading Services,Supplies and Services,Operational Materials,205,12-Sep-2014,1409-00451,6996.00,R,Airedale Catering Equipment Ltd,No
Http://opendatacommunities.org/id/metropolitan-district-council/leeds,Leeds City Council,Central & Corporate,Commercial Services Trading Services,Supplies and Services,Operational Materials,205,12-Sep-2014,1409-00452,5846.00,R,Airedale Catering Equipment Ltd,No
Http://opendatacommunities.org/id/metropolitan-district-council/leeds,Leeds City Council,Central & Corporate,Commercial Services Trading Services,Supplies and Services,Operational Materials,205,17-Sep-2014,1409-00453,2710.00,R,Airedale Catering Equipment Ltd,No
Http://opendatacommunities.org/id/metropolitan-district-council/leeds,Leeds City Council,Central & Corporate,Commercial Services Trading Services,Supplies and Services,Operational Materials,205,12-Sep-2014,1409-00454,3210.00,R,Airedale Catering Equipment Ltd,No
Http://opendatacommunities.org/id/metropolitan-district-council/leeds,Leeds City Council,Central & Corporate,Commercial Services Trading Services,Supplies and Services,Operational Materials,205,12-Sep-2014,1409-00455,2710.00,R,Airedale Catering Equipment Ltd,No
Http://opendatacommunities.org/id/metropolitan-district-council/leeds,Leeds City Council,Central & Corporate,Commercial Services Trading Services,Supplies and Services,Operational Materials,205,12-Sep-2014,1409-00456,6996.00,R,Airedale Catering Equipment Ltd,No
Http://opendatacommunities.org/id/metropolitan-district-council/leeds,Leeds City Council,Central & Corporate,Commercial Services Trading Services,Supplies and Services,Operational Materials,205,12-Sep-2014,1409-00457,2710.00,R,Airedale Catering Equipment Ltd,No
Http://opendatacommunities.org/id/metropolitan-district-council/leeds,Leeds City Council,Central & Corporate,Commercial Services Trading Services,Supplies and Services,Operational Materials,205,12-Sep-2014,1409-00458,3977.00,R,Airedale Catering Equipment Ltd,No
Http://opendatacommunities.org/id/metropolitan-district-council/leeds,Leeds City Council,Central & Corporate,Commercial Services Trading Services,Supplies and Services,Operational Materials,205,30-Sep-2014,1409-00459,3576.00,R,Airedale Catering Equipment Ltd,No
Http://opendatacommunities.org/id/metropolitan-district-council/leeds,Leeds City Council,Adult Social Care,Assessment And Care Management,Employees,Training Costs,71,01-Sep-2014,1409-00460,420.00,R,Airedale Community Trading (Act) Ltd,No
Http://opendatacommunities.org/id/metropolitan-district-council/leeds,Leeds City Council,City Development,Recreation,Supplies and Services,Other Hired And Contracted Services,265,15-Sep-2014,1409-00461,300.00,R,Airedale Olympic Cycling Club,No
Http://opendatacommunities.org/id/metropolitan-district-council/leeds,Leeds City Council,Environment & Housing,Environmental Health,Supplies and Services,Other Hired And Contracted Services,265,18-Sep-2014,1409-00462,214.56,R,Aireworth Vets,No
Http://opendatacommunities.org/id/metropolitan-district-council/leeds,Leeds City Council,City Development,Recreation,Supplies and Services,Operational Furniture And Equipment,203,19-Sep-2014,1409-00463,3060.00,R,Airspace Solutions.Com Limited,No
Http://opendatacommunities.org/id/metropolitan-district-council/leeds,Leeds City Council,Central & Corporate,Commercial Services Trading Services,Supplies and Services,Other Hired And Contracted Services,265,05-Sep-2014,1409-00464,120.00,R,Airweigh Europe Limited,No
Http://opendatacommunities.org/id/metropolitan-district-council/leeds,Leeds City Council,Central & Corporate,Commercial Services Trading Services,Supplies and Services,Other Hired And Contracted Services,265,05-Sep-2014,1409-00465,120.00,R,Airweigh Europe Limited,No
Http://opendatacommunities.org/id/metropolitan-district-council/leeds,Leeds City Council,Central & Corporate,Commercial Services Trading Services,Supplies and Services,Other Hired And Contracted Services,265,05-Sep-2014,1409-00466,225.00,R,Airweigh Europe Limited,No
Http://opendatacommunities.org/id/metropolitan-district-council/leeds,Leeds City Council as Accountable Body,Social Services Pooled Budgets,Jcs For People With Learning Disabilitie,Third Party Payments,Residential,580,24-Sep-2014,1409-00467,6175.64,R,Aitch Care Homes,No
Http://opendatacommunities.org/id/metropolitan-district-council/leeds,Leeds City Council,Environment & Housing,Parks & Countryside,Supplies and Services,Operational Materials,205,19-Sep-2014,1409-00468,595.00,R,Aitkens Sportsturf Ltd,No
Http://opendatacommunities.org/id/metropolitan-district-council/leeds,Leeds City Council,Adult Social Care,Services For Older People - 65 And Over,Third Party Payments,Home Care,568,19-Sep-2014,1409-00469,8127.74,R,Aj Social Care,No
Http://opendatacommunities.org/id/metropolitan-district-council/leeds,Leeds City Council,Adult Social Care,Services For Older People Under 65 P/Dis,Third Party Payments,Home Care,568,19-Sep-2014,1409-00470,2659.20,R,Aj Social Care,No
Http://opendatacommunities.org/id/metropolitan-district-council/leeds,Leeds City Council,Adult Social Care,Services For Older People Under 65 P/Dis,Third Party Payments,Home Care,568,19-Sep-2014,1409-00471,1107.00,R,Aj Social Care,No
Http://opendatacommunities.org/id/metropolitan-district-council/leeds,Leeds City Council,Central & Corporate,Commercial Services Trading Services,Supplies and Services,Operational Materials,205,30-Sep-2014,1409-00472,477.38,R,Ajm Fixings & Power Tools Ltd,No
Http://opendatacommunities.org/id/metropolitan-district-council/leeds,Leeds City Council,Central & Corporate,Commercial Services Trading Services,Supplies and Services,Operational Materials,205,30-Sep-2014,1409-00473,110.00,R,Ajm Fixings & Power Tools Ltd,No
Http://opendatacommunities.org/id/metropolitan-district-council/leeds,Leeds City Council,Central & Corporate,Commercial Services Trading Services,Supplies and Services,Operational Materials,205,30-Sep-2014,1409-00474,1536.17,R,Ajm Fixings & Power Tools Ltd,No
Http://opendatacommunities.org/id/metropolitan-district-council/leeds,Leeds City Council,Central & Corporate,Commercial Services Trading Services,Supplies and Services,Operational Materials,205,30-Sep-2014,1409-00475,102.50,R,Ajm Fixings & Power Tools Ltd,No
Http://opendatacommunities.org/id/metropolitan-district-council/leeds,Leeds City Council,Central & Corporate,Commercial Services Trading Services,Supplies and Services,Operational Materials,205,30-Sep-2014,1409-00476,197.25,R,Ajm Fixings & Power Tools Ltd,No
Http://opendatacommunities.org/id/metropolitan-district-council/leeds,Leeds City Council,Central & Corporate,Commercial Services Trading Services,Supplies and Services,Operational Materials,205,30-Sep-2014,1409-00477,1028.91,R,Ajm Fixings & Power Tools Ltd,No
Http://opendatacommunities.org/id/metropolitan-district-council/leeds,Leeds City Council,Central & Corporate,Commercial Services Trading Services,Supplies and Services,Operational Materials,205,30-Sep-2014,1409-00478,132.00,R,Ajm Fixings & Power Tools Ltd,No
Http://opendatacommunities.org/id/metropolitan-district-council/leeds,Leeds City Council,Central & Corporate,Commercial Services Trading Services,Supplies and Services,Operational Materials,205,30-Sep-2014,1409-00479,238.50,R,Ajm Fixings & Power Tools Ltd,No
Http://opendatacommunities.org/id/metropolitan-district-council/leeds,Leeds City Council,Central & Corporate,Commercial Services Trading Services,Supplies and Services,Operational Materials,205,30-Sep-2014,1409-00480,240.00,R,Ajm Fixings & Power Tools Ltd,No
Http://opendatacommunities.org/id/metropolitan-district-council/leeds,Leeds City Council,Central & Corporate,Commercial Services Trading Services,Supplies and Services,Operational Materials,205,12-Sep-2014,1409-00481,344.85,R,Ajm Fixings & Power Tools Ltd,No
Http://opendatacommunities.org/id/metropolitan-district-council/leeds,Leeds City Council,Central & Corporate,Commercial Services Trading Services,Supplies and Services,Operational Materials,205,12-Sep-2014,1409-00482,199.50,R,Ajm Fixings & Power Tools Ltd,No
Http://opendatacommunities.org/id/metropolitan-district-council/leeds,Leeds City Council,Central & Corporate,Commercial Services Trading Services,Supplies and Services,Operational Materials,205,09-Sep-2014,1409-00483,102.50,R,Ajm Fixings & Power Tools Ltd,No
Http://opendatacommunities.org/id/metropolitan-district-council/leeds,Leeds City Council,Environment & Housing,Hra,Supplies and Services,Other Hired And Contracted Services,265,19-Sep-2014,1409-00484,92.58,R,Ajm Fixings & Power Tools Ltd,No
Http://opendatacommunities.org/id/metropolitan-district-council/leeds,Leeds City Council,Environment & Housing,Hra,Supplies and Services,Other Hired And Contracted Services,265,19-Sep-2014,1409-00485,282.50,R,Ajm Fixings & Power Tools Ltd,No
Http://opendatacommunities.org/id/metropolitan-district-council/leeds,Leeds City Council,Environment & Housing,Hra,Supplies and Services,Other Hired And Contracted Services,265,12-Sep-2014,1409-00486,305.00,R,Ajm Fixings & Power Tools Ltd,No
Http://opendatacommunities.org/id/metropolitan-district-council/leeds,Leeds City Council,Environment & Housing,Hra,Supplies and Services,Operational Materials,205,30-Sep-2014,1409-00487,13.30,R,Ajm Fixings & Power Tools Ltd,No
Http://opendatacommunities.org/id/metropolitan-district-council/leeds,Leeds City Council,Adult Social Care,Services For Older People - 65 And Over,Third Party Payments,Nursing Home,570,24-Sep-2014,1409-00488,1288.76,R,Akari Care Ltd,No
Http://opendatacommunities.org/id/metropolitan-district-council/leeds,Leeds City Council,Environment & Housing,Hra,Supplies and Services,Other Hired And Contracted Services,265,05-Sep-2014,1409-00489,21250.00,R,Akers Land And Ecology Ltd,No
Http://opendatacommunities.org/id/metropolitan-district-council/leeds,Leeds City Council as Accountable Body,Social Services Pooled Budgets,Jcs For People With Learning Disabilitie,Transfer Payments,Personal Budgets,627,24-Sep-2014,1409-00490,1371.96,R,REDACTED PERSONAL DATA,No
Http://opendatacommunities.org/id/metropolitan-district-council/leeds,Leeds City Council,Central & Corporate,Commercial Services Trading Services,Supplies and Services,Operational Materials,205,10-Sep-2014,1409-00491,45.52,R,Akw Medicare Ltd,No
Http://opendatacommunities.org/id/metropolitan-district-council/leeds,Leeds City Council,Childrens Services,Learning Skills & Universal,Supplies and Services,Non-Recurring Grants,227,01-Sep-2014,1409-00492,2260.00,R,Al Haqq Supplementary School,No
Http://opendatacommunities.org/id/metropolitan-district-council/leeds,Leeds City Council,Childrens Services,Safeguarding Targeted & Specialist  ,Supplies and Services,Office Furniture & Equipment,201,26-Aug-2014,1409-00493,94.00,R,Al Murad Diy Ltd,Yes
Http://opendatacommunities.org/id/metropolitan-district-council/leeds,Leeds City Council,Childrens Services,Safeguarding Targeted & Specialist  ,Transfer Payments,Leaving Care Grants,635,19-Aug-2014,1409-00494,58.33,R,Alams Beautiful Blind,Yes
Http://opendatacommunities.org/id/metropolitan-district-council/leeds,Leeds City Council,Childrens Services,Safeguarding Targeted & Specialist  ,Supplies and Services,Miscellaneous Expenditure,208,06-Aug-2014,1409-00495,30.00,R,Alan Brown Flowers,Yes
Http://opendatacommunities.org/id/metropolitan-district-council/leeds,Leeds City Council,Childrens Services,Safeguarding Targeted & Specialist  ,Supplies and Services,Miscellaneous Expenditure,208,27-Aug-2014,1409-00496,120.00,R,Alan Brown Flowers,Yes
Http://opendatacommunities.org/id/metropolitan-district-council/leeds,Leeds City Council,Environment & Housing,Statutory Housing,Supplies and Services,Other Hired And Contracted Services,265,22-Sep-2014,1409-00497,720.00,R,Alan Cooke Meanwood Ltd,No
Http://opendatacommunities.org/id/metropolitan-district-council/leeds,Leeds City Council,Adult Social Care,Services For Older People Under 65 P/Dis,Transfer Payments,Personalised Budgets,627,24-Sep-2014,1409-00498,2050.00,R,REDACTED PERSONAL DATA,No
Http://opendatacommunities.org/id/metropolitan-district-council/leeds,Leeds City Council,Childrens Services,Learning Skills & Universal,Third Party Payments,Services Rendered By Other Organisations,511,12-Sep-2014,1409-00499,684.00,R,REDACTED PERSONAL DATA,No
Http://opendatacommunities.org/id/metropolitan-district-council/leeds,Leeds City Council,Adult Social Care,Services For Older People - 65 And Over,Transfer Payments,Personalised Budgets,627,24-Sep-2014,1409-00500,263.60,R,REDACTED PERSONAL DATA,No
Http://opendatacommunities.org/id/metropolitan-district-council/leeds,Leeds City Council,City Development,Libraries  Arts & Heritage,Supplies and Services,Non-Recurring Grants,227,12-Sep-2014,1409-00501,12500.00,R,Alchemy Anew,No
Http://opendatacommunities.org/id/metropolitan-district-council/leeds,Leeds City Council,Environment & Housing,Streetscene Environmental Services,Supplies and Services,Other Hired And Contracted Services,265,12-Sep-2014,1409-00502,35.00,R,Alcontrol Uk Ltd,No
Http://opendatacommunities.org/id/metropolitan-district-council/leeds,Leeds City Council,Environment & Housing,Hra,Supplies and Services,Grants To Voluntary Organisations,293,24-Sep-2014,1409-00503,1008.99,R,Alderton Allotment Association,No
Http://opendatacommunities.org/id/metropolitan-district-council/leeds,Leeds City Council,Adult Social Care,Services For Older People - 65 And Over,Transfer Payments,Personalised Budgets,627,24-Sep-2014,1409-00504,4777.77,R,REDACTED PERSONAL DATA,No
Http://opendatacommunities.org/id/metropolitan-district-council/leeds,Leeds City Council,Childrens Services,Safeguarding Targeted & Specialist,Transfer Payments,Leaving Care Grants,635,09-Sep-2014,1409-00505,18.00,R,REDACTED PERSONAL DATA,No
Http://opendatacommunities.org/id/metropolitan-district-council/leeds,Leeds City Council,Central & Corporate,Customer Services,Supplies and Services,Other Hired And Contracted Services,265,03-Sep-2014,1409-00506,190.00,R,Alena Galiyeva,No
Http://opendatacommunities.org/id/metropolitan-district-council/leeds,Leeds City Council,Adult Social Care,Services For Older People Under 65 P/Dis,Transfer Payments,Personalised Budgets,627,24-Sep-2014,1409-00507,500.21,R,REDACTED PERSONAL DATA,No
Http://opendatacommunities.org/id/metropolitan-district-council/leeds,Leeds City Council as Accountable Body,Social Services Pooled Budgets,Jcs For People With Learning Disabilitie,Transfer Payments,Direct Payments,626,24-Sep-2014,1409-00508,1383.40,R,REDACTED PERSONAL DATA,No
Http://opendatacommunities.org/id/metropolitan-district-council/leeds,Leeds City Council,Adult Social Care,Services For Older People Under 65 P/Dis,Transfer Payments,Personalised Budgets,627,24-Sep-2014,1409-00509,985.44,R,REDACTED PERSONAL DATA,No
Http://opendatacommunities.org/id/metropolitan-district-council/leeds,Leeds City Council,Adult Social Care,Services For Older People Under 65 P/Dis,Transfer Payments,Direct Payments,626,24-Sep-2014,1409-00510,1032.94,R,REDACTED PERSONAL DATA,No
Http://opendatacommunities.org/id/metropolitan-district-council/leeds,Leeds City Council,Childrens Services,Safeguarding Targeted & Specialist,Support Services,Legal Disbursements,411,19-Sep-2014,1409-00511,383.57,R,Alex Taylor,No
Http://opendatacommunities.org/id/metropolitan-district-council/leeds,Leeds City Council,Adult Social Care,Services For Older People Under 65 P/Dis,Transfer Payments,Personalised Budgets,627,24-Sep-2014,1409-00512,190.38,R,REDACTED PERSONAL DATA,No
Http://opendatacommunities.org/id/metropolitan-district-council/leeds,Leeds City Council,Adult Social Care,Services For Adults Under 65 Mental/Dis,Transfer Payments,Personalised Budgets,627,24-Sep-2014,1409-00513,640.00,R,REDACTED PERSONAL DATA,No
Http://opendatacommunities.org/id/metropolitan-district-council/leeds,Leeds City Council,Adult Social Care,Services For Adults Under 65 Mental/Dis,Third Party Payments,Residential,580,24-Sep-2014,1409-00514,1856.00,R,Alexander Residential Home,No
Http://opendatacommunities.org/id/metropolitan-district-council/leeds,Leeds City Council,Adult Social Care,Services For Older People - 65 And Over,Third Party Payments,Residential Care Dementia,571,24-Sep-2014,1409-00515,20467.97,R,Alexander Residential Home,No
Http://opendatacommunities.org/id/metropolitan-district-council/leeds,Leeds City Council,Adult Social Care,Services For Older People - 65 And Over,Third Party Payments,Residential,580,24-Sep-2014,1409-00516,9156.06,R,Alexander Residential Home,No
Http://opendatacommunities.org/id/metropolitan-district-council/leeds,Leeds City Council as Accountable Body,Social Services Pooled Budgets,Jcs For People With Learning Disabilitie,Third Party Payments,Residential,580,24-Sep-2014,1409-00517,1288.20,R,Alexander Residential Home,No
Http://opendatacommunities.org/id/metropolitan-district-council/leeds,Leeds City Council as Accountable Body,Social Services Pooled Budgets,Jcs For People With Learning Disabilitie,Transfer Payments,Personal Budgets,627,24-Sep-2014,1409-00518,583.32,R,REDACTED PERSONAL DATA,No
Http://opendatacommunities.org/id/metropolitan-district-council/leeds,Leeds City Council as Accountable Body,Social Services Pooled Budgets,Jcs For People With Learning Disabilitie,Transfer Payments,Direct Payments,626,24-Sep-2014,1409-00519,266.72,R,REDACTED PERSONAL DATA,No
Http://opendatacommunities.org/id/metropolitan-district-council/leeds,Leeds City Council,Central & Corporate,Customer Services,Supplies and Services,Other Hired And Contracted Services,265,03-Sep-2014,1409-00520,27.50,R,Alexandra Costenco,No
Http://opendatacommunities.org/id/metropolitan-district-council/leeds,Leeds City Council,Adult Social Care,Services For Older People - 65 And Over,Third Party Payments,Residential,580,24-Sep-2014,1409-00521,10917.23,R,Alexandra Court,No
Http://opendatacommunities.org/id/metropolitan-district-council/leeds,Leeds City Council,Adult Social Care,Services For Older People - 65 And Over,Third Party Payments,Residential Care Dementia,571,24-Sep-2014,1409-00522,1273.84,R,Alexandra Court,No
Http://opendatacommunities.org/id/metropolitan-district-council/leeds,Leeds City Council,Central & Corporate,Customer Services,Supplies and Services,Other Hired And Contracted Services,265,03-Sep-2014,1409-00523,709.10,R,Alexandra Hirst,No
Http://opendatacommunities.org/id/metropolitan-district-council/leeds,Leeds City Council,Childrens Services,Safeguarding Targeted & Specialist,Transport,Public Transport Expenses,310,24-Sep-2014,1409-00524,3.90,R,REDACTED PERSONAL DATA,No
Http://opendatacommunities.org/id/metropolitan-district-council/leeds,Leeds City Council,Childrens Services,Safeguarding Targeted & Specialist,Supplies and Services,General Amenity For Clients/Residents,285,24-Sep-2014,1409-00525,30.99,R,REDACTED PERSONAL DATA,No
Http://opendatacommunities.org/id/metropolitan-district-council/leeds,Leeds City Council,Environment & Housing,Health & Environmental Action,Supplies and Services,Other Hired And Contracted Services,265,17-Sep-2014,1409-00526,332.75,R,Alexia Blohm-Pain,No
Http://opendatacommunities.org/id/metropolitan-district-council/leeds,Leeds City Council,Environment & Housing,Health & Environmental Action,Supplies and Services,Other Hired And Contracted Services,265,19-Sep-2014,1409-00527,182.75,R,Alexia Blohm-Pain,No
Http://opendatacommunities.org/id/metropolitan-district-council/leeds,Leeds City Council,Childrens Services,Safeguarding Targeted & Specialist,Third Party Payments,Placement Support,550,26-Sep-2014,1409-00528,113.70,R,REDACTED PERSONAL DATA,No
Http://opendatacommunities.org/id/metropolitan-district-council/leeds,Leeds City Council,Adult Social Care,Services For Older People - 65 And Over,Supplies and Services,Operational Furniture And Equipment,203,30-Sep-2014,1409-00529,400.00,R,Alfred Bagnall & Sons (Leeds) Ltd,No
Http://opendatacommunities.org/id/metropolitan-district-council/leeds,Leeds City Council,Central & Corporate,Commercial Services Trading Services,Supplies and Services,Other Hired And Contracted Services,265,30-Sep-2014,1409-00530,4000.00,R,Alfred Bagnall & Sons (Leeds) Ltd,No
Http://opendatacommunities.org/id/metropolitan-district-council/leeds,Leeds City Council,Central & Corporate,Commercial Services Trading Services,Supplies and Services,Other Hired And Contracted Services,265,30-Sep-2014,1409-00531,4800.00,R,Alfred Bagnall & Sons (Leeds) Ltd,No
Http://opendatacommunities.org/id/metropolitan-district-council/leeds,Leeds City Council,Central & Corporate,Commercial Services Trading Services,Supplies and Services,Other Hired And Contracted Services,265,30-Sep-2014,1409-00532,7000.00,R,Alfred Bagnall & Sons (Leeds) Ltd,No
Http://opendatacommunities.org/id/metropolitan-district-council/leeds,Leeds City Council,Central & Corporate,Commercial Services Trading Services,Supplies and Services,Other Hired And Contracted Services,265,30-Sep-2014,1409-00533,5148.00,R,Alfred Bagnall & Sons (Leeds) Ltd,No
Http://opendatacommunities.org/id/metropolitan-district-council/leeds,Leeds City Council,Central & Corporate,Commercial Services Trading Services,Supplies and Services,Other Hired And Contracted Services,265,03-Sep-2014,1409-00534,3000.00,R,Alfred Bagnall & Sons (Leeds) Ltd,No
Http://opendatacommunities.org/id/metropolitan-district-council/leeds,Leeds City Council,Central & Corporate,Commercial Services Trading Services,Premises,Maintenance Of Buildings,101,10-Sep-2014,1409-00535,400.00,R,Alfred Bagnall & Sons (Leeds) Ltd,No
Http://opendatacommunities.org/id/metropolitan-district-council/leeds,Leeds City Council,Central & Corporate,Commercial Services Trading Services,Premises,Maintenance Of Buildings,101,03-Sep-2014,1409-00536,12500.00,R,Alfred Bagnall & Sons (Leeds) Ltd,No
Http://opendatacommunities.org/id/metropolitan-district-council/leeds,Leeds City Council,Central & Corporate,Commercial Services Trading Services,Premises,Maintenance Of Buildings,101,03-Sep-2014,1409-00537,3925.00,R,Alfred Bagnall & Sons (Leeds) Ltd,No
Http://opendatacommunities.org/id/metropolitan-district-council/leeds,Leeds City Council,City Development,Asset Management Services,Capital,Other Costs,7,23-Sep-2014,1409-00538,4315.00,C,Alfred Bagnall & Sons (Leeds) Ltd,No
Http://opendatacommunities.org/id/metropolitan-district-council/leeds,Leeds City Council,Adult Social Care,Services For Older People Under 65 P/Dis,Transfer Payments,Personalised Budgets,627,24-Sep-2014,1409-00539,525.36,R,REDACTED PERSONAL DATA,No
Http://opendatacommunities.org/id/metropolitan-district-council/leeds,Leeds City Council,Childrens Services,Safeguarding Targeted & Specialist,Transfer Payments,Leaving Care Allowances,634,19-Sep-2014,1409-00540,114.80,R,REDACTED PERSONAL DATA,No
Http://opendatacommunities.org/id/metropolitan-district-council/leeds,Leeds City Council as Accountable Body,Social Services Pooled Budgets,Jcs For People With Learning Disabilitie,Transfer Payments,Personal Budgets,627,24-Sep-2014,1409-00541,1026.96,R,REDACTED PERSONAL DATA,No
Http://opendatacommunities.org/id/metropolitan-district-council/leeds,Leeds City Council,Adult Social Care,Services For Older People Under 65 P/Dis,Transfer Payments,Personalised Budgets,627,24-Sep-2014,1409-00542,192.00,R,REDACTED PERSONAL DATA,No
Http://opendatacommunities.org/id/metropolitan-district-council/leeds,Leeds City Council,City Development,Libraries  Arts & Heritage,Supplies and Services,Bought In Professional Services,277,03-Sep-2014,1409-00543,1817.50,R,Alison Glew,No
Http://opendatacommunities.org/id/metropolitan-district-council/leeds,Leeds City Council,City Development,Libraries  Arts & Heritage,Supplies and Services,Bought In Professional Services,277,26-Sep-2014,1409-00544,1500.00,R,Alison Glew,No
Http://opendatacommunities.org/id/metropolitan-district-council/leeds,Leeds City Council,Childrens Services,Safeguarding Targeted & Specialist,Third Party Payments,Allowances,546,29-Sep-2014,1409-00545,36.50,R,REDACTED PERSONAL DATA,No
Http://opendatacommunities.org/id/metropolitan-district-council/leeds,Leeds City Council,Childrens Services,Safeguarding Targeted & Specialist,Third Party Payments,Contact,548,29-Sep-2014,1409-00546,51.20,R,REDACTED PERSONAL DATA,No
Http://opendatacommunities.org/id/metropolitan-district-council/leeds,Leeds City Council,Adult Social Care,Services For Older People Under 65 P/Dis,Transfer Payments,Personalised Budgets,627,24-Sep-2014,1409-00547,1394.00,R,REDACTED PERSONAL DATA,No
Http://opendatacommunities.org/id/metropolitan-district-council/leeds,Leeds City Council,City Development,Libraries  Arts & Heritage,Supplies and Services,Other Hired And Contracted Services,265,05-Sep-2014,1409-00548,250.00,R,Alistair Grffin,No
Http://opendatacommunities.org/id/metropolitan-district-council/leeds,Leeds City Council,Childrens Services,Learning Skills & Universal,Supplies and Services,Operational Furniture And Equipment,203,05-Sep-2014,1409-00549,105.00,R,All Safe & Secure Ltd,No
Http://opendatacommunities.org/id/metropolitan-district-council/leeds,Leeds City Council,Childrens Services,Learning Skills & Universal,Third Party Payments,Services Rendered By Other Organisations,511,16-Sep-2014,1409-00550,6984.00,R,All Stars Childcare,No
Http://opendatacommunities.org/id/metropolitan-district-council/leeds,Leeds City Council,Childrens Services,Learning Skills & Universal,Third Party Payments,Services Rendered By Other Organisations,511,12-Sep-2014,1409-00551,5472.00,R,All Stars Childcare,No
Http://opendatacommunities.org/id/metropolitan-district-council/leeds,Leeds City Council,Central & Corporate,Support And Facilities General Fund,Premises,Furniture And Fittings,195,12-Sep-2014,1409-00552,220.00,R,Allansound Communications,No
Http://opendatacommunities.org/id/metropolitan-district-council/leeds,Leeds City Council,Environment & Housing,Parks & Countryside,Supplies and Services,Operational Furniture And Equipment,203,19-Sep-2014,1409-00553,365.00,R,Allansound Communications,No
Http://opendatacommunities.org/id/metropolitan-district-council/leeds,Leeds City Council,Central & Corporate,Human Resources,Employees,Occupational Health,85,24-Sep-2014,1409-00554,64.00,R,Allen Stanley & Hide,No
Http://opendatacommunities.org/id/metropolitan-district-council/leeds,Leeds City Council,Central & Corporate,Public Health,Third Party Payments,Public Health Commissioned Services,526,24-Sep-2014,1409-00555,3976.73,R,Allen Stanley & Hide,No
Http://opendatacommunities.org/id/metropolitan-district-council/leeds,Leeds City Council as Accountable Body,Social Services Pooled Budgets,Jcs For People With Learning Disabilitie,Third Party Payments,Sheltered Accommodation,569,24-Sep-2014,1409-00556,16596.04,R,Allerton Avenue,No
Http://opendatacommunities.org/id/metropolitan-district-council/leeds,Leeds City Council,Central & Corporate,Human Resources,Premises,Hire of meeting rooms,143,29-Sep-2014,1409-00557,-200.00,R,Allerton Bywater Community Partnership,No
Http://opendatacommunities.org/id/metropolitan-district-council/leeds,Leeds City Council,Central & Corporate,Human Resources,Supplies and Services,Food & Drink,231,29-Sep-2014,1409-00558,-226.00,R,Allerton Bywater Community Partnership,No
Http://opendatacommunities.org/id/metropolitan-district-council/leeds,Leeds City Council,Central & Corporate,Public Health,Third Party Payments,Public Health Commissioned Services,526,24-Sep-2014,1409-00559,3451.73,R,Allerton Medical Centre,No
Http://opendatacommunities.org/id/metropolitan-district-council/leeds,Leeds City Council,Central & Corporate,Benefits,Supplies and Services,Bank Charges,263,01-Sep-2014,1409-00560,-111.14,R,Alliance & Leicester Commercial Bank,No
Http://opendatacommunities.org/id/metropolitan-district-council/leeds,Leeds City Council,Central & Corporate,Benefits,Supplies and Services,Bank Charges,263,08-Sep-2014,1409-00561,100.24,R,Alliance & Leicester Commercial Bank,No
Http://opendatacommunities.org/id/metropolitan-district-council/leeds,Leeds City Council,Central & Corporate,Benefits,Supplies and Services,Bank Charges,263,08-Sep-2014,1409-00562,565.95,R,Alliance & Leicester Commercial Bank,No
Http://opendatacommunities.org/id/metropolitan-district-council/leeds,Leeds City Council,Central & Corporate,Benefits,Supplies and Services,Bank Charges,263,08-Sep-2014,1409-00563,441.98,R,Alliance & Leicester Commercial Bank,No
Http://opendatacommunities.org/id/metropolitan-district-council/leeds,Leeds City Council,Central & Corporate,Benefits,Supplies and Services,Bank Charges,263,08-Sep-2014,1409-00564,3.92,R,Alliance & Leicester Commercial Bank,No
Http://opendatacommunities.org/id/metropolitan-district-council/leeds,Leeds City Council,Environment & Housing,Hra,Supplies and Services,Other Hired And Contracted Services,265,08-Sep-2014,1409-00565,284.35,R,Alliance & Leicester Commercial Bank,No
Http://opendatacommunities.org/id/metropolitan-district-council/leeds,Leeds City Council,Environment & Housing,Environmental Health  ,Supplies and Services,Operational Materials,205,12-Aug-2014,1409-00566,17.61,R,Alliance Disposables,Yes
Http://opendatacommunities.org/id/metropolitan-district-council/leeds,Leeds City Council,Adult Social Care,Other Generic Services,Third Party Payments,Home Care,568,19-Sep-2014,1409-00567,18840.84,R,Allied Healthcare Group Ltd,No
Http://opendatacommunities.org/id/metropolitan-district-council/leeds,Leeds City Council,Adult Social Care,Other Generic Services,Third Party Payments,Home Care,568,19-Sep-2014,1409-00568,6907.11,R,Allied Healthcare Group Ltd,No
Http://opendatacommunities.org/id/metropolitan-district-council/leeds,Leeds City Council,Adult Social Care,Other Generic Services,Third Party Payments,Home Care,568,19-Sep-2014,1409-00569,19541.36,R,Allied Healthcare Group Ltd,No
Http://opendatacommunities.org/id/metropolitan-district-council/leeds,Leeds City Council,Adult Social Care,Other Generic Services,Third Party Payments,Home Care,568,19-Sep-2014,1409-00570,6338.52,R,Allied Healthcare Group Ltd,No
Http://opendatacommunities.org/id/metropolitan-district-council/leeds,Leeds City Council,Adult Social Care,Services For Older People - 65 And Over,Third Party Payments,Home Care,568,16-Sep-2014,1409-00571,71.50,R,Allied Healthcare Group Ltd,No
Http://opendatacommunities.org/id/metropolitan-district-council/leeds,Leeds City Council,Adult Social Care,Services For Older People - 65 And Over,Third Party Payments,Home Care,568,16-Sep-2014,1409-00572,459.26,R,Allied Healthcare Group Ltd,No
Http://opendatacommunities.org/id/metropolitan-district-council/leeds,Leeds City Council,Adult Social Care,Services For Older People - 65 And Over,Third Party Payments,Home Care,568,16-Sep-2014,1409-00573,5066.70,R,Allied Healthcare Group Ltd,No
Http://opendatacommunities.org/id/metropolitan-district-council/leeds,Leeds City Council,Adult Social Care,Services For Older People - 65 And Over,Third Party Payments,Home Care,568,16-Sep-2014,1409-00574,72.89,R,Allied Healthcare Group Ltd,No
Http://opendatacommunities.org/id/metropolitan-district-council/leeds,Leeds City Council,Adult Social Care,Services For Older People - 65 And Over,Third Party Payments,Home Care,568,18-Sep-2014,1409-00575,5005.49,R,Allied Healthcare Group Ltd,No
Http://opendatacommunities.org/id/metropolitan-district-council/leeds,Leeds City Council,Adult Social Care,Services For Older People - 65 And Over,Third Party Payments,Home Care,568,18-Sep-2014,1409-00576,13288.43,R,Allied Healthcare Group Ltd,No
Http://opendatacommunities.org/id/metropolitan-district-council/leeds,Leeds City Council,Adult Social Care,Services For Older People - 65 And Over,Third Party Payments,Home Care,568,18-Sep-2014,1409-00577,1989.67,R,Allied Healthcare Group Ltd,No
Http://opendatacommunities.org/id/metropolitan-district-council/leeds,Leeds City Council,Adult Social Care,Services For Older People - 65 And Over,Third Party Payments,Home Care,568,18-Sep-2014,1409-00578,1485.75,R,Allied Healthcare Group Ltd,No
Http://opendatacommunities.org/id/metropolitan-district-council/leeds,Leeds City Council,Adult Social Care,Services For Older People - 65 And Over,Third Party Payments,Home Care,568,18-Sep-2014,1409-00579,4111.88,R,Allied Healthcare Group Ltd,No
Http://opendatacommunities.org/id/metropolitan-district-council/leeds,Leeds City Council,Adult Social Care,Services For Older People - 65 And Over,Third Party Payments,Home Care,568,18-Sep-2014,1409-00580,289.67,R,Allied Healthcare Group Ltd,No
Http://opendatacommunities.org/id/metropolitan-district-council/leeds,Leeds City Council,Adult Social Care,Services For Older People - 65 And Over,Third Party Payments,Home Care,568,18-Sep-2014,1409-00581,16368.58,R,Allied Healthcare Group Ltd,No
Http://opendatacommunities.org/id/metropolitan-district-council/leeds,Leeds City Council,Adult Social Care,Services For Older People - 65 And Over,Third Party Payments,Home Care,568,18-Sep-2014,1409-00582,6500.59,R,Allied Healthcare Group Ltd,No
Http://opendatacommunities.org/id/metropolitan-district-council/leeds,Leeds City Council,Adult Social Care,Services For Older People - 65 And Over,Third Party Payments,Home Care,568,05-Sep-2014,1409-00583,6.13,R,Allied Healthcare Group Ltd,No
Http://opendatacommunities.org/id/metropolitan-district-council/leeds,Leeds City Council,Adult Social Care,Services For Older People - 65 And Over,Third Party Payments,Home Care,568,05-Sep-2014,1409-00584,382.50,R,Allied Healthcare Group Ltd,No
Http://opendatacommunities.org/id/metropolitan-district-council/leeds,Leeds City Council,Adult Social Care,Services For Older People - 65 And Over,Third Party Payments,Home Care,568,09-Sep-2014,1409-00585,30.62,R,Allied Healthcare Group Ltd,No
Http://opendatacommunities.org/id/metropolitan-district-council/leeds,Leeds City Council,Adult Social Care,Services For Older People - 65 And Over,Third Party Payments,Home Care,568,25-Sep-2014,1409-00586,626.99,R,Allied Healthcare Group Ltd,No
Http://opendatacommunities.org/id/metropolitan-district-council/leeds,Leeds City Council,Adult Social Care,Services For Older People - 65 And Over,Third Party Payments,Home Care,568,25-Sep-2014,1409-00587,369.75,R,Allied Healthcare Group Ltd,No
Http://opendatacommunities.org/id/metropolitan-district-council/leeds,Leeds City Council,Adult Social Care,Services For Older People - 65 And Over,Third Party Payments,Home Care,568,25-Sep-2014,1409-00588,153.00,R,Allied Healthcare Group Ltd,No
Http://opendatacommunities.org/id/metropolitan-district-council/leeds,Leeds City Council,Adult Social Care,Services For Older People - 65 And Over,Third Party Payments,Home Care,568,25-Sep-2014,1409-00589,1428.00,R,Allied Healthcare Group Ltd,No
Http://opendatacommunities.org/id/metropolitan-district-council/leeds,Leeds City Council,Adult Social Care,Services For Older People - 65 And Over,Third Party Payments,Home Care,568,25-Sep-2014,1409-00590,351.08,R,Allied Healthcare Group Ltd,No
Http://opendatacommunities.org/id/metropolitan-district-council/leeds,Leeds City Council,Adult Social Care,Services For Older People - 65 And Over,Third Party Payments,Home Care,568,12-Sep-2014,1409-00591,615.87,R,Allied Healthcare Group Ltd,No
Http://opendatacommunities.org/id/metropolitan-district-council/leeds,Leeds City Council,Adult Social Care,Services For Older People - 65 And Over,Third Party Payments,Home Care,568,16-Sep-2014,1409-00592,1639.42,R,Allied Healthcare Group Ltd,No
Http://opendatacommunities.org/id/metropolitan-district-council/leeds,Leeds City Council,Adult Social Care,Services For Older People Under 65 P/Dis,Third Party Payments,Home Care,568,16-Sep-2014,1409-00593,347.78,R,Allied Healthcare Group Ltd,No
Http://opendatacommunities.org/id/metropolitan-district-council/leeds,Leeds City Council,Adult Social Care,Services For Older People Under 65 P/Dis,Third Party Payments,Home Care,568,16-Sep-2014,1409-00594,75.66,R,Allied Healthcare Group Ltd,No
Http://opendatacommunities.org/id/metropolitan-district-council/leeds,Leeds City Council,Adult Social Care,Services For Older People Under 65 P/Dis,Third Party Payments,Home Care,568,18-Sep-2014,1409-00595,1164.05,R,Allied Healthcare Group Ltd,No
Http://opendatacommunities.org/id/metropolitan-district-council/leeds,Leeds City Council,Adult Social Care,Services For Older People Under 65 P/Dis,Third Party Payments,Home Care,568,18-Sep-2014,1409-00596,2146.08,R,Allied Healthcare Group Ltd,No
Http://opendatacommunities.org/id/metropolitan-district-council/leeds,Leeds City Council,Adult Social Care,Services For Older People Under 65 P/Dis,Third Party Payments,Home Care,568,18-Sep-2014,1409-00597,248.92,R,Allied Healthcare Group Ltd,No
Http://opendatacommunities.org/id/metropolitan-district-council/leeds,Leeds City Council,Adult Social Care,Services For Older People Under 65 P/Dis,Third Party Payments,Home Care,568,18-Sep-2014,1409-00598,230.16,R,Allied Healthcare Group Ltd,No
Http://opendatacommunities.org/id/metropolitan-district-council/leeds,Leeds City Council,Adult Social Care,Services For Older People Under 65 P/Dis,Third Party Payments,Home Care,568,18-Sep-2014,1409-00599,1303.76,R,Allied Healthcare Group Ltd,No
Http://opendatacommunities.org/id/metropolitan-district-council/leeds,Leeds City Council,Adult Social Care,Services For Older People Under 65 P/Dis,Third Party Payments,Home Care,568,11-Sep-2014,1409-00600,6.63,R,Allied Healthcare Group Ltd,No
Http://opendatacommunities.org/id/metropolitan-district-council/leeds,Leeds City Council,Adult Social Care,Services For Older People Under 65 P/Dis,Third Party Payments,Home Care,568,09-Sep-2014,1409-00601,326.40,R,Allied Healthcare Group Ltd,No
Http://opendatacommunities.org/id/metropolitan-district-council/leeds,Leeds City Council,Adult Social Care,Services For Older People Under 65 P/Dis,Third Party Payments,Home Care,568,25-Sep-2014,1409-00602,6035.29,R,Allied Healthcare Group Ltd,No
Http://opendatacommunities.org/id/metropolitan-district-council/leeds,Leeds City Council,Adult Social Care,Services For Older People Under 65 P/Dis,Third Party Payments,Home Care,568,25-Sep-2014,1409-00603,906.16,R,Allied Healthcare Group Ltd,No
Http://opendatacommunities.org/id/metropolitan-district-council/leeds,Leeds City Council,Adult Social Care,Services For Older People Under 65 P/Dis,Third Party Payments,Home Care,568,12-Sep-2014,1409-00604,340.47,R,Allied Healthcare Group Ltd,No
Http://opendatacommunities.org/id/metropolitan-district-council/leeds,Leeds City Council,Central & Corporate,Commercial Services General Fund,Employees,Agency Staff,8,01-Sep-2014,1409-00605,128.77,R,Allied Healthcare Group Ltd,No
Http://opendatacommunities.org/id/metropolitan-district-council/leeds,Leeds City Council,Central & Corporate,Commercial Services General Fund,Employees,Agency Staff,8,01-Sep-2014,1409-00606,99.40,R,Allied Healthcare Group Ltd,No
Http://opendatacommunities.org/id/metropolitan-district-council/leeds,Leeds City Council,Childrens Services,Safeguarding Targeted & Specialist,Third Party Payments,Services Rendered By Voluntary Sector,505,25-Sep-2014,1409-00607,1071.70,R,Allied Healthcare Group Ltd,No
Http://opendatacommunities.org/id/metropolitan-district-council/leeds,Leeds City Council,Childrens Services,Safeguarding Targeted & Specialist,Third Party Payments,Services Rendered By Voluntary Sector,505,26-Sep-2014,1409-00608,45.31,R,Allied Healthcare Group Ltd,No
Http://opendatacommunities.org/id/metropolitan-district-council/leeds,Leeds City Council,Childrens Services,Safeguarding Targeted & Specialist,Third Party Payments,Services Rendered By Voluntary Sector,505,25-Sep-2014,1409-00609,1546.10,R,Allied Healthcare Group Ltd,No
Http://opendatacommunities.org/id/metropolitan-district-council/leeds,Leeds City Council,Childrens Services,Safeguarding Targeted & Specialist,Third Party Payments,Services Rendered By Voluntary Sector,505,10-Sep-2014,1409-00610,79.38,R,Allied Healthcare Group Ltd,No
Http://opendatacommunities.org/id/metropolitan-district-council/leeds,Leeds City Council,Childrens Services,Safeguarding Targeted & Specialist,Third Party Payments,Services Rendered By Voluntary Sector,505,05-Sep-2014,1409-00611,1546.10,R,Allied Healthcare Group Ltd,No
Http://opendatacommunities.org/id/metropolitan-district-council/leeds,Leeds City Council,Childrens Services,Safeguarding Targeted & Specialist,Third Party Payments,Services Rendered By Voluntary Sector,505,10-Sep-2014,1409-00612,73.98,R,Allied Healthcare Group Ltd,No
Http://opendatacommunities.org/id/metropolitan-district-council/leeds,Leeds City Council,Childrens Services,Safeguarding Targeted & Specialist,Third Party Payments,Services Rendered By Voluntary Sector,505,29-Sep-2014,1409-00613,42.97,R,Allied Healthcare Group Ltd,No
Http://opendatacommunities.org/id/metropolitan-district-council/leeds,Leeds City Council,Childrens Services,Safeguarding Targeted & Specialist,Third Party Payments,Services Rendered By Voluntary Sector,505,10-Sep-2014,1409-00614,54.28,R,Allied Healthcare Group Ltd,No
Http://opendatacommunities.org/id/metropolitan-district-council/leeds,Leeds City Council,Childrens Services,Safeguarding Targeted & Specialist,Third Party Payments,Services Rendered By Voluntary Sector,505,10-Sep-2014,1409-00615,56.10,R,Allied Healthcare Group Ltd,No
Http://opendatacommunities.org/id/metropolitan-district-council/leeds,Leeds City Council,Childrens Services,Safeguarding Targeted & Specialist,Third Party Payments,Services Rendered By Voluntary Sector,505,10-Sep-2014,1409-00616,106.80,R,Allied Healthcare Group Ltd,No
Http://opendatacommunities.org/id/metropolitan-district-council/leeds,Leeds City Council,Childrens Services,Safeguarding Targeted & Specialist,Third Party Payments,Services Rendered By Voluntary Sector,505,10-Sep-2014,1409-00617,113.96,R,Allied Healthcare Group Ltd,No
Http://opendatacommunities.org/id/metropolitan-district-council/leeds,Leeds City Council,Childrens Services,Safeguarding Targeted & Specialist,Third Party Payments,Services Rendered By Voluntary Sector,505,10-Sep-2014,1409-00618,42.97,R,Allied Healthcare Group Ltd,No
Http://opendatacommunities.org/id/metropolitan-district-council/leeds,Leeds City Council,Childrens Services,Safeguarding Targeted & Specialist,Third Party Payments,Services Rendered By Voluntary Sector,505,10-Sep-2014,1409-00619,86.69,R,Allied Healthcare Group Ltd,No
Http://opendatacommunities.org/id/metropolitan-district-council/leeds,Leeds City Council,Childrens Services,Safeguarding Targeted & Specialist,Third Party Payments,Services Rendered By Voluntary Sector,505,10-Sep-2014,1409-00620,59.68,R,Allied Healthcare Group Ltd,No
Http://opendatacommunities.org/id/metropolitan-district-council/leeds,Leeds City Council,Childrens Services,Safeguarding Targeted & Specialist,Third Party Payments,Services Rendered By Voluntary Sector,505,10-Sep-2014,1409-00621,67.45,R,Allied Healthcare Group Ltd,No
Http://opendatacommunities.org/id/metropolitan-district-council/leeds,Leeds City Council as Accountable Body,Social Services Pooled Budgets,Jcs For People With Learning Disabilitie,Third Party Payments,Home Care,568,19-Sep-2014,1409-00622,3775.39,R,Allied Healthcare Group Ltd,No
Http://opendatacommunities.org/id/metropolitan-district-council/leeds,Leeds City Council as Accountable Body,Social Services Pooled Budgets,Jcs For People With Learning Disabilitie,Third Party Payments,Home Care,568,12-Sep-2014,1409-00623,577.31,R,Allied Healthcare Group Ltd,No
Http://opendatacommunities.org/id/metropolitan-district-council/leeds,Leeds City Council as Accountable Body,Social Services Pooled Budgets,Jcs For People With Learning Disabilitie,Third Party Payments,Home Care,568,19-Sep-2014,1409-00624,3341.20,R,Allied Healthcare Group Ltd,No
Http://opendatacommunities.org/id/metropolitan-district-council/leeds,Leeds City Council as Accountable Body,Social Services Pooled Budgets,Jcs For People With Learning Disabilitie,Third Party Payments,Home Care,568,22-Sep-2014,1409-00625,719.64,R,Allied Healthcare Group Ltd,No
Http://opendatacommunities.org/id/metropolitan-district-council/leeds,Leeds City Council as Accountable Body,Social Services Pooled Budgets,Jcs For People With Learning Disabilitie,Third Party Payments,Home Care,568,12-Sep-2014,1409-00626,222.40,R,Allied Healthcare Group Ltd,No
Http://opendatacommunities.org/id/metropolitan-district-council/leeds,Leeds City Council as Accountable Body,Social Services Pooled Budgets,Jcs For People With Learning Disabilitie,Third Party Payments,Home Care,568,22-Sep-2014,1409-00627,3929.65,R,Allied Healthcare Group Ltd,No
Http://opendatacommunities.org/id/metropolitan-district-council/leeds,Leeds City Council as Accountable Body,Social Services Pooled Budgets,Jcs For People With Learning Disabilitie,Third Party Payments,Home Care,568,12-Sep-2014,1409-00628,25.10,R,Allied Healthcare Group Ltd,No
Http://opendatacommunities.org/id/metropolitan-district-council/leeds,Leeds City Council as Accountable Body,Social Services Pooled Budgets,Jcs For People With Learning Disabilitie,Third Party Payments,Home Care,568,12-Sep-2014,1409-00629,552.20,R,Allied Healthcare Group Ltd,No
Http://opendatacommunities.org/id/metropolitan-district-council/leeds,Leeds City Council as Accountable Body,Social Services Pooled Budgets,Jcs For People With Learning Disabilitie,Third Party Payments,Home Care,568,16-Sep-2014,1409-00630,3033.00,R,Allied Healthcare Group Ltd,No
Http://opendatacommunities.org/id/metropolitan-district-council/leeds,Leeds City Council as Accountable Body,Social Services Pooled Budgets,Jcs For People With Learning Disabilitie,Third Party Payments,Home Care,568,26-Sep-2014,1409-00631,3764.72,R,Allied Healthcare Group Ltd,No
Http://opendatacommunities.org/id/metropolitan-district-council/leeds,Leeds City Council as Accountable Body,Social Services Pooled Budgets,Jcs For People With Learning Disabilitie,Third Party Payments,Home Care,568,26-Sep-2014,1409-00632,37.65,R,Allied Healthcare Group Ltd,No
Http://opendatacommunities.org/id/metropolitan-district-council/leeds,Leeds City Council as Accountable Body,Social Services Pooled Budgets,Jcs For People With Learning Disabilitie,Third Party Payments,Home Care,568,26-Sep-2014,1409-00633,567.89,R,Allied Healthcare Group Ltd,No
Http://opendatacommunities.org/id/metropolitan-district-council/leeds,Leeds City Council as Accountable Body,Social Services Pooled Budgets,Jcs For People With Learning Disabilitie,Third Party Payments,Home Care,568,26-Sep-2014,1409-00634,22.66,R,Allied Healthcare Group Ltd,No
Http://opendatacommunities.org/id/metropolitan-district-council/leeds,Leeds City Council as Accountable Body,Social Services Pooled Budgets,Jcs For People With Learning Disabilitie,Third Party Payments,Home Care,568,26-Sep-2014,1409-00635,3256.03,R,Allied Healthcare Group Ltd,No
Http://opendatacommunities.org/id/metropolitan-district-council/leeds,Leeds City Council as Accountable Body,Social Services Pooled Budgets,Jcs For People With Learning Disabilitie,Third Party Payments,Home Care,568,16-Sep-2014,1409-00636,-522.84,R,Allied Healthcare Group Ltd,No
Http://opendatacommunities.org/id/metropolitan-district-council/leeds,Leeds City Council as Accountable Body,Social Services Pooled Budgets,Jcs For People With Learning Disabilitie,Third Party Payments,Home Care,568,05-Sep-2014,1409-00637,564.75,R,Allied Healthcare Group Ltd,No
Http://opendatacommunities.org/id/metropolitan-district-council/leeds,Leeds City Council as Accountable Body,Social Services Pooled Budgets,Jcs For People With Learning Disabilitie,Third Party Payments,Home Care,568,01-Sep-2014,1409-00638,3309.54,R,Allied Healthcare Group Ltd,No
Http://opendatacommunities.org/id/metropolitan-district-council/leeds,Leeds City Council as Accountable Body,Social Services Pooled Budgets,Jcs For People With Learning Disabilitie,Third Party Payments,Home Care,568,16-Sep-2014,1409-00639,5.10,R,Allied Healthcare Group Ltd,No
Http://opendatacommunities.org/id/metropolitan-district-council/leeds,Leeds City Council as Accountable Body,Social Services Pooled Budgets,Jcs For People With Learning Disabilitie,Third Party Payments,Home Care,568,11-Sep-2014,1409-00640,102.00,R,Allied Healthcare Group Ltd,No
Http://opendatacommunities.org/id/metropolitan-district-council/leeds,Leeds City Council as Accountable Body,Social Services Pooled Budgets,Jcs For People With Learning Disabilitie,Third Party Payments,Home Care,568,19-Sep-2014,1409-00641,3771.05,R,Allied Healthcare Group Ltd,No
Http://opendatacommunities.org/id/metropolitan-district-council/leeds,Leeds City Council as Accountable Body,Social Services Pooled Budgets,Jcs For People With Learning Disabilitie,Third Party Payments,Home Care,568,19-Sep-2014,1409-00642,37.65,R,Allied Healthcare Group Ltd,No
Http://opendatacommunities.org/id/metropolitan-district-council/leeds,Leeds City Council as Accountable Body,Social Services Pooled Budgets,Jcs For People With Learning Disabilitie,Third Party Payments,Home Care,568,12-Sep-2014,1409-00643,589.85,R,Allied Healthcare Group Ltd,No
Http://opendatacommunities.org/id/metropolitan-district-council/leeds,Leeds City Council as Accountable Body,Social Services Pooled Budgets,Jcs For People With Learning Disabilitie,Third Party Payments,Home Care,568,19-Sep-2014,1409-00644,3220.05,R,Allied Healthcare Group Ltd,No
Http://opendatacommunities.org/id/metropolitan-district-council/leeds,Leeds City Council as Accountable Body,Social Services Pooled Budgets,Jcs For People With Learning Disabilitie,Third Party Payments,Home Care,568,05-Sep-2014,1409-00645,4061.27,R,Allied Healthcare Group Ltd,No
Http://opendatacommunities.org/id/metropolitan-district-council/leeds,Leeds City Council as Accountable Body,Social Services Pooled Budgets,Jcs For People With Learning Disabilitie,Third Party Payments,Home Care,568,26-Sep-2014,1409-00646,31.38,R,Allied Healthcare Group Ltd,No
Http://opendatacommunities.org/id/metropolitan-district-council/leeds,Leeds City Council as Accountable Body,Social Services Pooled Budgets,Jcs For People With Learning Disabilitie,Third Party Payments,Home Care,568,12-Sep-2014,1409-00647,444.52,R,Allied Healthcare Group Ltd,No
Http://opendatacommunities.org/id/metropolitan-district-council/leeds,Leeds City Council as Accountable Body,Social Services Pooled Budgets,Jcs For People With Learning Disabilitie,Third Party Payments,Home Care,568,19-Sep-2014,1409-00648,405.40,R,Allied Healthcare Group Ltd,No
Http://opendatacommunities.org/id/metropolitan-district-council/leeds,Leeds City Council as Accountable Body,Social Services Pooled Budgets,Jcs For People With Learning Disabilitie,Third Party Payments,Home Care,568,19-Sep-2014,1409-00649,3345.64,R,Allied Healthcare Group Ltd,No
Http://opendatacommunities.org/id/metropolitan-district-council/leeds,Leeds City Council as Accountable Body,Social Services Pooled Budgets,Jcs For People With Learning Disabilitie,Third Party Payments,Home Care,568,16-Sep-2014,1409-00650,5.10,R,Allied Healthcare Group Ltd,No
Http://opendatacommunities.org/id/metropolitan-district-council/leeds,Leeds City Council,Childrens Services,Learning Skills & Universal,Third Party Payments,Services Rendered By Other Organisations,511,16-Sep-2014,1409-00651,873.00,R,REDACTED PERSONAL DATA,No
Http://opendatacommunities.org/id/metropolitan-district-council/leeds,Leeds City Council,Central & Corporate,Commercial Services Trading Services,Transport,Fuel (Non LCC Supplies),321,12-Sep-2014,1409-00652,65.30,R,Allstar Business Solutions Ltd,No
Http://opendatacommunities.org/id/metropolitan-district-council/leeds,Leeds City Council,Central & Corporate,Commercial Services Trading Services,Transport,Fuel (Non LCC Supplies),321,29-Sep-2014,1409-00653,64.17,R,Allstar Business Solutions Ltd,No
Http://opendatacommunities.org/id/metropolitan-district-council/leeds,Leeds City Council,Central & Corporate,Support And Facilities General Fund,Transport,Fuel (Non LCC Supplies),321,08-Sep-2014,1409-00654,195.47,R,Allstar Business Solutions Ltd,No
Http://opendatacommunities.org/id/metropolitan-district-council/leeds,Leeds City Council,Childrens Services,Learning Skills & Universal,Transport,Fuel (Non LCC Supplies),321,08-Sep-2014,1409-00655,1567.58,R,Allstar Business Solutions Ltd,No
Http://opendatacommunities.org/id/metropolitan-district-council/leeds,Leeds City Council,City Development,Highways,Transport,Fuel (Non LCC Supplies),321,08-Sep-2014,1409-00656,717.74,R,Allstar Business Solutions Ltd,No
Http://opendatacommunities.org/id/metropolitan-district-council/leeds,Leeds City Council,Environment & Housing,Parks & Countryside,Transport,Fuel (Non LCC Supplies),321,08-Sep-2014,1409-00657,118.30,R,Allstar Business Solutions Ltd,No
Http://opendatacommunities.org/id/metropolitan-district-council/leeds,Leeds City Council,Environment & Housing,Hra,Premises,General Maintenance,104,24-Sep-2014,1409-00658,83.34,R,Al-Murad Diy Ltd,No
Http://opendatacommunities.org/id/metropolitan-district-council/leeds,Leeds City Council,Environment & Housing,Hra,Premises,General Maintenance,104,24-Sep-2014,1409-00659,83.34,R,Al-Murad Diy Ltd,No
Http://opendatacommunities.org/id/metropolitan-district-council/leeds,Leeds City Council,Environment & Housing,Hra,Premises,General Maintenance,104,24-Sep-2014,1409-00660,41.67,R,Al-Murad Diy Ltd,No
Http://opendatacommunities.org/id/metropolitan-district-council/leeds,Leeds City Council,Environment & Housing,Hra,Premises,General Maintenance,104,24-Sep-2014,1409-00661,50.00,R,Al-Murad Diy Ltd,No
Http://opendatacommunities.org/id/metropolitan-district-council/leeds,Leeds City Council,Environment & Housing,Hra,Premises,General Maintenance,104,24-Sep-2014,1409-00662,41.67,R,Al-Murad Diy Ltd,No
Http://opendatacommunities.org/id/metropolitan-district-council/leeds,Leeds City Council,Environment & Housing,Hra,Premises,General Maintenance,104,24-Sep-2014,1409-00663,4.17,R,Al-Murad Diy Ltd,No
Http://opendatacommunities.org/id/metropolitan-district-council/leeds,Leeds City Council,Environment & Housing,Hra,Premises,General Maintenance,104,24-Sep-2014,1409-00664,166.67,R,Al-Murad Diy Ltd,No
Http://opendatacommunities.org/id/metropolitan-district-council/leeds,Leeds City Council,Environment & Housing,Statutory Housing,Supplies and Services,Other Hired And Contracted Services,265,23-Sep-2014,1409-00665,1372.60,R,Alpesh Patel,No
Http://opendatacommunities.org/id/metropolitan-district-council/leeds,Leeds City Council,Environment & Housing,Hra,Supplies and Services,Teaching Furniture & Equipment,207,19-Sep-2014,1409-00666,65.70,R,Alpha Abc,No
Http://opendatacommunities.org/id/metropolitan-district-council/leeds,Leeds City Council,Environment & Housing,Hra,Supplies and Services,Teaching Furniture & Equipment,207,05-Sep-2014,1409-00667,206.38,R,Alpha Abc,No
Http://opendatacommunities.org/id/metropolitan-district-council/leeds,Leeds City Council,Childrens Services,Safeguarding Targeted & Specialist,Support Services,Legal Disbursements,411,19-Sep-2014,1409-00668,162.50,R,Alpha Biolabs,No
Http://opendatacommunities.org/id/metropolitan-district-council/leeds,Leeds City Council,Childrens Services,Safeguarding Targeted & Specialist,Support Services,Legal Disbursements,411,19-Sep-2014,1409-00669,423.34,R,Alpha Biolabs,No
Http://opendatacommunities.org/id/metropolitan-district-council/leeds,Leeds City Council,Childrens Services,Safeguarding Targeted & Specialist,Support Services,Legal Disbursements,411,26-Sep-2014,1409-00670,97.00,R,Alpha Biolabs,No
Http://opendatacommunities.org/id/metropolitan-district-council/leeds,Leeds City Council,Childrens Services,Safeguarding Targeted & Specialist,Support Services,Legal Disbursements,411,30-Sep-2014,1409-00671,43.75,R,Alpha Biolabs,No
Http://opendatacommunities.org/id/metropolitan-district-council/leeds,Leeds City Council,Childrens Services,Safeguarding Targeted & Specialist,Support Services,Legal Disbursements,411,05-Sep-2014,1409-00672,121.25,R,Alpha Biolabs,No
Http://opendatacommunities.org/id/metropolitan-district-council/leeds,Leeds City Council,Childrens Services,Safeguarding Targeted & Specialist,Support Services,Legal Disbursements,411,30-Sep-2014,1409-00673,210.00,R,Alpha Biolabs,No
Http://opendatacommunities.org/id/metropolitan-district-council/leeds,Leeds City Council,Childrens Services,Safeguarding Targeted & Specialist,Support Services,Legal Disbursements,411,30-Sep-2014,1409-00674,540.00,R,Alpha Biolabs,No
Http://opendatacommunities.org/id/metropolitan-district-council/leeds,Leeds City Council,Central & Corporate,Commercial Services Trading Services,Premises,Maintenance Of Buildings,101,18-Sep-2014,1409-00675,206.00,R,Alternative Drainage Company Ltd,No
Http://opendatacommunities.org/id/metropolitan-district-council/leeds,Leeds City Council,Central & Corporate,Commercial Services Trading Services,Supplies and Services,Operational Materials,205,09-Sep-2014,1409-00676,50.00,R,Alternative Windows (Leeds) Ltd,No
Http://opendatacommunities.org/id/metropolitan-district-council/leeds,Leeds City Council,City Development,Libraries  Arts & Heritage,Supplies and Services,Other Hired And Contracted Services,265,17-Sep-2014,1409-00677,200.00,R,Altofts And Normanton Brass Band,No
Http://opendatacommunities.org/id/metropolitan-district-council/leeds,Leeds City Council,Childrens Services,Safeguarding Targeted & Specialist  ,Supplies and Services,Holidays-  Service Users,284,02-Aug-2014,1409-00678,132.84,R,Alton Towers,Yes
Http://opendatacommunities.org/id/metropolitan-district-council/leeds,Leeds City Council,Childrens Services,Safeguarding Targeted & Specialist  ,Supplies and Services,Holidays-  Service Users,284,04-Aug-2014,1409-00679,49.20,R,Alton Towers,Yes
Http://opendatacommunities.org/id/metropolitan-district-council/leeds,Leeds City Council,Childrens Services,Learning Skills & Universal  ,Supplies and Services,Admission Charges To Schools,283,12-Aug-2014,1409-00680,350.00,R,Alton Towers Park,Yes
Http://opendatacommunities.org/id/metropolitan-district-council/leeds,Leeds City Council,Childrens Services,Learning Skills & Universal  ,Supplies and Services,Admission Charges To Schools,283,15-Aug-2014,1409-00681,46.67,R,Alton Towers Park,Yes
Http://opendatacommunities.org/id/metropolitan-district-council/leeds,Leeds City Council,Adult Social Care,Services For Older People - 65 And Over,Third Party Payments,Nursing Home,570,24-Sep-2014,1409-00682,3990.28,R,Alwoodley Nursing Home,No
Http://opendatacommunities.org/id/metropolitan-district-council/leeds,Leeds City Council,Environment & Housing,Hra,Transport,Public Transport Expenses,310,22-Sep-2014,1409-00683,38.88,R,REDACTED PERSONAL DATA,No
Http://opendatacommunities.org/id/metropolitan-district-council/leeds,Leeds City Council,Adult Social Care,Services For Older People Under 65 P/Dis,Transfer Payments,Personalised Budgets,627,24-Sep-2014,1409-00684,1475.00,R,REDACTED PERSONAL DATA,No
Http://opendatacommunities.org/id/metropolitan-district-council/leeds,Leeds City Council as Accountable Body,Social Services Pooled Budgets,Jcs For People With Learning Disabilitie,Transfer Payments,Personal Budgets,627,24-Sep-2014,1409-00685,1083.12,R,REDACTED PERSONAL DATA,No
Http://opendatacommunities.org/id/metropolitan-district-council/leeds,Leeds City Council,Adult Social Care,Services For Adults Under 65 Mental/Dis,Transfer Payments,Personalised Budgets,627,24-Sep-2014,1409-00686,2166.16,R,REDACTED PERSONAL DATA,No
Http://opendatacommunities.org/id/metropolitan-district-council/leeds,Leeds City Council,Adult Social Care,Services For Older People Under 65 P/Dis,Transfer Payments,Personalised Budgets,627,24-Sep-2014,1409-00687,947.46,R,REDACTED PERSONAL DATA,No
Http://opendatacommunities.org/id/metropolitan-district-council/leeds,Leeds City Council,Environment & Housing,Streetscene Environmental Services,Income,Penalties  Fines & Car Parking Charges,934,11-Sep-2014,1409-00688,60.00,R,REDACTED PERSONAL DATA,No
Http://opendatacommunities.org/id/metropolitan-district-council/leeds,Leeds City Council,Adult Social Care,Services For Older People Under 65 P/Dis,Transfer Payments,Direct Payments,626,24-Sep-2014,1409-00689,761.44,R,REDACTED PERSONAL DATA,No
Http://opendatacommunities.org/id/metropolitan-district-council/leeds,Leeds City Council,Central & Corporate,Commercial Services Trading Services,Supplies and Services,Operational Materials,205,03-Sep-2014,1409-00690,38.92,R,Amari Plastics Plc,No
Http://opendatacommunities.org/id/metropolitan-district-council/leeds,Leeds City Council,Central & Corporate,Commercial Services Trading Services,Supplies and Services,Operational Materials,205,03-Sep-2014,1409-00691,101.00,R,Amari Plastics Plc,No
Http://opendatacommunities.org/id/metropolitan-district-council/leeds,Leeds City Council,Central & Corporate,Support And Facilities General Fund,Supplies and Services,Operational Materials,205,12-Sep-2014,1409-00692,24.88,R,Amari Plastics Plc,No
Http://opendatacommunities.org/id/metropolitan-district-council/leeds,Leeds City Council,Childrens Services,Learning Skills & Universal,Third Party Payments,Services Rendered By Other Organisations,511,12-Sep-2014,1409-00693,13680.00,R,Amazing Grace Early Years Childcare,No
Http://opendatacommunities.org/id/metropolitan-district-council/leeds,Leeds City Council,Adult Social Care,Services For Adults Under 65 Learn/Dis  ,Supplies and Services,Books & Audio-Visual Materials,206,16-Aug-2014,1409-00694,6.40,R,Amazon *mktplce Eu-Uk,Yes
Http://opendatacommunities.org/id/metropolitan-district-council/leeds,Leeds City Council,Central & Corporate,Benefits  ,Supplies and Services,Office Furniture & Equipment,201,26-Aug-2014,1409-00695,79.99,R,Amazon *mktplce Eu-Uk,Yes
Http://opendatacommunities.org/id/metropolitan-district-council/leeds,Leeds City Council,Central & Corporate,Commercial Services General Fund  ,Transport,Miscellaneous Transport Related Costs,324,19-Aug-2014,1409-00696,23.97,R,Amazon *mktplce Eu-Uk,Yes
Http://opendatacommunities.org/id/metropolitan-district-council/leeds,Leeds City Council,Central & Corporate,Information Technology  ,Supplies and Services,Office Consumables,210,19-Aug-2014,1409-00697,26.58,R,Amazon *mktplce Eu-Uk,Yes
Http://opendatacommunities.org/id/metropolitan-district-council/leeds,Leeds City Council,Central & Corporate,Support And Facilities General Fund  ,Supplies and Services,Office Consumables,210,11-Aug-2014,1409-00698,14.88,R,Amazon *mktplce Eu-Uk,Yes
Http://opendatacommunities.org/id/metropolitan-district-council/leeds,Leeds City Council,Central & Corporate,Support And Facilities General Fund  ,Supplies and Services,Office Consumables,210,14-Aug-2014,1409-00699,4.98,R,Amazon *mktplce Eu-Uk,Yes
Http://opendatacommunities.org/id/metropolitan-district-council/leeds,Leeds City Council,Childrens Services,Safeguarding Targeted & Specialist  ,Supplies and Services,Teaching Materials,202,03-Aug-2014,1409-00700,434.20,R,Amazon *mktplce Eu-Uk,Yes
Http://opendatacommunities.org/id/metropolitan-district-council/leeds,Leeds City Council,Childrens Services,Safeguarding Targeted & Specialist  ,Supplies and Services,Operational Furniture And Equipment,203,03-Aug-2014,1409-00701,784.00,R,Amazon *mktplce Eu-Uk,Yes
Http://opendatacommunities.org/id/metropolitan-district-council/leeds,Leeds City Council,Childrens Services,Safeguarding Targeted & Specialist  ,Supplies and Services,Office Furniture & Equipment,201,14-Aug-2014,1409-00702,11.97,R,Amazon *mktplce Eu-Uk,Yes
Http://opendatacommunities.org/id/metropolitan-district-council/leeds,Leeds City Council,Childrens Services,Safeguarding Targeted & Specialist  ,Supplies and Services,Books & Audio-Visual Materials,206,14-Aug-2014,1409-00703,8.71,R,Amazon *mktplce Eu-Uk,Yes
Http://opendatacommunities.org/id/metropolitan-district-council/leeds,Leeds City Council,Childrens Services,Safeguarding Targeted & Specialist  ,Transfer Payments,Payments To Residents,622,19-Aug-2014,1409-00704,8.89,R,Amazon *mktplce Eu-Uk,Yes
Http://opendatacommunities.org/id/metropolitan-district-council/leeds,Leeds City Council,City Development,Highways  ,Supplies and Services,Other Hired And Contracted Services,265,08-Aug-2014,1409-00705,19.50,R,Amazon *mktplce Eu-Uk,Yes
Http://opendatacommunities.org/id/metropolitan-district-council/leeds,Leeds City Council,City Development,Highways  ,Supplies and Services,Other Hired And Contracted Services,265,08-Aug-2014,1409-00706,4.70,R,Amazon *mktplce Eu-Uk,Yes
Http://opendatacommunities.org/id/metropolitan-district-council/leeds,Leeds City Council,City Development,Highways  ,Supplies and Services,Other Hired And Contracted Services,265,09-Aug-2014,1409-00707,6.00,R,Amazon *mktplce Eu-Uk,Yes
Http://opendatacommunities.org/id/metropolitan-district-council/leeds,Leeds City Council,City Development,Libraries  Arts & Heritage  ,Supplies and Services,Books & Audio-Visual Materials,206,31-Jul-2014,1409-00708,11.79,R,Amazon *mktplce Eu-Uk,Yes
Http://opendatacommunities.org/id/metropolitan-district-council/leeds,Leeds City Council,City Development,Libraries  Arts & Heritage  ,Supplies and Services,Teaching Materials,202,01-Aug-2014,1409-00709,17.97,R,Amazon *mktplce Eu-Uk,Yes
Http://opendatacommunities.org/id/metropolitan-district-council/leeds,Leeds City Council,City Development,Libraries  Arts & Heritage  ,Supplies and Services,Books & Audio-Visual Materials,206,02-Aug-2014,1409-00710,4.61,R,Amazon *mktplce Eu-Uk,Yes
Http://opendatacommunities.org/id/metropolitan-district-council/leeds,Leeds City Council,City Development,Libraries  Arts & Heritage  ,Supplies and Services,Operational Materials,205,05-Aug-2014,1409-00711,122.30,R,Amazon *mktplce Eu-Uk,Yes
Http://opendatacommunities.org/id/metropolitan-district-council/leeds,Leeds City Council,City Development,Libraries  Arts & Heritage  ,Supplies and Services,Teaching Materials,202,05-Aug-2014,1409-00712,6.98,R,Amazon *mktplce Eu-Uk,Yes
Http://opendatacommunities.org/id/metropolitan-district-council/leeds,Leeds City Council,City Development,Libraries  Arts & Heritage  ,Supplies and Services,Books & Audio-Visual Materials,206,06-Aug-2014,1409-00713,14.23,R,Amazon *mktplce Eu-Uk,Yes
Http://opendatacommunities.org/id/metropolitan-district-council/leeds,Leeds City Council,City Development,Libraries  Arts & Heritage  ,Supplies and Services,Teaching Materials,202,07-Aug-2014,1409-00714,6.79,R,Amazon *mktplce Eu-Uk,Yes
Http://opendatacommunities.org/id/metropolitan-district-council/leeds,Leeds City Council,City Development,Libraries  Arts & Heritage  ,Supplies and Services,Teaching Materials,202,07-Aug-2014,1409-00715,3.28,R,Amazon *mktplce Eu-Uk,Yes
Http://opendatacommunities.org/id/metropolitan-district-council/leeds,Leeds City Council,City Development,Libraries  Arts & Heritage  ,Supplies and Services,Teaching Materials,202,08-Aug-2014,1409-00716,5.58,R,Amazon *mktplce Eu-Uk,Yes
Http://opendatacommunities.org/id/metropolitan-district-council/leeds,Leeds City Council,City Development,Libraries  Arts & Heritage  ,Supplies and Services,Teaching Materials,202,08-Aug-2014,1409-00717,2.32,R,Amazon *mktplce Eu-Uk,Yes
Http://opendatacommunities.org/id/metropolitan-district-council/leeds,Leeds City Council,City Development,Libraries  Arts & Heritage  ,Supplies and Services,Operational Materials,205,08-Aug-2014,1409-00718,3.99,R,Amazon *mktplce Eu-Uk,Yes
Http://opendatacommunities.org/id/metropolitan-district-council/leeds,Leeds City Council,City Development,Libraries  Arts & Heritage  ,Supplies and Services,Teaching Materials,202,09-Aug-2014,1409-00719,4.98,R,Amazon *mktplce Eu-Uk,Yes
Http://opendatacommunities.org/id/metropolitan-district-council/leeds,Leeds City Council,City Development,Libraries  Arts & Heritage  ,Supplies and Services,Operational Furniture And Equipment,203,12-Aug-2014,1409-00720,83.93,R,Amazon *mktplce Eu-Uk,Yes
Http://opendatacommunities.org/id/metropolitan-district-council/leeds,Leeds City Council,City Development,Libraries  Arts & Heritage  ,Supplies and Services,Books & Audio-Visual Materials,206,13-Aug-2014,1409-00721,6.77,R,Amazon *mktplce Eu-Uk,Yes
Http://opendatacommunities.org/id/metropolitan-district-council/leeds,Leeds City Council,City Development,Libraries  Arts & Heritage  ,Supplies and Services,Books & Audio-Visual Materials,206,14-Aug-2014,1409-00722,23.00,R,Amazon *mktplce Eu-Uk,Yes
Http://opendatacommunities.org/id/metropolitan-district-council/leeds,Leeds City Council,City Development,Libraries  Arts & Heritage  ,Supplies and Services,Books & Audio-Visual Materials,206,14-Aug-2014,1409-00723,2.81,R,Amazon *mktplce Eu-Uk,Yes
Http://opendatacommunities.org/id/metropolitan-district-council/leeds,Leeds City Council,City Development,Libraries  Arts & Heritage  ,Supplies and Services,Operational Materials,205,15-Aug-2014,1409-00724,13.98,R,Amazon *mktplce Eu-Uk,Yes
Http://opendatacommunities.org/id/metropolitan-district-council/leeds,Leeds City Council,City Development,Libraries  Arts & Heritage  ,Supplies and Services,Books & Audio-Visual Materials,206,15-Aug-2014,1409-00725,12.30,R,Amazon *mktplce Eu-Uk,Yes
Http://opendatacommunities.org/id/metropolitan-district-council/leeds,Leeds City Council,City Development,Libraries  Arts & Heritage  ,Supplies and Services,Books & Audio-Visual Materials,206,17-Aug-2014,1409-00726,21.48,R,Amazon *mktplce Eu-Uk,Yes
Http://opendatacommunities.org/id/metropolitan-district-council/leeds,Leeds City Council,City Development,Libraries  Arts & Heritage  ,Supplies and Services,Books & Audio-Visual Materials,206,18-Aug-2014,1409-00727,10.34,R,Amazon *mktplce Eu-Uk,Yes
Http://opendatacommunities.org/id/metropolitan-district-council/leeds,Leeds City Council,City Development,Libraries  Arts & Heritage  ,Supplies and Services,Books & Audio-Visual Materials,206,19-Aug-2014,1409-00728,158.00,R,Amazon *mktplce Eu-Uk,Yes
Http://opendatacommunities.org/id/metropolitan-district-council/leeds,Leeds City Council,City Development,Libraries  Arts & Heritage  ,Supplies and Services,Operational Materials,205,22-Aug-2014,1409-00729,12.26,R,Amazon *mktplce Eu-Uk,Yes
Http://opendatacommunities.org/id/metropolitan-district-council/leeds,Leeds City Council,City Development,Libraries  Arts & Heritage  ,Supplies and Services,Operational Materials,205,25-Aug-2014,1409-00730,2.60,R,Amazon *mktplce Eu-Uk,Yes
Http://opendatacommunities.org/id/metropolitan-district-council/leeds,Leeds City Council,City Development,Libraries  Arts & Heritage  ,Supplies and Services,Books & Audio-Visual Materials,206,26-Aug-2014,1409-00731,46.17,R,Amazon *mktplce Eu-Uk,Yes
Http://opendatacommunities.org/id/metropolitan-district-council/leeds,Leeds City Council,City Development,Libraries  Arts & Heritage  ,Supplies and Services,Operational Materials,205,26-Aug-2014,1409-00732,10.94,R,Amazon *mktplce Eu-Uk,Yes
Http://opendatacommunities.org/id/metropolitan-district-council/leeds,Leeds City Council,City Development,Libraries  Arts & Heritage  ,Supplies and Services,Operational Materials,205,27-Aug-2014,1409-00733,13.60,R,Amazon *mktplce Eu-Uk,Yes
Http://opendatacommunities.org/id/metropolitan-district-council/leeds,Leeds City Council,City Development,Libraries  Arts & Heritage  ,Supplies and Services,Books & Audio-Visual Materials,206,27-Aug-2014,1409-00734,25.67,R,Amazon *mktplce Eu-Uk,Yes
Http://opendatacommunities.org/id/metropolitan-district-council/leeds,Leeds City Council,City Development,Libraries  Arts & Heritage  ,Supplies and Services,Books & Audio-Visual Materials,206,28-Aug-2014,1409-00735,13.78,R,Amazon *mktplce Eu-Uk,Yes
Http://opendatacommunities.org/id/metropolitan-district-council/leeds,Leeds City Council,City Development,Libraries  Arts & Heritage  ,Supplies and Services,Books & Audio-Visual Materials,206,28-Aug-2014,1409-00736,17.94,R,Amazon *mktplce Eu-Uk,Yes
Http://opendatacommunities.org/id/metropolitan-district-council/leeds,Leeds City Council,City Development,Libraries  Arts & Heritage  ,Supplies and Services,Books & Audio-Visual Materials,206,28-Aug-2014,1409-00737,4.00,R,Amazon *mktplce Eu-Uk,Yes
Http://opendatacommunities.org/id/metropolitan-district-council/leeds,Leeds City Council,City Development,Libraries  Arts & Heritage  ,Supplies and Services,Books & Audio-Visual Materials,206,28-Aug-2014,1409-00738,-13.78,R,Amazon *mktplce Eu-Uk,Yes
Http://opendatacommunities.org/id/metropolitan-district-council/leeds,Leeds City Council,City Development,Recreation  ,Supplies and Services,Books & Audio-Visual Materials,206,20-Aug-2014,1409-00739,144.95,R,Amazon *mktplce Eu-Uk,Yes
Http://opendatacommunities.org/id/metropolitan-district-council/leeds,Leeds City Council,Environment & Housing,Environmental Action (East North East)  ,Supplies and Services,Operational Furniture And Equipment,203,12-Aug-2014,1409-00740,40.01,R,Amazon *mktplce Eu-Uk,Yes
Http://opendatacommunities.org/id/metropolitan-district-council/leeds,Leeds City Council,Environment & Housing,Hra  ,Supplies and Services,Books & Audio-Visual Materials,206,12-Aug-2014,1409-00741,54.98,R,Amazon *mktplce Eu-Uk,Yes
Http://opendatacommunities.org/id/metropolitan-district-council/leeds,Leeds City Council,Environment & Housing,Parks & Countryside  ,Supplies and Services,Operational Materials,205,19-Aug-2014,1409-00742,259.77,R,Amazon *mktplce Eu-Uk,Yes
Http://opendatacommunities.org/id/metropolitan-district-council/leeds,Leeds City Council,Central & Corporate,Benefits  ,Employees,Best Value Training,70,20-Aug-2014,1409-00743,72.18,R,Amazon Eu,Yes
Http://opendatacommunities.org/id/metropolitan-district-council/leeds,Leeds City Council,Central & Corporate,Benefits  ,Supplies and Services,Office Furniture & Equipment,201,21-Aug-2014,1409-00744,63.98,R,Amazon Eu,Yes
Http://opendatacommunities.org/id/metropolitan-district-council/leeds,Leeds City Council,Central & Corporate,Commercial Services Trading Services  ,Supplies and Services,Operational Furniture And Equipment,203,31-Jul-2014,1409-00745,143.98,R,Amazon Eu,Yes
Http://opendatacommunities.org/id/metropolitan-district-council/leeds,Leeds City Council,Central & Corporate,Executive Support  ,Supplies and Services,Books & Audio-Visual Materials,206,05-Aug-2014,1409-00746,26.09,R,Amazon Eu,Yes
Http://opendatacommunities.org/id/metropolitan-district-council/leeds,Leeds City Council,Central & Corporate,Executive Support  ,Supplies and Services,Computer Software & Equipment,214,09-Aug-2014,1409-00747,12.75,R,Amazon Eu,Yes
Http://opendatacommunities.org/id/metropolitan-district-council/leeds,Leeds City Council,Central & Corporate,Executive Support  ,Supplies and Services,Computer Software & Equipment,214,14-Aug-2014,1409-00748,-3.99,R,Amazon Eu,Yes
Http://opendatacommunities.org/id/metropolitan-district-council/leeds,Leeds City Council,Central & Corporate,Public Health  ,Supplies and Services,Office Consumables,210,04-Aug-2014,1409-00749,38.83,R,Amazon Eu,Yes
Http://opendatacommunities.org/id/metropolitan-district-council/leeds,Leeds City Council,Central & Corporate,Public Private Partnership Unit  ,Supplies and Services,Office Furniture & Equipment,201,14-Aug-2014,1409-00750,63.88,R,Amazon Eu,Yes
Http://opendatacommunities.org/id/metropolitan-district-council/leeds,Leeds City Council,Central & Corporate,Support And Facilities General Fund  ,Supplies and Services,Computer Software & Equipment,214,31-Jul-2014,1409-00751,119.60,R,Amazon Eu,Yes
Http://opendatacommunities.org/id/metropolitan-district-council/leeds,Leeds City Council,Central & Corporate,Support And Facilities General Fund  ,Supplies and Services,Office Consumables,210,18-Aug-2014,1409-00752,12.41,R,Amazon Eu,Yes
Http://opendatacommunities.org/id/metropolitan-district-council/leeds,Leeds City Council,Childrens Services,Learning Skills & Universal  ,Supplies and Services,Operational Furniture And Equipment,203,07-Aug-2014,1409-00753,153.65,R,Amazon Eu,Yes
Http://opendatacommunities.org/id/metropolitan-district-council/leeds,Leeds City Council,Childrens Services,Learning Skills & Universal  ,Supplies and Services,Operational Furniture And Equipment,203,14-Aug-2014,1409-00754,63.86,R,Amazon Eu,Yes
Http://opendatacommunities.org/id/metropolitan-district-council/leeds,Leeds City Council,Childrens Services,Learning Skills & Universal  ,Supplies and Services,Teaching Materials,202,21-Aug-2014,1409-00755,12.99,R,Amazon Eu,Yes
Http://opendatacommunities.org/id/metropolitan-district-council/leeds,Leeds City Council,Childrens Services,Partnership Development & Leadership  ,Supplies and Services,Books & Audio-Visual Materials,206,31-Jul-2014,1409-00756,73.74,R,Amazon Eu,Yes
Http://opendatacommunities.org/id/metropolitan-district-council/leeds,Leeds City Council,Childrens Services,Safeguarding Targeted & Specialist  ,Supplies and Services,Operational Furniture And Equipment,203,31-Jul-2014,1409-00757,244.33,R,Amazon Eu,Yes
Http://opendatacommunities.org/id/metropolitan-district-council/leeds,Leeds City Council,Childrens Services,Safeguarding Targeted & Specialist  ,Supplies and Services,Books & Audio-Visual Materials,206,06-Aug-2014,1409-00758,10.92,R,Amazon Eu,Yes
Http://opendatacommunities.org/id/metropolitan-district-council/leeds,Leeds City Council,Childrens Services,Safeguarding Targeted & Specialist  ,Supplies and Services,Operational Furniture And Equipment,203,12-Aug-2014,1409-00759,90.00,R,Amazon Eu,Yes
Http://opendatacommunities.org/id/metropolitan-district-council/leeds,Leeds City Council,Childrens Services,Safeguarding Targeted & Specialist  ,Supplies and Services,Books & Audio-Visual Materials,206,13-Aug-2014,1409-00760,21.99,R,Amazon Eu,Yes
Http://opendatacommunities.org/id/metropolitan-district-council/leeds,Leeds City Council,Childrens Services,Safeguarding Targeted & Specialist  ,Supplies and Services,Books & Audio-Visual Materials,206,13-Aug-2014,1409-00761,20.69,R,Amazon Eu,Yes
Http://opendatacommunities.org/id/metropolitan-district-council/leeds,Leeds City Council,Childrens Services,Safeguarding Targeted & Specialist  ,Supplies and Services,Food & Drink,231,21-Aug-2014,1409-00762,36.20,R,Amazon Eu,Yes
Http://opendatacommunities.org/id/metropolitan-district-council/leeds,Leeds City Council,Childrens Services,Safeguarding Targeted & Specialist  ,Supplies and Services,Computer Software & Equipment,214,24-Aug-2014,1409-00763,35.97,R,Amazon Eu,Yes
Http://opendatacommunities.org/id/metropolitan-district-council/leeds,Leeds City Council,Childrens Services,Safeguarding Targeted & Specialist  ,Supplies and Services,Office Furniture & Equipment,201,25-Aug-2014,1409-00764,88.00,R,Amazon Eu,Yes
Http://opendatacommunities.org/id/metropolitan-district-council/leeds,Leeds City Council,City Development,Libraries  Arts & Heritage  ,Supplies and Services,Books & Audio-Visual Materials,206,07-Aug-2014,1409-00765,24.03,R,Amazon Eu,Yes
Http://opendatacommunities.org/id/metropolitan-district-council/leeds,Leeds City Council,City Development,Libraries  Arts & Heritage  ,Supplies and Services,Books & Audio-Visual Materials,206,18-Aug-2014,1409-00766,8.24,R,Amazon Eu,Yes
Http://opendatacommunities.org/id/metropolitan-district-council/leeds,Leeds City Council,City Development,Planning & Sustainable Development  ,Supplies and Services,Office Consumables,210,15-Aug-2014,1409-00767,86.25,R,Amazon Eu,Yes
Http://opendatacommunities.org/id/metropolitan-district-council/leeds,Leeds City Council,Environment & Housing,Environmental Health  ,Supplies and Services,Operational Furniture And Equipment,203,28-Aug-2014,1409-00768,11.05,R,Amazon Eu,Yes
Http://opendatacommunities.org/id/metropolitan-district-council/leeds,Leeds City Council,Environment & Housing,Hra  ,Supplies and Services,Books & Audio-Visual Materials,206,06-Aug-2014,1409-00769,13.39,R,Amazon Eu,Yes
Http://opendatacommunities.org/id/metropolitan-district-council/leeds,Leeds City Council,City Development,Recreation,Supplies and Services,Operational Furniture And Equipment,203,25-Sep-2014,1409-00770,186.76,R,Amazon Leisure Uk Ltd,No
Http://opendatacommunities.org/id/metropolitan-district-council/leeds,Leeds City Council,City Development,Recreation,Supplies and Services,Operational Furniture And Equipment,203,25-Sep-2014,1409-00771,195.00,R,Amazon Leisure Uk Ltd,No
Http://opendatacommunities.org/id/metropolitan-district-council/leeds,Leeds City Council,City Development,Recreation,Supplies and Services,Operational Furniture And Equipment,203,26-Sep-2014,1409-00772,4946.14,R,Amazon Leisure Uk Ltd,No
Http://opendatacommunities.org/id/metropolitan-district-council/leeds,Leeds City Council,City Development,Recreation,Supplies and Services,Operational Furniture And Equipment,203,17-Sep-2014,1409-00773,25.67,R,Amazon Leisure Uk Ltd,No
Http://opendatacommunities.org/id/metropolitan-district-council/leeds,Leeds City Council,City Development,Recreation,Supplies and Services,Operational Furniture And Equipment,203,17-Sep-2014,1409-00774,476.68,R,Amazon Leisure Uk Ltd,No
Http://opendatacommunities.org/id/metropolitan-district-council/leeds,Leeds City Council,City Development,Recreation,Supplies and Services,Operational Furniture And Equipment,203,12-Sep-2014,1409-00775,105.00,R,Amazon Leisure Uk Ltd,No
Http://opendatacommunities.org/id/metropolitan-district-council/leeds,Leeds City Council,City Development,Recreation,Supplies and Services,Operational Furniture And Equipment,203,05-Sep-2014,1409-00776,-193.11,R,Amazon Leisure Uk Ltd,No
Http://opendatacommunities.org/id/metropolitan-district-council/leeds,Leeds City Council,City Development,Recreation,Supplies and Services,Operational Furniture And Equipment,203,05-Sep-2014,1409-00777,1829.77,R,Amazon Leisure Uk Ltd,No
Http://opendatacommunities.org/id/metropolitan-district-council/leeds,Leeds City Council,City Development,Recreation,Supplies and Services,Operational Furniture And Equipment,203,05-Sep-2014,1409-00778,527.33,R,Amazon Leisure Uk Ltd,No
Http://opendatacommunities.org/id/metropolitan-district-council/leeds,Leeds City Council,City Development,Recreation,Supplies and Services,Operational Furniture And Equipment,203,25-Sep-2014,1409-00779,105.00,R,Amazon Leisure Uk Ltd,No
Http://opendatacommunities.org/id/metropolitan-district-council/leeds,Leeds City Council,City Development,Recreation,Supplies and Services,Operational Furniture And Equipment,203,03-Sep-2014,1409-00780,135.00,R,Amazon Leisure Uk Ltd,No
Http://opendatacommunities.org/id/metropolitan-district-council/leeds,Leeds City Council,City Development,Recreation,Supplies and Services,Operational Furniture And Equipment,203,26-Sep-2014,1409-00781,386.22,R,Amazon Leisure Uk Ltd,No
Http://opendatacommunities.org/id/metropolitan-district-council/leeds,Leeds City Council,City Development,Recreation,Supplies and Services,Operational Furniture And Equipment,203,05-Sep-2014,1409-00782,-193.11,R,Amazon Leisure Uk Ltd,No
Http://opendatacommunities.org/id/metropolitan-district-council/leeds,Leeds City Council,City Development,Recreation,Supplies and Services,Operational Furniture And Equipment,203,11-Sep-2014,1409-00783,1697.47,R,Amazon Leisure Uk Ltd,No
Http://opendatacommunities.org/id/metropolitan-district-council/leeds,Leeds City Council,City Development,Libraries  Arts & Heritage  ,Supplies and Services,Books & Audio-Visual Materials,206,28-Aug-2014,1409-00784,24.99,R,Amazon Mktplace Pmts,Yes
Http://opendatacommunities.org/id/metropolitan-district-council/leeds,Leeds City Council,Childrens Services,Safeguarding Targeted & Specialist  ,Supplies and Services,Teaching Materials,202,02-Aug-2014,1409-00785,60.00,R,Amazonlocal,Yes
Http://opendatacommunities.org/id/metropolitan-district-council/leeds,Leeds City Council,Central & Corporate,Audit And Risk  ,Transport,External Hire -Occasional,304,04-Aug-2014,1409-00786,86.10,R,Amber Cars,Yes
Http://opendatacommunities.org/id/metropolitan-district-council/leeds,Leeds City Council,Central & Corporate,Benefits  ,Transport,External Hire -Occasional,304,04-Aug-2014,1409-00787,15.00,R,Amber Cars,Yes
Http://opendatacommunities.org/id/metropolitan-district-council/leeds,Leeds City Council,Central & Corporate,Corporate Governance  ,Transport,External Hire -Occasional,304,04-Aug-2014,1409-00788,523.50,R,Amber Cars,Yes
Http://opendatacommunities.org/id/metropolitan-district-council/leeds,Leeds City Council,Central & Corporate,Corporate Services Support Services  ,Transport,External Hire -Occasional,304,04-Aug-2014,1409-00789,10.20,R,Amber Cars,Yes
Http://opendatacommunities.org/id/metropolitan-district-council/leeds,Leeds City Council,Central & Corporate,Customer Services  ,Transport,External Hire -Occasional,304,04-Aug-2014,1409-00790,210.80,R,Amber Cars,Yes
Http://opendatacommunities.org/id/metropolitan-district-council/leeds,Leeds City Council,Central & Corporate,Executive Support  ,Transport,External Hire -Occasional,304,04-Aug-2014,1409-00791,118.90,R,Amber Cars,Yes
